Workbook

Sheet Menu
C2: はまクル認定クラブ会計 メニュー
D3: Ver.1.0
D4: 項目名･予算額等を入力 ／ 執行済額を確認 | E4: ※注１
D5: 会計簿を入力 | E5: ※注２
D6: 会計簿を印刷 | E6: ※注３
D7: 全項目の会計簿を一気に印刷 | E7: ※注３
D8: 各項目の会計簿を個別に印刷､又は画面で確認
D9: 中間・決算報告書を作成
D10: 次年度の予算書(案)を作成
C12: ↑ 目的のボタンをクリックしてください
C14: ※注１ 収入は10項目、支出は50項目まで。予算額は必要なければ省略しても可。
C15: ※注２ 会計簿全体で1000件、各項目は199件まで入力可能。
C16: 収入の項目に支出金額、支出の項目に収入金額を入れないでください。
C17: ※注３ Ａ４用紙に１枚当たり50件印刷。
C18: ※注４ 自動保存ではありませんので、各自保存を。ファイル名は自由に変更してください。
C19: ※注５ 会計報告書の様式は必要であれば変更してください。
C20: ※注６ 本ファイルはExcel 2000で作成しています。他のバージョンでの動作確認はしておりません。
A30: 改訂履歴
A32: Ver.1.01 | C32: ◇プリンタにより印刷が１頁に収まらない場合もあるらしいので、念のため右と下の余白を減らした。
C33: ◇注２の下の行を追加。
A35: 特別版 | C35: 倉田氏の要請により、ＰＴＡ会計用に報告書・予算書作成メニューを追加。

Sheet 予算
L1: =E4+2018 -> 2026
C2: 〇〇中はまクル認定クラブ | F2: 会計 | L2: =L1+1 -> 2027
E4: 8 | F4: 年度 | M4: 6
B6: № （コード） | C6: 項 目 名 | D6: 予 算 額 | E6: 収入･支出済額 | F6: 増 減 | H6: 合計 | I6: 予 算 額 | J6: 収入･支出済額
B7: 1 | C7: 会費 | D7: 360000 | E7: =DSUM(簿!$C$5:$H$1005,5,D69:D70) -> 360000 | F7: =E7-D7 -> 0 | H7: 収入 | I7: =SUM(D7:D16) -> 677600 | J7: =SUM(E7:E16) -> 677600
B8: 2 | C8: 保険料 | E8: =DSUM(簿!$C$5:$H$1005,5,D71:D72) -> 0 | F8: =E8-D8 -> 0 | H8: 支出 | I8: =SUM(D17:D66) -> 677600 | J8: =SUM(E17:E66) -> 677600
B9: 3 | C9: 雑収入 | D9: 1000 | E9: =DSUM(簿!$C$5:$H$1005,5,D73:D74) -> 1000 | F9: =E9-D9 -> 0 | H9: 差引 | I9: =I7-I8 -> 0 | J9: =J7-J8 -> 0
B10: 4 | C10: 会費（対象外） | D10: 60000 | E10: =DSUM(簿!$C$5:$H$1005,5,D75:D76) -> 60000 | F10: 0
B11: 5 | C11: 繰越金（対象外） | E11: =DSUM(簿!$C$5:$H$1005,5,D77:D78) -> 0 | F11: 0
B12: 6 | C12: 保険料（対象外） | D12: 17600 | E12: =DSUM(簿!$C$5:$H$1005,5,D79:D80) -> 17600 | F12: 0 | I12: 参加生徒数 | J12: 指導者数 | K12: 活動クラブ種別 | L12: 月の活動回数
B13: 7 | C13: 雑収入（対象外） | E13: =DSUM(簿!$C$5:$H$1005,5,D81:D82) -> 0 | F13: 0 | I13: 20 | J13: 2 | K13: スポーツ | L13: 4
B14: 8 | C14: 補助金 | D14: 239000 | E14: =DSUM(簿!$C$5:$H$1005,5,D83:D84) -> 239000 | F14: 0 | G14: 収 | I14: =IF(I13>26,1,IF(I13>12,2,IF(I13>4,3,4))) -> 2 | J14: =IF(J13>2,1,IF(J13>1,2,3)) -> 2 | K14: =IF(K13="スポーツ",1,2) -> 1 | L14: =IF(L13=4,1,IF(L13=3,2,IF(L13=2,3,4))) -> 1 | N14: =VALUE(I14&J14&K14&L14) -> 2211 | O14: =VLOOKUP(N14,単価データ!B3:D98,2,FALSE) -> 288000
B15: 9 | E15: =DSUM(簿!$C$5:$H$1005,5,D85:D86) -> 0 | F15: 0 | G15: 入
B16: 10 | E16: =DSUM(簿!$C$5:$H$1005,5,D87:D88) -> 0 | F16: 0 | G16: ↑
B17: 11 | C17: 諸謝金 | D17: 287310 | E17: =DSUM(簿!$C$5:$H$1005,6,D89:D90) -> 287310 | F17: 0 | G17: ↓ | I17: ○色つきのセルのみ入力
B18: 12 | C18: 旅費 | D18: 42000 | E18: =DSUM(簿!$C$5:$H$1005,6,D91:D92) -> 42000 | F18: 0 | G18: 支 | I18: ○収入は№１～8、支出は№11～29を使用
B19: 13 | C19: 通信運搬費 | D19: 13000 | E19: =DSUM(簿!$C$5:$H$1005,6,D93:D94) -> 13000 | F19: 0 | G19: 出 | I19: ○収入、支出とも小さい№から順に使用のこと
B20: 14 | C20: 印刷製本費 | D20: 30000 | E20: =DSUM(簿!$C$5:$H$1005,6,D95:D96) -> 30000 | F20: 0 | I20: 途中を空けてはならぬぞ！
B21: 15 | C21: 備品費 | E21: =DSUM(簿!$C$5:$H$1005,6,D97:D98) -> 0 | F21: 0 | I21: ○使用しない№の項目名は、何も入力しない。
B22: 16 | C22: 消耗品費 | D22: 83600 | E22: =DSUM(簿!$C$5:$H$1005,6,D99:D100) -> 83600 | F22: 0 | I22: (スペースでも駄目です)
B23: 17 | C23: 借料及び損料 | D23: 116810 | E23: =DSUM(簿!$C$5:$H$1005,6,D101:D102) -> 116810 | F23: 0
B24: 18 | C24: 保険料 | E24: =DSUM(簿!$C$5:$H$1005,6,D103:D104) -> 0 | F24: 0
B25: 19 | C25: 雑務経費 | D25: 27280 | E25: =DSUM(簿!$C$5:$H$1005,6,D105:D106) -> 27280 | F25: 0
B26: 20 | C26: 諸謝金（対象外） | D26: 47885 | E26: =DSUM(簿!$C$5:$H$1005,6,D107:D108) -> 47885 | F26: 0
B27: 21 | C27: 旅費（対象外） | E27: =DSUM(簿!$C$5:$H$1005,6,D109:D110) -> 0 | F27: 0
B28: 22 | C28: 通信運搬費（対象外） | E28: =DSUM(簿!$C$5:$H$1005,6,D111:D112) -> 0 | F28: 0
B29: 23 | C29: 印刷製本費（対象外） | E29: =DSUM(簿!$C$5:$H$1005,6,D113:D114) -> 0 | F29: 0
B30: 24 | C30: 備品費（対象外） | E30: =DSUM(簿!$C$5:$H$1005,6,D115:D116) -> 0 | F30: 0
B31: 25 | C31: 消耗品費（対象外） | D31: 12115 | E31: =DSUM(簿!$C$5:$H$1005,6,D117:D118) -> 12115 | F31: 0
B32: 26 | C32: 借料及び損料（対象外） | E32: =DSUM(簿!$C$5:$H$1005,6,D119:D120) -> 0 | F32: 0
B33: 27 | C33: 保険料（対象外） | D33: 17600 | E33: =DSUM(簿!$C$5:$H$1005,6,D121:D122) -> 17600 | F33: 0
B34: 28 | C34: 雑務経費（対象外） | E34: =DSUM(簿!$C$5:$H$1005,6,D123:D124) -> 0 | F34: 0
B35: 29 | C35: その他の経費（対象外） | E35: =DSUM(簿!$C$5:$H$1005,6,D125:D126) -> 0 | F35: 0
B36: 30 | E36: =DSUM(簿!$C$5:$H$1005,6,D127:D128) -> 0 | F36: 0
B37: 31 | E37: =DSUM(簿!$C$5:$H$1005,6,D129:D130) -> 0 | F37: 0
B38: 32 | E38: =DSUM(簿!$C$5:$H$1005,6,D131:D132) -> 0 | F38: 0
B39: 33 | E39: =DSUM(簿!$C$5:$H$1005,6,D133:D134) -> 0 | F39: 0
B40: 34 | E40: =DSUM(簿!$C$5:$H$1005,6,E75:E76) -> 0 | F40: 0
B41: 35 | E41: =DSUM(簿!$C$5:$H$1005,6,E77:E78) -> 0 | F41: 0
B42: 36 | E42: =DSUM(簿!$C$5:$H$1005,6,E79:E80) -> 0 | F42: 0
B43: 37 | E43: =DSUM(簿!$C$5:$H$1005,6,E81:E82) -> 0 | F43: 0
B44: 38 | E44: =DSUM(簿!$C$5:$H$1005,6,E83:E84) -> 0 | F44: 0
B45: 39 | E45: =DSUM(簿!$C$5:$H$1005,6,E85:E86) -> 0 | F45: 0
B46: 40 | E46: =DSUM(簿!$C$5:$H$1005,6,E87:E88) -> 0 | F46: 0
B47: 41 | E47: =DSUM(簿!$C$5:$H$1005,6,E89:E90) -> 0 | F47: 0
B48: 42 | E48: =DSUM(簿!$C$5:$H$1005,6,E91:E92) -> 0 | F48: 0
B49: 43 | E49: =DSUM(簿!$C$5:$H$1005,6,E93:E94) -> 0 | F49: 0
B50: 44 | E50: =DSUM(簿!$C$5:$H$1005,6,E95:E96) -> 0 | F50: 0
B51: 45 | E51: =DSUM(簿!$C$5:$H$1005,6,E97:E98) -> 0 | F51: 0
B52: 46 | E52: =DSUM(簿!$C$5:$H$1005,6,E99:E100) -> 0 | F52: 0
B53: 47 | E53: =DSUM(簿!$C$5:$H$1005,6,E101:E102) -> 0 | F53: 0
B54: 48 | E54: =DSUM(簿!$C$5:$H$1005,6,E103:E104) -> 0 | F54: 0
B55: 49 | E55: =DSUM(簿!$C$5:$H$1005,6,E105:E106) -> 0 | F55: 0
B56: 50 | E56: =DSUM(簿!$C$5:$H$1005,6,E107:E108) -> 0 | F56: 0
B57: 51 | E57: =DSUM(簿!$C$5:$H$1005,6,E109:E110) -> 0 | F57: 0
B58: 52 | E58: =DSUM(簿!$C$5:$H$1005,6,E111:E112) -> 0 | F58: 0
B59: 53 | E59: =DSUM(簿!$C$5:$H$1005,6,E113:E114) -> 0 | F59: 0
B60: 54 | E60: =DSUM(簿!$C$5:$H$1005,6,E115:E116) -> 0 | F60: 0
B61: 55 | E61: =DSUM(簿!$C$5:$H$1005,6,E117:E118) -> 0 | F61: 0
B62: 56 | E62: =DSUM(簿!$C$5:$H$1005,6,E119:E120) -> 0 | F62: 0
B63: 57 | E63: =DSUM(簿!$C$5:$H$1005,6,E121:E122) -> 0 | F63: 0
B64: 58 | E64: =DSUM(簿!$C$5:$H$1005,6,E123:E124) -> 0 | F64: 0
B65: 59 | E65: =DSUM(簿!$C$5:$H$1005,6,E125:E126) -> 0 | F65: 0
B66: 60 | E66: =DSUM(簿!$C$5:$H$1005,6,E127:E128) -> 0 | F66: 0
B69: =COUNTA(C7:C16) -> 8 | C69: 収入 | D69: コード | E69: コード
B70: =COUNTA(C17:C66)+10 -> 29 | C70: 支出 | D70: 1 | E70: 31
D71: コード | E71: コード
D72: 2 | E72: 32
D73: コード | E73: コード
D74: 3 | E74: 33
D75: コード | E75: コード
D76: 4 | E76: 34
D77: コード | E77: コード
D78: 5 | E78: 35
D79: コード | E79: コード
D80: 6 | E80: 36
D81: コード | E81: コード
D82: 7 | E82: 37
D83: コード | E83: コード
D84: 8 | E84: 38
D85: コード | E85: コード
D86: 9 | E86: 39
D87: コード | E87: コード
D88: 10 | E88: 40
D89: コード | E89: コード
D90: 11 | E90: 41
D91: コード | E91: コード
D92: 12 | E92: 42
D93: コード | E93: コード
D94: 13 | E94: 43
D95: コード | E95: コード
D96: 14 | E96: 44
D97: コード | E97: コード
D98: 15 | E98: 45
D99: コード | E99: コード
D100: 16 | E100: 46
D101: コード | E101: コード
D102: 17 | E102: 47
D103: コード | E103: コード
D104: 18 | E104: 48
D105: コード | E105: コード
D106: 19 | E106: 49
D107: コード | E107: コード
D108: 20 | E108: 50
D109: コード | E109: コード
D110: 21 | E110: 51
D111: コード | E111: コード
D112: 22 | E112: 52
D113: コード | E113: コード
D114: 23 | E114: 53
D115: コード | E115: コード
D116: 24 | E116: 54
D117: コード | E117: コード
D118: 25 | E118: 55
D119: コード | E119: コード
D120: 26 | E120: 56
D121: コード | E121: コード
D122: 27 | E122: 57
D123: コード | E123: コード
D124: 28 | E124: 58
D125: コード | E125: コード
D126: 29 | E126: 59
D127: コード | E127: コード
D128: 30 | E128: 60
D129: コード
D130: 31
D131: コード
D132: 32
D133: コード
D134: 33
D135: コード
D136: 34
D137: コード
D138: 35
D139: コード
D140: 36
D141: コード
D142: 37
D143: コード
D144: 38
D145: コード
D146: 39
D147: コード
D148: 40
D149: コード
D150: 41
D151: コード
D152: 42
D153: コード
D154: 43
D155: コード
D156: 44
D157: コード
D158: 45
D159: コード
D160: 46
D161: コード
D162: 47
D163: コード
D164: 48
D165: コード
D166: 49
D167: コード
D168: 50
D169: コード
D170: 51
D171: コード
D172: 52
D173: コード
D174: 53
D175: コード
D176: 54
D177: コード
D178: 55
D179: コード
D180: 56
D181: コード
D182: 57
D183: コード
D184: 58
D185: コード
D186: 59
D187: コード
D188: 60

Sheet 簿
H1: ※月日は小数で
H2: 例：10月1日 → 10.01
A3: 月日で並び替え 入力済データ 会計簿を印刷 メニューに戻る | H3: ※｢月日｣｢コード｣は省略不可 | M3: コード
A4: を一気に消去 | M4: 29 | N4: =IF(M4="","",VLOOKUP(M4,予算!$B$7:$C$66,2)) -> その他の経費（対象外）
B5: 月日 | C5: コード | D5: 項 目 | E5: 摘 要 | F5: No | G5: 収入金額 | H5: 支出金額 | I5: 差引残額 | M5: 月日 | N5: 摘 要 | O5: No | P5: 収入金額 | Q5: 支出金額
A6: =IF(B6="","",DATE(IF(INT(B6)>=4,予算!$L$1,予算!$L$2),INT(B6),ROUND(MOD(B6,1)*100,0))) -> 2026-09-01 | B6: 9.01 | C6: 1 | D6: =IF(C6="","",VLOOKUP(C6,予算!$B$7:$C$66,2)) -> 会費 | E6: 参加費（9月分） | F6: -1 | G6: 60000 | I6: =IF(C6="","",G6-H6) -> 60000
A7: =IF(B7="","",DATE(IF(INT(B7)>=4,予算!$L$1,予算!$L$2),INT(B7),ROUND(MOD(B7,1)*100,0))) -> 2026-09-01 | B7: 9.01 | C7: 1 | D7: =IF(C7="","",VLOOKUP(C7,予算!$B$7:$C$66,2)) -> 会費 | E7: 参加費（10月分） | F7: -2 | G7: 60000 | I7: =IF(C7="","",I6+G7-H7) -> 120000
A8: =IF(B8="","",DATE(IF(INT(B8)>=4,予算!$L$1,予算!$L$2),INT(B8),ROUND(MOD(B8,1)*100,0))) -> 2026-09-02 | B8: 9.02 | C8: 6 | D8: =IF(C8="","",VLOOKUP(C8,予算!$B$7:$C$66,2)) -> 保険料（対象外） | E8: 保険料 | F8: -3 | G8: 17600 | I8: =IF(C8="","",I7+G8-H8) -> 137600
A9: =IF(B9="","",DATE(IF(INT(B9)>=4,予算!$L$1,予算!$L$2),INT(B9),ROUND(MOD(B9,1)*100,0))) -> 2026-09-02 | B9: 9.02 | C9: 27 | D9: =IF(C9="","",VLOOKUP(C9,予算!$B$7:$C$66,2)) -> 保険料（対象外） | E9: スポーツ安全保険料 | F9: 4 | H9: 17600 | I9: =IF(C9="","",I8+G9-H9) -> 120000
A10: =IF(B10="","",DATE(IF(INT(B10)>=4,予算!$L$1,予算!$L$2),INT(B10),ROUND(MOD(B10,1)*100,0))) -> 2026-09-02 | B10: 9.02 | C10: 19 | D10: =IF(C10="","",VLOOKUP(C10,予算!$B$7:$C$66,2)) -> 雑務経費 | E10: アプリ使用料 | F10: 5 | H10: 27280 | I10: 92720
A11: =IF(B11="","",DATE(IF(INT(B11)>=4,予算!$L$1,予算!$L$2),INT(B11),ROUND(MOD(B11,1)*100,0))) -> 2026-09-03 | B11: 9.03 | C11: 14 | D11: =IF(C11="","",VLOOKUP(C11,予算!$B$7:$C$66,2)) -> 印刷製本費 | E11: クラブ募集チラシ | F11: 6 | H11: 30000 | I11: 62720
A12: =IF(B12="","",DATE(IF(INT(B12)>=4,予算!$L$1,予算!$L$2),INT(B12),ROUND(MOD(B12,1)*100,0))) -> 2026-10-01 | B12: 10.01 | C12: 8 | D12: =IF(C12="","",VLOOKUP(C12,予算!$B$7:$C$66,2)) -> 補助金 | E12: 市より補助金 | F12: -7 | G12: 143000 | I12: 205720
A13: =IF(B13="","",DATE(IF(INT(B13)>=4,予算!$L$1,予算!$L$2),INT(B13),ROUND(MOD(B13,1)*100,0))) -> 2026-10-05 | B13: 10.05 | C13: 16 | D13: =IF(C13="","",VLOOKUP(C13,予算!$B$7:$C$66,2)) -> 消耗品費 | E13: バレーボール | F13: 8 | H13: 83600 | I13: 122120
A14: =IF(B14="","",DATE(IF(INT(B14)>=4,予算!$L$1,予算!$L$2),INT(B14),ROUND(MOD(B14,1)*100,0))) -> 2026-10-20 | B14: 10.2 | C14: 11 | D14: =IF(C14="","",VLOOKUP(C14,予算!$B$7:$C$66,2)) -> 諸謝金 | E14: 指導者謝礼（9月分） | F14: 9 | H14: 24000 | I14: 98120
A15: =IF(B15="","",DATE(IF(INT(B15)>=4,予算!$L$1,予算!$L$2),INT(B15),ROUND(MOD(B15,1)*100,0))) -> 2026-10-20 | B15: 10.2 | C15: 11 | D15: =IF(C15="","",VLOOKUP(C15,予算!$B$7:$C$66,2)) -> 諸謝金 | E15: 指導者謝礼（9月分）所得税納付 | F15: 9 | H15: 2728 | I15: 95392
A16: =IF(B16="","",DATE(IF(INT(B16)>=4,予算!$L$1,予算!$L$2),INT(B16),ROUND(MOD(B16,1)*100,0))) -> 2026-10-20 | B16: 10.2 | C16: 11 | D16: =IF(C16="","",VLOOKUP(C16,予算!$B$7:$C$66,2)) -> 諸謝金 | E16: 事務局スタッフ謝礼（9月分） | F16: 10 | H16: 3000 | I16: 92392
A17: =IF(B17="","",DATE(IF(INT(B17)>=4,予算!$L$1,予算!$L$2),INT(B17),ROUND(MOD(B17,1)*100,0))) -> 2026-10-20 | B17: 10.2 | C17: 11 | D17: =IF(C17="","",VLOOKUP(C17,予算!$B$7:$C$66,2)) -> 諸謝金 | E17: 事務局スタッフ謝礼（9月分）所得税納付 | F17: 10 | H17: 341 | I17: 92051
A18: =IF(B18="","",DATE(IF(INT(B18)>=4,予算!$L$1,予算!$L$2),INT(B18),ROUND(MOD(B18,1)*100,0))) -> 2026-10-20 | B18: 10.2 | C18: 11 | D18: =IF(C18="","",VLOOKUP(C18,予算!$B$7:$C$66,2)) -> 諸謝金 | E18: 見守りボランティア謝礼（9月分） | F18: 11 | H18: 16000 | I18: 76051
A19: =IF(B19="","",DATE(IF(INT(B19)>=4,予算!$L$1,予算!$L$2),INT(B19),ROUND(MOD(B19,1)*100,0))) -> 2026-10-20 | B19: 10.2 | C19: 11 | D19: =IF(C19="","",VLOOKUP(C19,予算!$B$7:$C$66,2)) -> 諸謝金 | E19: 見守りボランティア謝礼（9月分）所得税納付 | F19: 11 | H19: 1816 | I19: 74235
A20: =IF(B20="","",DATE(IF(INT(B20)>=4,予算!$L$1,予算!$L$2),INT(B20),ROUND(MOD(B20,1)*100,0))) -> 2026-11-01 | B20: 11.01 | C20: 1 | D20: =IF(C20="","",VLOOKUP(C20,予算!$B$7:$C$66,2)) -> 会費 | E20: 参加費（11月分） | F20: -12 | G20: 60000 | I20: 134235
A21: =IF(B21="","",DATE(IF(INT(B21)>=4,予算!$L$1,予算!$L$2),INT(B21),ROUND(MOD(B21,1)*100,0))) -> 2026-11-20 | B21: 11.2 | C21: 11 | D21: =IF(C21="","",VLOOKUP(C21,予算!$B$7:$C$66,2)) -> 諸謝金 | E21: 指導者謝礼（10月分） | F21: 13 | H21: 24000 | I21: 110235
A22: =IF(B22="","",DATE(IF(INT(B22)>=4,予算!$L$1,予算!$L$2),INT(B22),ROUND(MOD(B22,1)*100,0))) -> 2026-11-20 | B22: 11.2 | C22: 11 | D22: =IF(C22="","",VLOOKUP(C22,予算!$B$7:$C$66,2)) -> 諸謝金 | E22: 指導者謝礼（10月分）所得税納付 | F22: 13 | H22: 2728 | I22: 107507
A23: =IF(B23="","",DATE(IF(INT(B23)>=4,予算!$L$1,予算!$L$2),INT(B23),ROUND(MOD(B23,1)*100,0))) -> 2026-11-20 | B23: 11.2 | C23: 11 | D23: =IF(C23="","",VLOOKUP(C23,予算!$B$7:$C$66,2)) -> 諸謝金 | E23: 事務局スタッフ謝礼（10月分） | F23: 14 | H23: 3000 | I23: 104507
A24: =IF(B24="","",DATE(IF(INT(B24)>=4,予算!$L$1,予算!$L$2),INT(B24),ROUND(MOD(B24,1)*100,0))) -> 2026-11-20 | B24: 11.2 | C24: 11 | D24: =IF(C24="","",VLOOKUP(C24,予算!$B$7:$C$66,2)) -> 諸謝金 | E24: 事務局スタッフ謝礼（10月分）所得税納付 | F24: 14 | H24: 341 | I24: 104166
A25: =IF(B25="","",DATE(IF(INT(B25)>=4,予算!$L$1,予算!$L$2),INT(B25),ROUND(MOD(B25,1)*100,0))) -> 2026-11-20 | B25: 11.2 | C25: 11 | D25: =IF(C25="","",VLOOKUP(C25,予算!$B$7:$C$66,2)) -> 諸謝金 | E25: 見守りボランティア謝礼（10月分） | F25: 15 | H25: 16000 | I25: 88166
A26: =IF(B26="","",DATE(IF(INT(B26)>=4,予算!$L$1,予算!$L$2),INT(B26),ROUND(MOD(B26,1)*100,0))) -> 2026-11-20 | B26: 11.2 | C26: 11 | D26: =IF(C26="","",VLOOKUP(C26,予算!$B$7:$C$66,2)) -> 諸謝金 | E26: 見守りボランティア謝礼（10月分）所得税納付 | F26: 15 | H26: 1816 | I26: 86350
A27: =IF(B27="","",DATE(IF(INT(B27)>=4,予算!$L$1,予算!$L$2),INT(B27),ROUND(MOD(B27,1)*100,0))) -> 2026-11-21 | B27: 11.21 | C27: 12 | D27: =IF(C27="","",VLOOKUP(C27,予算!$B$7:$C$66,2)) -> 旅費 | E27: 大会交通費 | F27: 16 | H27: 42000 | I27: 44350
A28: =IF(B28="","",DATE(IF(INT(B28)>=4,予算!$L$1,予算!$L$2),INT(B28),ROUND(MOD(B28,1)*100,0))) -> 2026-12-01 | B28: 12.01 | C28: 1 | D28: =IF(C28="","",VLOOKUP(C28,予算!$B$7:$C$66,2)) -> 会費 | E28: 参加費（12月分） | F28: -17 | G28: 60000 | I28: 104350
A29: =IF(B29="","",DATE(IF(INT(B29)>=4,予算!$L$1,予算!$L$2),INT(B29),ROUND(MOD(B29,1)*100,0))) -> 2026-12-20 | B29: 12.2 | C29: 11 | D29: =IF(C29="","",VLOOKUP(C29,予算!$B$7:$C$66,2)) -> 諸謝金 | E29: 指導者謝礼（11月分） | F29: 18 | H29: 24000 | I29: 80350
A30: =IF(B30="","",DATE(IF(INT(B30)>=4,予算!$L$1,予算!$L$2),INT(B30),ROUND(MOD(B30,1)*100,0))) -> 2026-12-20 | B30: 12.2 | C30: 11 | D30: =IF(C30="","",VLOOKUP(C30,予算!$B$7:$C$66,2)) -> 諸謝金 | E30: 指導者謝礼（11月分）所得税納付 | F30: 18 | H30: 2728 | I30: 77622
A31: =IF(B31="","",DATE(IF(INT(B31)>=4,予算!$L$1,予算!$L$2),INT(B31),ROUND(MOD(B31,1)*100,0))) -> 2026-12-20 | B31: 12.2 | C31: 11 | D31: =IF(C31="","",VLOOKUP(C31,予算!$B$7:$C$66,2)) -> 諸謝金 | E31: 事務局スタッフ謝礼（11月分） | F31: 19 | H31: 3000 | I31: 74622
A32: =IF(B32="","",DATE(IF(INT(B32)>=4,予算!$L$1,予算!$L$2),INT(B32),ROUND(MOD(B32,1)*100,0))) -> 2026-12-20 | B32: 12.2 | C32: 11 | D32: =IF(C32="","",VLOOKUP(C32,予算!$B$7:$C$66,2)) -> 諸謝金 | E32: 事務局スタッフ謝礼（11月分）所得税納付 | F32: 19 | H32: 341 | I32: 74281
A33: =IF(B33="","",DATE(IF(INT(B33)>=4,予算!$L$1,予算!$L$2),INT(B33),ROUND(MOD(B33,1)*100,0))) -> 2026-12-20 | B33: 12.2 | C33: 11 | D33: =IF(C33="","",VLOOKUP(C33,予算!$B$7:$C$66,2)) -> 諸謝金 | E33: 見守りボランティア謝礼（11月分） | F33: 20 | H33: 16000 | I33: 58281
A34: =IF(B34="","",DATE(IF(INT(B34)>=4,予算!$L$1,予算!$L$2),INT(B34),ROUND(MOD(B34,1)*100,0))) -> 2026-12-20 | B34: 12.2 | C34: 11 | D34: =IF(C34="","",VLOOKUP(C34,予算!$B$7:$C$66,2)) -> 諸謝金 | E34: 見守りボランティア謝礼（11月分）所得税納付 | F34: 20 | H34: 1816 | I34: 56465
A35: =IF(B35="","",DATE(IF(INT(B35)>=4,予算!$L$1,予算!$L$2),INT(B35),ROUND(MOD(B35,1)*100,0))) -> 2026-12-21 | B35: 12.21 | C35: 13 | D35: =IF(C35="","",VLOOKUP(C35,予算!$B$7:$C$66,2)) -> 通信運搬費 | E35: 郵送料 | F35: 21 | H35: 5000 | I35: 51465
A36: =IF(B36="","",DATE(IF(INT(B36)>=4,予算!$L$1,予算!$L$2),INT(B36),ROUND(MOD(B36,1)*100,0))) -> 2027-01-01 | B36: 1.01 | C36: 1 | D36: =IF(C36="","",VLOOKUP(C36,予算!$B$7:$C$66,2)) -> 会費 | E36: 参加費（1月分） | F36: -22 | G36: 60000 | I36: 111465
A37: =IF(B37="","",DATE(IF(INT(B37)>=4,予算!$L$1,予算!$L$2),INT(B37),ROUND(MOD(B37,1)*100,0))) -> 2027-01-20 | B37: 1.2 | C37: 11 | D37: =IF(C37="","",VLOOKUP(C37,予算!$B$7:$C$66,2)) -> 諸謝金 | E37: 指導者謝礼（12月分） | F37: 23 | H37: 24000 | I37: 87465
A38: =IF(B38="","",DATE(IF(INT(B38)>=4,予算!$L$1,予算!$L$2),INT(B38),ROUND(MOD(B38,1)*100,0))) -> 2027-01-20 | B38: 1.2 | C38: 11 | D38: =IF(C38="","",VLOOKUP(C38,予算!$B$7:$C$66,2)) -> 諸謝金 | E38: 指導者謝礼（12月分）所得税納付 | F38: 23 | H38: 2728 | I38: 84737
A39: =IF(B39="","",DATE(IF(INT(B39)>=4,予算!$L$1,予算!$L$2),INT(B39),ROUND(MOD(B39,1)*100,0))) -> 2027-01-20 | B39: 1.2 | C39: 11 | D39: =IF(C39="","",VLOOKUP(C39,予算!$B$7:$C$66,2)) -> 諸謝金 | E39: 事務局スタッフ謝礼（12月分） | F39: 23 | H39: 3000 | I39: 81737
A40: =IF(B40="","",DATE(IF(INT(B40)>=4,予算!$L$1,予算!$L$2),INT(B40),ROUND(MOD(B40,1)*100,0))) -> 2027-01-20 | B40: 1.2 | C40: 11 | D40: =IF(C40="","",VLOOKUP(C40,予算!$B$7:$C$66,2)) -> 諸謝金 | E40: 事務局スタッフ謝礼（12月分）所得税納付 | F40: 24 | H40: 341 | I40: 81396
A41: =IF(B41="","",DATE(IF(INT(B41)>=4,予算!$L$1,予算!$L$2),INT(B41),ROUND(MOD(B41,1)*100,0))) -> 2027-01-20 | B41: 1.2 | C41: 11 | D41: =IF(C41="","",VLOOKUP(C41,予算!$B$7:$C$66,2)) -> 諸謝金 | E41: 見守りボランティア謝礼（12月分） | F41: 25 | H41: 16000 | I41: 65396
A42: =IF(B42="","",DATE(IF(INT(B42)>=4,予算!$L$1,予算!$L$2),INT(B42),ROUND(MOD(B42,1)*100,0))) -> 2027-01-20 | B42: 1.2 | C42: 11 | D42: =IF(C42="","",VLOOKUP(C42,予算!$B$7:$C$66,2)) -> 諸謝金 | E42: 見守りボランティア謝礼（12月分）所得税納付 | F42: 25 | H42: 1816 | I42: 63580
A43: =IF(B43="","",DATE(IF(INT(B43)>=4,予算!$L$1,予算!$L$2),INT(B43),ROUND(MOD(B43,1)*100,0))) -> 2027-01-21 | B43: 1.21 | C43: 13 | D43: =IF(C43="","",VLOOKUP(C43,予算!$B$7:$C$66,2)) -> 通信運搬費 | E43: 切手代 | F43: 26 | H43: 8000 | I43: 55580
A44: =IF(B44="","",DATE(IF(INT(B44)>=4,予算!$L$1,予算!$L$2),INT(B44),ROUND(MOD(B44,1)*100,0))) -> 2027-02-01 | B44: 2.01 | C44: 1 | D44: =IF(C44="","",VLOOKUP(C44,予算!$B$7:$C$66,2)) -> 会費 | E44: 参加費（2月分） | F44: -27 | G44: 60000 | I44: 115580
A45: =IF(B45="","",DATE(IF(INT(B45)>=4,予算!$L$1,予算!$L$2),INT(B45),ROUND(MOD(B45,1)*100,0))) -> 2027-02-15 | B45: 2.15 | C45: 3 | D45: =IF(C45="","",VLOOKUP(C45,予算!$B$7:$C$66,2)) -> 雑収入 | E45: 利息 | F45: -28 | G45: 1000 | I45: 116580
A46: =IF(B46="","",DATE(IF(INT(B46)>=4,予算!$L$1,予算!$L$2),INT(B46),ROUND(MOD(B46,1)*100,0))) -> 2027-02-20 | B46: 2.2 | C46: 11 | D46: =IF(C46="","",VLOOKUP(C46,予算!$B$7:$C$66,2)) -> 諸謝金 | E46: 指導者謝礼（1月分） | F46: 29 | H46: 24000 | I46: 92580
A47: =IF(B47="","",DATE(IF(INT(B47)>=4,予算!$L$1,予算!$L$2),INT(B47),ROUND(MOD(B47,1)*100,0))) -> 2027-02-20 | B47: 2.2 | C47: 11 | D47: =IF(C47="","",VLOOKUP(C47,予算!$B$7:$C$66,2)) -> 諸謝金 | E47: 指導者謝礼（1月分）所得税納付 | F47: 29 | H47: 2728 | I47: 89852
A48: =IF(B48="","",DATE(IF(INT(B48)>=4,予算!$L$1,予算!$L$2),INT(B48),ROUND(MOD(B48,1)*100,0))) -> 2027-02-20 | B48: 2.2 | C48: 11 | D48: =IF(C48="","",VLOOKUP(C48,予算!$B$7:$C$66,2)) -> 諸謝金 | E48: 事務局スタッフ謝礼（1月分） | F48: 30 | H48: 3000 | I48: 86852
A49: =IF(B49="","",DATE(IF(INT(B49)>=4,予算!$L$1,予算!$L$2),INT(B49),ROUND(MOD(B49,1)*100,0))) -> 2027-02-20 | B49: 2.2 | C49: 11 | D49: =IF(C49="","",VLOOKUP(C49,予算!$B$7:$C$66,2)) -> 諸謝金 | E49: 事務局スタッフ謝礼（1月分）所得税納付 | F49: 30 | H49: 341 | I49: 86511
A50: =IF(B50="","",DATE(IF(INT(B50)>=4,予算!$L$1,予算!$L$2),INT(B50),ROUND(MOD(B50,1)*100,0))) -> 2027-02-20 | B50: 2.2 | C50: 11 | D50: =IF(C50="","",VLOOKUP(C50,予算!$B$7:$C$66,2)) -> 諸謝金 | E50: 見守りボランティア謝礼（1月分） | F50: 31 | H50: 16000 | I50: 70511
A51: =IF(B51="","",DATE(IF(INT(B51)>=4,予算!$L$1,予算!$L$2),INT(B51),ROUND(MOD(B51,1)*100,0))) -> 2027-02-20 | B51: 2.2 | C51: 11 | D51: =IF(C51="","",VLOOKUP(C51,予算!$B$7:$C$66,2)) -> 諸謝金 | E51: 見守りボランティア謝礼（1月分）所得税納付 | F51: 31 | H51: 1816 | I51: 68695
A52: =IF(B52="","",DATE(IF(INT(B52)>=4,予算!$L$1,予算!$L$2),INT(B52),ROUND(MOD(B52,1)*100,0))) -> 2027-02-28 | B52: 2.28 | C52: 8 | D52: =IF(C52="","",VLOOKUP(C52,予算!$B$7:$C$66,2)) -> 補助金 | E52: 市より補助金 | F52: -32 | G52: 96000 | I52: 164695
A53: =IF(B53="","",DATE(IF(INT(B53)>=4,予算!$L$1,予算!$L$2),INT(B53),ROUND(MOD(B53,1)*100,0))) -> 2027-02-28 | B53: 2.28 | C53: 11 | D53: =IF(C53="","",VLOOKUP(C53,予算!$B$7:$C$66,2)) -> 諸謝金 | E53: 指導者謝礼（2月分） | F53: 33 | H53: 24000 | I53: 140695
A54: =IF(B54="","",DATE(IF(INT(B54)>=4,予算!$L$1,予算!$L$2),INT(B54),ROUND(MOD(B54,1)*100,0))) -> 2027-02-28 | B54: 2.28 | C54: 11 | D54: =IF(C54="","",VLOOKUP(C54,予算!$B$7:$C$66,2)) -> 諸謝金 | E54: 指導者謝礼（2月分）所得税納付 | F54: 33 | H54: 2728 | I54: 137967
A55: =IF(B55="","",DATE(IF(INT(B55)>=4,予算!$L$1,予算!$L$2),INT(B55),ROUND(MOD(B55,1)*100,0))) -> 2027-02-28 | B55: 2.28 | C55: 11 | D55: =IF(C55="","",VLOOKUP(C55,予算!$B$7:$C$66,2)) -> 諸謝金 | E55: 事務局スタッフ謝礼（2月分） | F55: 34 | H55: 3000 | I55: 134967
A56: =IF(B56="","",DATE(IF(INT(B56)>=4,予算!$L$1,予算!$L$2),INT(B56),ROUND(MOD(B56,1)*100,0))) -> 2027-02-28 | B56: 2.28 | C56: 11 | D56: =IF(C56="","",VLOOKUP(C56,予算!$B$7:$C$66,2)) -> 諸謝金 | E56: 事務局スタッフ謝礼（2月分）所得税納付 | F56: 34 | H56: 341 | I56: 134626
A57: =IF(B57="","",DATE(IF(INT(B57)>=4,予算!$L$1,予算!$L$2),INT(B57),ROUND(MOD(B57,1)*100,0))) -> 2027-02-28 | B57: 2.28 | C57: 11 | D57: =IF(C57="","",VLOOKUP(C57,予算!$B$7:$C$66,2)) -> 諸謝金 | E57: 見守りボランティア謝礼（2月分） | F57: 35 | H57: 16000 | I57: 118626
A58: =IF(B58="","",DATE(IF(INT(B58)>=4,予算!$L$1,予算!$L$2),INT(B58),ROUND(MOD(B58,1)*100,0))) -> 2027-02-28 | B58: 2.28 | C58: 11 | D58: =IF(C58="","",VLOOKUP(C58,予算!$B$7:$C$66,2)) -> 諸謝金 | E58: 見守りボランティア謝礼（2月分）所得税納付 | F58: 35 | H58: 1816 | I58: 116810
A59: =IF(B59="","",DATE(IF(INT(B59)>=4,予算!$L$1,予算!$L$2),INT(B59),ROUND(MOD(B59,1)*100,0))) -> 2027-02-28 | B59: 2.28 | C59: 17 | D59: =IF(C59="","",VLOOKUP(C59,予算!$B$7:$C$66,2)) -> 借料及び損料 | E59: 貸切バス代 | F59: 36 | H59: 116810 | I59: 0
A60: =IF(B60="","",DATE(IF(INT(B60)>=4,予算!$L$1,予算!$L$2),INT(B60),ROUND(MOD(B60,1)*100,0))) -> 2027-03-01 | B60: 3.01 | C60: 4 | D60: =IF(C60="","",VLOOKUP(C60,予算!$B$7:$C$66,2)) -> 会費（対象外） | E60: 参加費（3月分） | F60: -37 | G60: 60000 | I60: 60000
A61: =IF(B61="","",DATE(IF(INT(B61)>=4,予算!$L$1,予算!$L$2),INT(B61),ROUND(MOD(B61,1)*100,0))) -> 2027-03-25 | B61: 3.25 | C61: 25 | D61: =IF(C61="","",VLOOKUP(C61,予算!$B$7:$C$66,2)) -> 消耗品費（対象外） | E61: 事務用品 | F61: 38 | H61: 12115 | I61: 47885
A62: =IF(B62="","",DATE(IF(INT(B62)>=4,予算!$L$1,予算!$L$2),INT(B62),ROUND(MOD(B62,1)*100,0))) -> 2027-03-25 | B62: 3.25 | C62: 20 | D62: =IF(C62="","",VLOOKUP(C62,予算!$B$7:$C$66,2)) -> 諸謝金（対象外） | E62: 指導者謝礼（3月分） | F62: 39 | H62: 24000 | I62: 23885
A63: =IF(B63="","",DATE(IF(INT(B63)>=4,予算!$L$1,予算!$L$2),INT(B63),ROUND(MOD(B63,1)*100,0))) -> 2027-03-25 | B63: 3.25 | C63: 20 | D63: =IF(C63="","",VLOOKUP(C63,予算!$B$7:$C$66,2)) -> 諸謝金（対象外） | E63: 指導者謝礼（3月分）所得税納付 | F63: 39 | H63: 2728 | I63: 21157
A64: =IF(B64="","",DATE(IF(INT(B64)>=4,予算!$L$1,予算!$L$2),INT(B64),ROUND(MOD(B64,1)*100,0))) -> 2027-03-25 | B64: 3.25 | C64: 20 | D64: =IF(C64="","",VLOOKUP(C64,予算!$B$7:$C$66,2)) -> 諸謝金（対象外） | E64: 事務局スタッフ謝礼（3月分） | F64: 40 | H64: 3000 | I64: 18157
A65: =IF(B65="","",DATE(IF(INT(B65)>=4,予算!$L$1,予算!$L$2),INT(B65),ROUND(MOD(B65,1)*100,0))) -> 2027-03-25 | B65: 3.25 | C65: 20 | D65: =IF(C65="","",VLOOKUP(C65,予算!$B$7:$C$66,2)) -> 諸謝金（対象外） | E65: 事務局スタッフ謝礼（3月分）所得税納付 | F65: 40 | H65: 341 | I65: 17816
A66: =IF(B66="","",DATE(IF(INT(B66)>=4,予算!$L$1,予算!$L$2),INT(B66),ROUND(MOD(B66,1)*100,0))) -> 2027-03-25 | B66: 3.25 | C66: 20 | D66: =IF(C66="","",VLOOKUP(C66,予算!$B$7:$C$66,2)) -> 諸謝金（対象外） | E66: 見守りボランティア謝礼（3月分） | F66: 41 | H66: 16000 | I66: 1816
A67: =IF(B67="","",DATE(IF(INT(B67)>=4,予算!$L$1,予算!$L$2),INT(B67),ROUND(MOD(B67,1)*100,0))) -> 2027-03-25 | B67: 3.25 | C67: 20 | D67: =IF(C67="","",VLOOKUP(C67,予算!$B$7:$C$66,2)) -> 諸謝金（対象外） | E67: 見守りボランティア謝礼（3月分）所得税納付 | F67: 41 | H67: 1816 | I67: 0
A68: =IF(B68="","",DATE(IF(INT(B68)>=4,予算!$L$1,予算!$L$2),INT(B68),ROUND(MOD(B68,1)*100,0))) ->  | D68: =IF(C68="","",VLOOKUP(C68,予算!$B$7:$C$66,2)) -> 
A69: =IF(B69="","",DATE(IF(INT(B69)>=4,予算!$L$1,予算!$L$2),INT(B69),ROUND(MOD(B69,1)*100,0))) ->  | D69: =IF(C69="","",VLOOKUP(C69,予算!$B$7:$C$66,2)) -> 
A70: =IF(B70="","",DATE(IF(INT(B70)>=4,予算!$L$1,予算!$L$2),INT(B70),ROUND(MOD(B70,1)*100,0))) ->  | D70: =IF(C70="","",VLOOKUP(C70,予算!$B$7:$C$66,2)) -> 
A71: =IF(B71="","",DATE(IF(INT(B71)>=4,予算!$L$1,予算!$L$2),INT(B71),ROUND(MOD(B71,1)*100,0))) ->  | D71: =IF(C71="","",VLOOKUP(C71,予算!$B$7:$C$66,2)) -> 
A72: =IF(B72="","",DATE(IF(INT(B72)>=4,予算!$L$1,予算!$L$2),INT(B72),ROUND(MOD(B72,1)*100,0))) ->  | D72: =IF(C72="","",VLOOKUP(C72,予算!$B$7:$C$66,2)) -> 
A73: =IF(B73="","",DATE(IF(INT(B73)>=4,予算!$L$1,予算!$L$2),INT(B73),ROUND(MOD(B73,1)*100,0))) ->  | D73: =IF(C73="","",VLOOKUP(C73,予算!$B$7:$C$66,2)) ->  | I73: =IF(C73="","",I72+G73-H73) -> 
A74: =IF(B74="","",DATE(IF(INT(B74)>=4,予算!$L$1,予算!$L$2),INT(B74),ROUND(MOD(B74,1)*100,0))) ->  | D74: =IF(C74="","",VLOOKUP(C74,予算!$B$7:$C$66,2)) -> 
A75: =IF(B75="","",DATE(IF(INT(B75)>=4,予算!$L$1,予算!$L$2),INT(B75),ROUND(MOD(B75,1)*100,0))) ->  | D75: =IF(C75="","",VLOOKUP(C75,予算!$B$7:$C$66,2)) -> 
A76: =IF(B76="","",DATE(IF(INT(B76)>=4,予算!$L$1,予算!$L$2),INT(B76),ROUND(MOD(B76,1)*100,0))) ->  | D76: =IF(C76="","",VLOOKUP(C76,予算!$B$7:$C$66,2)) -> 
A77: =IF(B77="","",DATE(IF(INT(B77)>=4,予算!$L$1,予算!$L$2),INT(B77),ROUND(MOD(B77,1)*100,0))) ->  | D77: =IF(C77="","",VLOOKUP(C77,予算!$B$7:$C$66,2)) -> 
A78: =IF(B78="","",DATE(IF(INT(B78)>=4,予算!$L$1,予算!$L$2),INT(B78),ROUND(MOD(B78,1)*100,0))) ->  | D78: =IF(C78="","",VLOOKUP(C78,予算!$B$7:$C$66,2)) -> 
A79: =IF(B79="","",DATE(IF(INT(B79)>=4,予算!$L$1,予算!$L$2),INT(B79),ROUND(MOD(B79,1)*100,0))) ->  | D79: =IF(C79="","",VLOOKUP(C79,予算!$B$7:$C$66,2)) -> 
A80: =IF(B80="","",DATE(IF(INT(B80)>=4,予算!$L$1,予算!$L$2),INT(B80),ROUND(MOD(B80,1)*100,0))) ->  | D80: =IF(C80="","",VLOOKUP(C80,予算!$B$7:$C$66,2)) -> 
A81: =IF(B81="","",DATE(IF(INT(B81)>=4,予算!$L$1,予算!$L$2),INT(B81),ROUND(MOD(B81,1)*100,0))) ->  | D81: =IF(C81="","",VLOOKUP(C81,予算!$B$7:$C$66,2)) -> 
A82: =IF(B82="","",DATE(IF(INT(B82)>=4,予算!$L$1,予算!$L$2),INT(B82),ROUND(MOD(B82,1)*100,0))) ->  | D82: =IF(C82="","",VLOOKUP(C82,予算!$B$7:$C$66,2)) -> 
A83: =IF(B83="","",DATE(IF(INT(B83)>=4,予算!$L$1,予算!$L$2),INT(B83),ROUND(MOD(B83,1)*100,0))) ->  | D83: =IF(C83="","",VLOOKUP(C83,予算!$B$7:$C$66,2)) -> 
A84: =IF(B84="","",DATE(IF(INT(B84)>=4,予算!$L$1,予算!$L$2),INT(B84),ROUND(MOD(B84,1)*100,0))) ->  | D84: =IF(C84="","",VLOOKUP(C84,予算!$B$7:$C$66,2)) -> 
A85: =IF(B85="","",DATE(IF(INT(B85)>=4,予算!$L$1,予算!$L$2),INT(B85),ROUND(MOD(B85,1)*100,0))) ->  | D85: =IF(C85="","",VLOOKUP(C85,予算!$B$7:$C$66,2)) -> 
A86: =IF(B86="","",DATE(IF(INT(B86)>=4,予算!$L$1,予算!$L$2),INT(B86),ROUND(MOD(B86,1)*100,0))) ->  | D86: =IF(C86="","",VLOOKUP(C86,予算!$B$7:$C$66,2)) -> 
A87: =IF(B87="","",DATE(IF(INT(B87)>=4,予算!$L$1,予算!$L$2),INT(B87),ROUND(MOD(B87,1)*100,0))) ->  | D87: =IF(C87="","",VLOOKUP(C87,予算!$B$7:$C$66,2)) -> 
A88: =IF(B88="","",DATE(IF(INT(B88)>=4,予算!$L$1,予算!$L$2),INT(B88),ROUND(MOD(B88,1)*100,0))) ->  | D88: =IF(C88="","",VLOOKUP(C88,予算!$B$7:$C$66,2)) -> 
A89: =IF(B89="","",DATE(IF(INT(B89)>=4,予算!$L$1,予算!$L$2),INT(B89),ROUND(MOD(B89,1)*100,0))) ->  | D89: =IF(C89="","",VLOOKUP(C89,予算!$B$7:$C$66,2)) -> 
A90: =IF(B90="","",DATE(IF(INT(B90)>=4,予算!$L$1,予算!$L$2),INT(B90),ROUND(MOD(B90,1)*100,0))) ->  | D90: =IF(C90="","",VLOOKUP(C90,予算!$B$7:$C$66,2)) -> 
A91: =IF(B91="","",DATE(IF(INT(B91)>=4,予算!$L$1,予算!$L$2),INT(B91),ROUND(MOD(B91,1)*100,0))) ->  | D91: =IF(C91="","",VLOOKUP(C91,予算!$B$7:$C$66,2)) -> 
A92: =IF(B92="","",DATE(IF(INT(B92)>=4,予算!$L$1,予算!$L$2),INT(B92),ROUND(MOD(B92,1)*100,0))) ->  | D92: =IF(C92="","",VLOOKUP(C92,予算!$B$7:$C$66,2)) -> 
A93: =IF(B93="","",DATE(IF(INT(B93)>=4,予算!$L$1,予算!$L$2),INT(B93),ROUND(MOD(B93,1)*100,0))) ->  | D93: =IF(C93="","",VLOOKUP(C93,予算!$B$7:$C$66,2)) -> 
A94: =IF(B94="","",DATE(IF(INT(B94)>=4,予算!$L$1,予算!$L$2),INT(B94),ROUND(MOD(B94,1)*100,0))) ->  | D94: =IF(C94="","",VLOOKUP(C94,予算!$B$7:$C$66,2)) -> 
A95: =IF(B95="","",DATE(IF(INT(B95)>=4,予算!$L$1,予算!$L$2),INT(B95),ROUND(MOD(B95,1)*100,0))) ->  | D95: =IF(C95="","",VLOOKUP(C95,予算!$B$7:$C$66,2)) -> 
A96: =IF(B96="","",DATE(IF(INT(B96)>=4,予算!$L$1,予算!$L$2),INT(B96),ROUND(MOD(B96,1)*100,0))) ->  | D96: =IF(C96="","",VLOOKUP(C96,予算!$B$7:$C$66,2)) -> 
A97: =IF(B97="","",DATE(IF(INT(B97)>=4,予算!$L$1,予算!$L$2),INT(B97),ROUND(MOD(B97,1)*100,0))) ->  | D97: =IF(C97="","",VLOOKUP(C97,予算!$B$7:$C$66,2)) -> 
A98: =IF(B98="","",DATE(IF(INT(B98)>=4,予算!$L$1,予算!$L$2),INT(B98),ROUND(MOD(B98,1)*100,0))) ->  | D98: =IF(C98="","",VLOOKUP(C98,予算!$B$7:$C$66,2)) -> 
A99: =IF(B99="","",DATE(IF(INT(B99)>=4,予算!$L$1,予算!$L$2),INT(B99),ROUND(MOD(B99,1)*100,0))) ->  | D99: =IF(C99="","",VLOOKUP(C99,予算!$B$7:$C$66,2)) -> 
A100: =IF(B100="","",DATE(IF(INT(B100)>=4,予算!$L$1,予算!$L$2),INT(B100),ROUND(MOD(B100,1)*100,0))) ->  | D100: =IF(C100="","",VLOOKUP(C100,予算!$B$7:$C$66,2)) -> 
A101: =IF(B101="","",DATE(IF(INT(B101)>=4,予算!$L$1,予算!$L$2),INT(B101),ROUND(MOD(B101,1)*100,0))) ->  | D101: =IF(C101="","",VLOOKUP(C101,予算!$B$7:$C$66,2)) -> 
A102: =IF(B102="","",DATE(IF(INT(B102)>=4,予算!$L$1,予算!$L$2),INT(B102),ROUND(MOD(B102,1)*100,0))) ->  | D102: =IF(C102="","",VLOOKUP(C102,予算!$B$7:$C$66,2)) -> 
A103: =IF(B103="","",DATE(IF(INT(B103)>=4,予算!$L$1,予算!$L$2),INT(B103),ROUND(MOD(B103,1)*100,0))) ->  | D103: =IF(C103="","",VLOOKUP(C103,予算!$B$7:$C$66,2)) -> 
A104: =IF(B104="","",DATE(IF(INT(B104)>=4,予算!$L$1,予算!$L$2),INT(B104),ROUND(MOD(B104,1)*100,0))) ->  | D104: =IF(C104="","",VLOOKUP(C104,予算!$B$7:$C$66,2)) -> 
A105: =IF(B105="","",DATE(IF(INT(B105)>=4,予算!$L$1,予算!$L$2),INT(B105),ROUND(MOD(B105,1)*100,0))) ->  | D105: =IF(C105="","",VLOOKUP(C105,予算!$B$7:$C$66,2)) -> 
A106: =IF(B106="","",DATE(IF(INT(B106)>=4,予算!$L$1,予算!$L$2),INT(B106),ROUND(MOD(B106,1)*100,0))) ->  | D106: =IF(C106="","",VLOOKUP(C106,予算!$B$7:$C$66,2)) -> 
A107: =IF(B107="","",DATE(IF(INT(B107)>=4,予算!$L$1,予算!$L$2),INT(B107),ROUND(MOD(B107,1)*100,0))) ->  | D107: =IF(C107="","",VLOOKUP(C107,予算!$B$7:$C$66,2)) -> 
A108: =IF(B108="","",DATE(IF(INT(B108)>=4,予算!$L$1,予算!$L$2),INT(B108),ROUND(MOD(B108,1)*100,0))) ->  | D108: =IF(C108="","",VLOOKUP(C108,予算!$B$7:$C$66,2)) -> 
A109: =IF(B109="","",DATE(IF(INT(B109)>=4,予算!$L$1,予算!$L$2),INT(B109),ROUND(MOD(B109,1)*100,0))) ->  | D109: =IF(C109="","",VLOOKUP(C109,予算!$B$7:$C$66,2)) -> 
A110: =IF(B110="","",DATE(IF(INT(B110)>=4,予算!$L$1,予算!$L$2),INT(B110),ROUND(MOD(B110,1)*100,0))) ->  | D110: =IF(C110="","",VLOOKUP(C110,予算!$B$7:$C$66,2)) -> 
A111: =IF(B111="","",DATE(IF(INT(B111)>=4,予算!$L$1,予算!$L$2),INT(B111),ROUND(MOD(B111,1)*100,0))) ->  | D111: =IF(C111="","",VLOOKUP(C111,予算!$B$7:$C$66,2)) -> 
A112: =IF(B112="","",DATE(IF(INT(B112)>=4,予算!$L$1,予算!$L$2),INT(B112),ROUND(MOD(B112,1)*100,0))) ->  | D112: =IF(C112="","",VLOOKUP(C112,予算!$B$7:$C$66,2)) -> 
A113: =IF(B113="","",DATE(IF(INT(B113)>=4,予算!$L$1,予算!$L$2),INT(B113),ROUND(MOD(B113,1)*100,0))) ->  | D113: =IF(C113="","",VLOOKUP(C113,予算!$B$7:$C$66,2)) -> 
A114: =IF(B114="","",DATE(IF(INT(B114)>=4,予算!$L$1,予算!$L$2),INT(B114),ROUND(MOD(B114,1)*100,0))) ->  | D114: =IF(C114="","",VLOOKUP(C114,予算!$B$7:$C$66,2)) -> 
A115: =IF(B115="","",DATE(IF(INT(B115)>=4,予算!$L$1,予算!$L$2),INT(B115),ROUND(MOD(B115,1)*100,0))) ->  | D115: =IF(C115="","",VLOOKUP(C115,予算!$B$7:$C$66,2)) -> 
A116: =IF(B116="","",DATE(IF(INT(B116)>=4,予算!$L$1,予算!$L$2),INT(B116),ROUND(MOD(B116,1)*100,0))) ->  | D116: =IF(C116="","",VLOOKUP(C116,予算!$B$7:$C$66,2)) -> 
A117: =IF(B117="","",DATE(IF(INT(B117)>=4,予算!$L$1,予算!$L$2),INT(B117),ROUND(MOD(B117,1)*100,0))) ->  | D117: =IF(C117="","",VLOOKUP(C117,予算!$B$7:$C$66,2)) -> 
A118: =IF(B118="","",DATE(IF(INT(B118)>=4,予算!$L$1,予算!$L$2),INT(B118),ROUND(MOD(B118,1)*100,0))) ->  | D118: =IF(C118="","",VLOOKUP(C118,予算!$B$7:$C$66,2)) -> 
A119: =IF(B119="","",DATE(IF(INT(B119)>=4,予算!$L$1,予算!$L$2),INT(B119),ROUND(MOD(B119,1)*100,0))) ->  | D119: =IF(C119="","",VLOOKUP(C119,予算!$B$7:$C$66,2)) -> 
A120: =IF(B120="","",DATE(IF(INT(B120)>=4,予算!$L$1,予算!$L$2),INT(B120),ROUND(MOD(B120,1)*100,0))) ->  | D120: =IF(C120="","",VLOOKUP(C120,予算!$B$7:$C$66,2)) -> 
A121: =IF(B121="","",DATE(IF(INT(B121)>=4,予算!$L$1,予算!$L$2),INT(B121),ROUND(MOD(B121,1)*100,0))) ->  | D121: =IF(C121="","",VLOOKUP(C121,予算!$B$7:$C$66,2)) -> 
A122: =IF(B122="","",DATE(IF(INT(B122)>=4,予算!$L$1,予算!$L$2),INT(B122),ROUND(MOD(B122,1)*100,0))) ->  | D122: =IF(C122="","",VLOOKUP(C122,予算!$B$7:$C$66,2)) -> 
A123: =IF(B123="","",DATE(IF(INT(B123)>=4,予算!$L$1,予算!$L$2),INT(B123),ROUND(MOD(B123,1)*100,0))) ->  | D123: =IF(C123="","",VLOOKUP(C123,予算!$B$7:$C$66,2)) -> 
A124: =IF(B124="","",DATE(IF(INT(B124)>=4,予算!$L$1,予算!$L$2),INT(B124),ROUND(MOD(B124,1)*100,0))) ->  | D124: =IF(C124="","",VLOOKUP(C124,予算!$B$7:$C$66,2)) -> 
A125: =IF(B125="","",DATE(IF(INT(B125)>=4,予算!$L$1,予算!$L$2),INT(B125),ROUND(MOD(B125,1)*100,0))) ->  | D125: =IF(C125="","",VLOOKUP(C125,予算!$B$7:$C$66,2)) -> 
A126: =IF(B126="","",DATE(IF(INT(B126)>=4,予算!$L$1,予算!$L$2),INT(B126),ROUND(MOD(B126,1)*100,0))) ->  | D126: =IF(C126="","",VLOOKUP(C126,予算!$B$7:$C$66,2)) -> 
A127: =IF(B127="","",DATE(IF(INT(B127)>=4,予算!$L$1,予算!$L$2),INT(B127),ROUND(MOD(B127,1)*100,0))) ->  | D127: =IF(C127="","",VLOOKUP(C127,予算!$B$7:$C$66,2)) -> 
A128: =IF(B128="","",DATE(IF(INT(B128)>=4,予算!$L$1,予算!$L$2),INT(B128),ROUND(MOD(B128,1)*100,0))) ->  | D128: =IF(C128="","",VLOOKUP(C128,予算!$B$7:$C$66,2)) -> 
A129: =IF(B129="","",DATE(IF(INT(B129)>=4,予算!$L$1,予算!$L$2),INT(B129),ROUND(MOD(B129,1)*100,0))) ->  | D129: =IF(C129="","",VLOOKUP(C129,予算!$B$7:$C$66,2)) -> 
A130: =IF(B130="","",DATE(IF(INT(B130)>=4,予算!$L$1,予算!$L$2),INT(B130),ROUND(MOD(B130,1)*100,0))) ->  | D130: =IF(C130="","",VLOOKUP(C130,予算!$B$7:$C$66,2)) -> 
A131: =IF(B131="","",DATE(IF(INT(B131)>=4,予算!$L$1,予算!$L$2),INT(B131),ROUND(MOD(B131,1)*100,0))) ->  | D131: =IF(C131="","",VLOOKUP(C131,予算!$B$7:$C$66,2)) -> 
A132: =IF(B132="","",DATE(IF(INT(B132)>=4,予算!$L$1,予算!$L$2),INT(B132),ROUND(MOD(B132,1)*100,0))) ->  | D132: =IF(C132="","",VLOOKUP(C132,予算!$B$7:$C$66,2)) -> 
A133: =IF(B133="","",DATE(IF(INT(B133)>=4,予算!$L$1,予算!$L$2),INT(B133),ROUND(MOD(B133,1)*100,0))) ->  | D133: =IF(C133="","",VLOOKUP(C133,予算!$B$7:$C$66,2)) -> 
A134: =IF(B134="","",DATE(IF(INT(B134)>=4,予算!$L$1,予算!$L$2),INT(B134),ROUND(MOD(B134,1)*100,0))) ->  | D134: =IF(C134="","",VLOOKUP(C134,予算!$B$7:$C$66,2)) -> 
A135: =IF(B135="","",DATE(IF(INT(B135)>=4,予算!$L$1,予算!$L$2),INT(B135),ROUND(MOD(B135,1)*100,0))) ->  | D135: =IF(C135="","",VLOOKUP(C135,予算!$B$7:$C$66,2)) -> 
A136: =IF(B136="","",DATE(IF(INT(B136)>=4,予算!$L$1,予算!$L$2),INT(B136),ROUND(MOD(B136,1)*100,0))) ->  | D136: =IF(C136="","",VLOOKUP(C136,予算!$B$7:$C$66,2)) -> 
A137: =IF(B137="","",DATE(IF(INT(B137)>=4,予算!$L$1,予算!$L$2),INT(B137),ROUND(MOD(B137,1)*100,0))) ->  | D137: =IF(C137="","",VLOOKUP(C137,予算!$B$7:$C$66,2)) ->  | I137: =IF(C137="","",I136+G137-H137) -> 
A138: =IF(B138="","",DATE(IF(INT(B138)>=4,予算!$L$1,予算!$L$2),INT(B138),ROUND(MOD(B138,1)*100,0))) ->  | D138: =IF(C138="","",VLOOKUP(C138,予算!$B$7:$C$66,2)) -> 
A139: =IF(B139="","",DATE(IF(INT(B139)>=4,予算!$L$1,予算!$L$2),INT(B139),ROUND(MOD(B139,1)*100,0))) ->  | D139: =IF(C139="","",VLOOKUP(C139,予算!$B$7:$C$66,2)) -> 
A140: =IF(B140="","",DATE(IF(INT(B140)>=4,予算!$L$1,予算!$L$2),INT(B140),ROUND(MOD(B140,1)*100,0))) ->  | D140: =IF(C140="","",VLOOKUP(C140,予算!$B$7:$C$66,2)) -> 
A141: =IF(B141="","",DATE(IF(INT(B141)>=4,予算!$L$1,予算!$L$2),INT(B141),ROUND(MOD(B141,1)*100,0))) ->  | D141: =IF(C141="","",VLOOKUP(C141,予算!$B$7:$C$66,2)) -> 
A142: =IF(B142="","",DATE(IF(INT(B142)>=4,予算!$L$1,予算!$L$2),INT(B142),ROUND(MOD(B142,1)*100,0))) ->  | D142: =IF(C142="","",VLOOKUP(C142,予算!$B$7:$C$66,2)) -> 
A143: =IF(B143="","",DATE(IF(INT(B143)>=4,予算!$L$1,予算!$L$2),INT(B143),ROUND(MOD(B143,1)*100,0))) ->  | D143: =IF(C143="","",VLOOKUP(C143,予算!$B$7:$C$66,2)) -> 
A144: =IF(B144="","",DATE(IF(INT(B144)>=4,予算!$L$1,予算!$L$2),INT(B144),ROUND(MOD(B144,1)*100,0))) ->  | D144: =IF(C144="","",VLOOKUP(C144,予算!$B$7:$C$66,2)) -> 
A145: =IF(B145="","",DATE(IF(INT(B145)>=4,予算!$L$1,予算!$L$2),INT(B145),ROUND(MOD(B145,1)*100,0))) ->  | D145: =IF(C145="","",VLOOKUP(C145,予算!$B$7:$C$66,2)) -> 
A146: =IF(B146="","",DATE(IF(INT(B146)>=4,予算!$L$1,予算!$L$2),INT(B146),ROUND(MOD(B146,1)*100,0))) ->  | D146: =IF(C146="","",VLOOKUP(C146,予算!$B$7:$C$66,2)) -> 
A147: =IF(B147="","",DATE(IF(INT(B147)>=4,予算!$L$1,予算!$L$2),INT(B147),ROUND(MOD(B147,1)*100,0))) ->  | D147: =IF(C147="","",VLOOKUP(C147,予算!$B$7:$C$66,2)) -> 
A148: =IF(B148="","",DATE(IF(INT(B148)>=4,予算!$L$1,予算!$L$2),INT(B148),ROUND(MOD(B148,1)*100,0))) ->  | D148: =IF(C148="","",VLOOKUP(C148,予算!$B$7:$C$66,2)) -> 
A149: =IF(B149="","",DATE(IF(INT(B149)>=4,予算!$L$1,予算!$L$2),INT(B149),ROUND(MOD(B149,1)*100,0))) ->  | D149: =IF(C149="","",VLOOKUP(C149,予算!$B$7:$C$66,2)) -> 
A150: =IF(B150="","",DATE(IF(INT(B150)>=4,予算!$L$1,予算!$L$2),INT(B150),ROUND(MOD(B150,1)*100,0))) ->  | D150: =IF(C150="","",VLOOKUP(C150,予算!$B$7:$C$66,2)) -> 
A151: =IF(B151="","",DATE(IF(INT(B151)>=4,予算!$L$1,予算!$L$2),INT(B151),ROUND(MOD(B151,1)*100,0))) ->  | D151: =IF(C151="","",VLOOKUP(C151,予算!$B$7:$C$66,2)) -> 
A152: =IF(B152="","",DATE(IF(INT(B152)>=4,予算!$L$1,予算!$L$2),INT(B152),ROUND(MOD(B152,1)*100,0))) ->  | D152: =IF(C152="","",VLOOKUP(C152,予算!$B$7:$C$66,2)) -> 
A153: =IF(B153="","",DATE(IF(INT(B153)>=4,予算!$L$1,予算!$L$2),INT(B153),ROUND(MOD(B153,1)*100,0))) ->  | D153: =IF(C153="","",VLOOKUP(C153,予算!$B$7:$C$66,2)) -> 
A154: =IF(B154="","",DATE(IF(INT(B154)>=4,予算!$L$1,予算!$L$2),INT(B154),ROUND(MOD(B154,1)*100,0))) ->  | D154: =IF(C154="","",VLOOKUP(C154,予算!$B$7:$C$66,2)) -> 
A155: =IF(B155="","",DATE(IF(INT(B155)>=4,予算!$L$1,予算!$L$2),INT(B155),ROUND(MOD(B155,1)*100,0))) ->  | D155: =IF(C155="","",VLOOKUP(C155,予算!$B$7:$C$66,2)) -> 
A156: =IF(B156="","",DATE(IF(INT(B156)>=4,予算!$L$1,予算!$L$2),INT(B156),ROUND(MOD(B156,1)*100,0))) ->  | D156: =IF(C156="","",VLOOKUP(C156,予算!$B$7:$C$66,2)) -> 
A157: =IF(B157="","",DATE(IF(INT(B157)>=4,予算!$L$1,予算!$L$2),INT(B157),ROUND(MOD(B157,1)*100,0))) ->  | D157: =IF(C157="","",VLOOKUP(C157,予算!$B$7:$C$66,2)) -> 
A158: =IF(B158="","",DATE(IF(INT(B158)>=4,予算!$L$1,予算!$L$2),INT(B158),ROUND(MOD(B158,1)*100,0))) ->  | D158: =IF(C158="","",VLOOKUP(C158,予算!$B$7:$C$66,2)) -> 
A159: =IF(B159="","",DATE(IF(INT(B159)>=4,予算!$L$1,予算!$L$2),INT(B159),ROUND(MOD(B159,1)*100,0))) ->  | D159: =IF(C159="","",VLOOKUP(C159,予算!$B$7:$C$66,2)) -> 
A160: =IF(B160="","",DATE(IF(INT(B160)>=4,予算!$L$1,予算!$L$2),INT(B160),ROUND(MOD(B160,1)*100,0))) ->  | D160: =IF(C160="","",VLOOKUP(C160,予算!$B$7:$C$66,2)) -> 
A161: =IF(B161="","",DATE(IF(INT(B161)>=4,予算!$L$1,予算!$L$2),INT(B161),ROUND(MOD(B161,1)*100,0))) ->  | D161: =IF(C161="","",VLOOKUP(C161,予算!$B$7:$C$66,2)) -> 
A162: =IF(B162="","",DATE(IF(INT(B162)>=4,予算!$L$1,予算!$L$2),INT(B162),ROUND(MOD(B162,1)*100,0))) ->  | D162: =IF(C162="","",VLOOKUP(C162,予算!$B$7:$C$66,2)) -> 
A163: =IF(B163="","",DATE(IF(INT(B163)>=4,予算!$L$1,予算!$L$2),INT(B163),ROUND(MOD(B163,1)*100,0))) ->  | D163: =IF(C163="","",VLOOKUP(C163,予算!$B$7:$C$66,2)) -> 
A164: =IF(B164="","",DATE(IF(INT(B164)>=4,予算!$L$1,予算!$L$2),INT(B164),ROUND(MOD(B164,1)*100,0))) ->  | D164: =IF(C164="","",VLOOKUP(C164,予算!$B$7:$C$66,2)) -> 
A165: =IF(B165="","",DATE(IF(INT(B165)>=4,予算!$L$1,予算!$L$2),INT(B165),ROUND(MOD(B165,1)*100,0))) ->  | D165: =IF(C165="","",VLOOKUP(C165,予算!$B$7:$C$66,2)) -> 
A166: =IF(B166="","",DATE(IF(INT(B166)>=4,予算!$L$1,予算!$L$2),INT(B166),ROUND(MOD(B166,1)*100,0))) ->  | D166: =IF(C166="","",VLOOKUP(C166,予算!$B$7:$C$66,2)) -> 
A167: =IF(B167="","",DATE(IF(INT(B167)>=4,予算!$L$1,予算!$L$2),INT(B167),ROUND(MOD(B167,1)*100,0))) ->  | D167: =IF(C167="","",VLOOKUP(C167,予算!$B$7:$C$66,2)) -> 
A168: =IF(B168="","",DATE(IF(INT(B168)>=4,予算!$L$1,予算!$L$2),INT(B168),ROUND(MOD(B168,1)*100,0))) ->  | D168: =IF(C168="","",VLOOKUP(C168,予算!$B$7:$C$66,2)) -> 
A169: =IF(B169="","",DATE(IF(INT(B169)>=4,予算!$L$1,予算!$L$2),INT(B169),ROUND(MOD(B169,1)*100,0))) ->  | D169: =IF(C169="","",VLOOKUP(C169,予算!$B$7:$C$66,2)) -> 
A170: =IF(B170="","",DATE(IF(INT(B170)>=4,予算!$L$1,予算!$L$2),INT(B170),ROUND(MOD(B170,1)*100,0))) ->  | D170: =IF(C170="","",VLOOKUP(C170,予算!$B$7:$C$66,2)) -> 
A171: =IF(B171="","",DATE(IF(INT(B171)>=4,予算!$L$1,予算!$L$2),INT(B171),ROUND(MOD(B171,1)*100,0))) ->  | D171: =IF(C171="","",VLOOKUP(C171,予算!$B$7:$C$66,2)) -> 
A172: =IF(B172="","",DATE(IF(INT(B172)>=4,予算!$L$1,予算!$L$2),INT(B172),ROUND(MOD(B172,1)*100,0))) ->  | D172: =IF(C172="","",VLOOKUP(C172,予算!$B$7:$C$66,2)) -> 
A173: =IF(B173="","",DATE(IF(INT(B173)>=4,予算!$L$1,予算!$L$2),INT(B173),ROUND(MOD(B173,1)*100,0))) ->  | D173: =IF(C173="","",VLOOKUP(C173,予算!$B$7:$C$66,2)) -> 
A174: =IF(B174="","",DATE(IF(INT(B174)>=4,予算!$L$1,予算!$L$2),INT(B174),ROUND(MOD(B174,1)*100,0))) ->  | D174: =IF(C174="","",VLOOKUP(C174,予算!$B$7:$C$66,2)) -> 
A175: =IF(B175="","",DATE(IF(INT(B175)>=4,予算!$L$1,予算!$L$2),INT(B175),ROUND(MOD(B175,1)*100,0))) ->  | D175: =IF(C175="","",VLOOKUP(C175,予算!$B$7:$C$66,2)) -> 
A176: =IF(B176="","",DATE(IF(INT(B176)>=4,予算!$L$1,予算!$L$2),INT(B176),ROUND(MOD(B176,1)*100,0))) ->  | D176: =IF(C176="","",VLOOKUP(C176,予算!$B$7:$C$66,2)) -> 
A177: =IF(B177="","",DATE(IF(INT(B177)>=4,予算!$L$1,予算!$L$2),INT(B177),ROUND(MOD(B177,1)*100,0))) ->  | D177: =IF(C177="","",VLOOKUP(C177,予算!$B$7:$C$66,2)) -> 
A178: =IF(B178="","",DATE(IF(INT(B178)>=4,予算!$L$1,予算!$L$2),INT(B178),ROUND(MOD(B178,1)*100,0))) ->  | D178: =IF(C178="","",VLOOKUP(C178,予算!$B$7:$C$66,2)) -> 
A179: =IF(B179="","",DATE(IF(INT(B179)>=4,予算!$L$1,予算!$L$2),INT(B179),ROUND(MOD(B179,1)*100,0))) ->  | D179: =IF(C179="","",VLOOKUP(C179,予算!$B$7:$C$66,2)) -> 
A180: =IF(B180="","",DATE(IF(INT(B180)>=4,予算!$L$1,予算!$L$2),INT(B180),ROUND(MOD(B180,1)*100,0))) ->  | D180: =IF(C180="","",VLOOKUP(C180,予算!$B$7:$C$66,2)) -> 
A181: =IF(B181="","",DATE(IF(INT(B181)>=4,予算!$L$1,予算!$L$2),INT(B181),ROUND(MOD(B181,1)*100,0))) ->  | D181: =IF(C181="","",VLOOKUP(C181,予算!$B$7:$C$66,2)) -> 
A182: =IF(B182="","",DATE(IF(INT(B182)>=4,予算!$L$1,予算!$L$2),INT(B182),ROUND(MOD(B182,1)*100,0))) ->  | D182: =IF(C182="","",VLOOKUP(C182,予算!$B$7:$C$66,2)) -> 
A183: =IF(B183="","",DATE(IF(INT(B183)>=4,予算!$L$1,予算!$L$2),INT(B183),ROUND(MOD(B183,1)*100,0))) ->  | D183: =IF(C183="","",VLOOKUP(C183,予算!$B$7:$C$66,2)) -> 
A184: =IF(B184="","",DATE(IF(INT(B184)>=4,予算!$L$1,予算!$L$2),INT(B184),ROUND(MOD(B184,1)*100,0))) ->  | D184: =IF(C184="","",VLOOKUP(C184,予算!$B$7:$C$66,2)) -> 
A185: =IF(B185="","",DATE(IF(INT(B185)>=4,予算!$L$1,予算!$L$2),INT(B185),ROUND(MOD(B185,1)*100,0))) ->  | D185: =IF(C185="","",VLOOKUP(C185,予算!$B$7:$C$66,2)) -> 
A186: =IF(B186="","",DATE(IF(INT(B186)>=4,予算!$L$1,予算!$L$2),INT(B186),ROUND(MOD(B186,1)*100,0))) ->  | D186: =IF(C186="","",VLOOKUP(C186,予算!$B$7:$C$66,2)) -> 
A187: =IF(B187="","",DATE(IF(INT(B187)>=4,予算!$L$1,予算!$L$2),INT(B187),ROUND(MOD(B187,1)*100,0))) ->  | D187: =IF(C187="","",VLOOKUP(C187,予算!$B$7:$C$66,2)) -> 
A188: =IF(B188="","",DATE(IF(INT(B188)>=4,予算!$L$1,予算!$L$2),INT(B188),ROUND(MOD(B188,1)*100,0))) ->  | D188: =IF(C188="","",VLOOKUP(C188,予算!$B$7:$C$66,2)) -> 
A189: =IF(B189="","",DATE(IF(INT(B189)>=4,予算!$L$1,予算!$L$2),INT(B189),ROUND(MOD(B189,1)*100,0))) ->  | D189: =IF(C189="","",VLOOKUP(C189,予算!$B$7:$C$66,2)) -> 
A190: =IF(B190="","",DATE(IF(INT(B190)>=4,予算!$L$1,予算!$L$2),INT(B190),ROUND(MOD(B190,1)*100,0))) ->  | D190: =IF(C190="","",VLOOKUP(C190,予算!$B$7:$C$66,2)) -> 
A191: =IF(B191="","",DATE(IF(INT(B191)>=4,予算!$L$1,予算!$L$2),INT(B191),ROUND(MOD(B191,1)*100,0))) ->  | D191: =IF(C191="","",VLOOKUP(C191,予算!$B$7:$C$66,2)) -> 
A192: =IF(B192="","",DATE(IF(INT(B192)>=4,予算!$L$1,予算!$L$2),INT(B192),ROUND(MOD(B192,1)*100,0))) ->  | D192: =IF(C192="","",VLOOKUP(C192,予算!$B$7:$C$66,2)) -> 
A193: =IF(B193="","",DATE(IF(INT(B193)>=4,予算!$L$1,予算!$L$2),INT(B193),ROUND(MOD(B193,1)*100,0))) ->  | D193: =IF(C193="","",VLOOKUP(C193,予算!$B$7:$C$66,2)) -> 
A194: =IF(B194="","",DATE(IF(INT(B194)>=4,予算!$L$1,予算!$L$2),INT(B194),ROUND(MOD(B194,1)*100,0))) ->  | D194: =IF(C194="","",VLOOKUP(C194,予算!$B$7:$C$66,2)) -> 
A195: =IF(B195="","",DATE(IF(INT(B195)>=4,予算!$L$1,予算!$L$2),INT(B195),ROUND(MOD(B195,1)*100,0))) ->  | D195: =IF(C195="","",VLOOKUP(C195,予算!$B$7:$C$66,2)) -> 
A196: =IF(B196="","",DATE(IF(INT(B196)>=4,予算!$L$1,予算!$L$2),INT(B196),ROUND(MOD(B196,1)*100,0))) ->  | D196: =IF(C196="","",VLOOKUP(C196,予算!$B$7:$C$66,2)) -> 
A197: =IF(B197="","",DATE(IF(INT(B197)>=4,予算!$L$1,予算!$L$2),INT(B197),ROUND(MOD(B197,1)*100,0))) ->  | D197: =IF(C197="","",VLOOKUP(C197,予算!$B$7:$C$66,2)) -> 
A198: =IF(B198="","",DATE(IF(INT(B198)>=4,予算!$L$1,予算!$L$2),INT(B198),ROUND(MOD(B198,1)*100,0))) ->  | D198: =IF(C198="","",VLOOKUP(C198,予算!$B$7:$C$66,2)) -> 
A199: =IF(B199="","",DATE(IF(INT(B199)>=4,予算!$L$1,予算!$L$2),INT(B199),ROUND(MOD(B199,1)*100,0))) ->  | D199: =IF(C199="","",VLOOKUP(C199,予算!$B$7:$C$66,2)) -> 
A200: =IF(B200="","",DATE(IF(INT(B200)>=4,予算!$L$1,予算!$L$2),INT(B200),ROUND(MOD(B200,1)*100,0))) ->  | D200: =IF(C200="","",VLOOKUP(C200,予算!$B$7:$C$66,2)) -> 
... 806 more rows

Sheet 印刷
A1: 印刷用会計簿 入力は「簿」のシートで
B3: ="令和"&FIXED(予算!E4,0)&"年度 "&予算!C2&"会計" -> 令和8年度 〇〇中はまクル認定クラブ会計 | G3: 2
E4: =IF(予算!C4="","",予算!C4&"学校 ") -> 
A5: 月 日 | B5: 項 目 | C5: 摘 要 | E5: 収入金額 | F5: 支出金額 | G5: 差引残額 | J5: =簿!B1006 -> 62 | K5: 件 | L5: =INT((J5-1)/50)+1 -> 2 | M5: 枚
A6: =INDIRECT(J6) -> 2.28 | B6: 諸謝金 | C6: 事務局スタッフ謝礼（2月分）所得税納付 | D6: 34 | E6: 0 | F6: 341 | G6: 134626 | J6: ="簿!B"&FIXED(50*($G$3-1)+6,0) -> 簿!B56 | K6: ="簿!d"&FIXED(50*($G$3-1)+6,0) -> 簿!d56 | L6: ="簿!e"&FIXED(50*($G$3-1)+6,0) -> 簿!e56 | M6: ="簿!f"&FIXED(50*($G$3-1)+6,0) -> 簿!f56 | N6: ="簿!g"&FIXED(50*($G$3-1)+6,0) -> 簿!g56 | O6: ="簿!h"&FIXED(50*($G$3-1)+6,0) -> 簿!h56 | P6: ="簿!i"&FIXED(50*($G$3-1)+6,0) -> 簿!i56
A7: 2.28 | B7: 諸謝金 | C7: 見守りボランティア謝礼（2月分） | D7: 35 | E7: 0 | F7: 16000 | G7: 118626 | J7: ="簿!B"&FIXED(50*($G$3-1)+7,0) -> 簿!B57 | K7: ="簿!d"&FIXED(50*($G$3-1)+7,0) -> 簿!d57 | L7: ="簿!e"&FIXED(50*($G$3-1)+7,0) -> 簿!e57 | M7: ="簿!f"&FIXED(50*($G$3-1)+7,0) -> 簿!f57 | N7: ="簿!g"&FIXED(50*($G$3-1)+7,0) -> 簿!g57 | O7: ="簿!h"&FIXED(50*($G$3-1)+7,0) -> 簿!h57 | P7: ="簿!i"&FIXED(50*($G$3-1)+7,0) -> 簿!i57
A8: =INDIRECT(J8) -> 2.28 | B8: =INDIRECT(K8) -> 諸謝金 | C8: =INDIRECT(L8) -> 見守りボランティア謝礼（2月分）所得税納付 | D8: =INDIRECT(M8) -> 35 | E8: =INDIRECT(N8) -> 0 | F8: =INDIRECT(O8) -> 1816 | G8: 116810 | J8: ="簿!B"&FIXED(50*($G$3-1)+8,0) -> 簿!B58 | K8: ="簿!d"&FIXED(50*($G$3-1)+8,0) -> 簿!d58 | L8: ="簿!e"&FIXED(50*($G$3-1)+8,0) -> 簿!e58 | M8: ="簿!f"&FIXED(50*($G$3-1)+8,0) -> 簿!f58 | N8: ="簿!g"&FIXED(50*($G$3-1)+8,0) -> 簿!g58 | O8: ="簿!h"&FIXED(50*($G$3-1)+8,0) -> 簿!h58 | P8: ="簿!i"&FIXED(50*($G$3-1)+8,0) -> 簿!i58
A9: 2.28 | B9: 借料及び損料 | C9: 貸切バス代 | D9: 36 | E9: 0 | F9: 116810 | G9: 0 | J9: ="簿!B"&FIXED(50*($G$3-1)+9,0) -> 簿!B59 | K9: ="簿!d"&FIXED(50*($G$3-1)+9,0) -> 簿!d59 | L9: ="簿!e"&FIXED(50*($G$3-1)+9,0) -> 簿!e59 | M9: ="簿!f"&FIXED(50*($G$3-1)+9,0) -> 簿!f59 | N9: ="簿!g"&FIXED(50*($G$3-1)+9,0) -> 簿!g59 | O9: ="簿!h"&FIXED(50*($G$3-1)+9,0) -> 簿!h59 | P9: ="簿!i"&FIXED(50*($G$3-1)+9,0) -> 簿!i59
A10: 3.01 | B10: 会費（対象外） | C10: 参加費（3月分） | D10: -37 | E10: 60000 | F10: 0 | G10: 60000 | J10: ="簿!B"&FIXED(50*($G$3-1)+10,0) -> 簿!B60 | K10: ="簿!d"&FIXED(50*($G$3-1)+10,0) -> 簿!d60 | L10: ="簿!e"&FIXED(50*($G$3-1)+10,0) -> 簿!e60 | M10: ="簿!f"&FIXED(50*($G$3-1)+10,0) -> 簿!f60 | N10: ="簿!g"&FIXED(50*($G$3-1)+10,0) -> 簿!g60 | O10: ="簿!h"&FIXED(50*($G$3-1)+10,0) -> 簿!h60 | P10: ="簿!i"&FIXED(50*($G$3-1)+10,0) -> 簿!i60
A11: 3.25 | B11: 消耗品費（対象外） | C11: 事務用品 | D11: 38 | E11: 0 | F11: 12115 | G11: 47885 | J11: ="簿!B"&FIXED(50*($G$3-1)+11,0) -> 簿!B61 | K11: ="簿!d"&FIXED(50*($G$3-1)+11,0) -> 簿!d61 | L11: ="簿!e"&FIXED(50*($G$3-1)+11,0) -> 簿!e61 | M11: ="簿!f"&FIXED(50*($G$3-1)+11,0) -> 簿!f61 | N11: ="簿!g"&FIXED(50*($G$3-1)+11,0) -> 簿!g61 | O11: ="簿!h"&FIXED(50*($G$3-1)+11,0) -> 簿!h61 | P11: ="簿!i"&FIXED(50*($G$3-1)+11,0) -> 簿!i61
A12: 3.25 | B12: 諸謝金（対象外） | C12: 指導者謝礼（3月分） | D12: 39 | E12: 0 | F12: 24000 | G12: 23885 | J12: ="簿!B"&FIXED(50*($G$3-1)+12,0) -> 簿!B62 | K12: ="簿!d"&FIXED(50*($G$3-1)+12,0) -> 簿!d62 | L12: ="簿!e"&FIXED(50*($G$3-1)+12,0) -> 簿!e62 | M12: ="簿!f"&FIXED(50*($G$3-1)+12,0) -> 簿!f62 | N12: ="簿!g"&FIXED(50*($G$3-1)+12,0) -> 簿!g62 | O12: ="簿!h"&FIXED(50*($G$3-1)+12,0) -> 簿!h62 | P12: ="簿!i"&FIXED(50*($G$3-1)+12,0) -> 簿!i62
A13: 3.25 | B13: 諸謝金（対象外） | C13: 指導者謝礼（3月分）所得税納付 | D13: 39 | E13: 0 | F13: 2728 | G13: 21157 | J13: ="簿!B"&FIXED(50*($G$3-1)+13,0) -> 簿!B63 | K13: ="簿!d"&FIXED(50*($G$3-1)+13,0) -> 簿!d63 | L13: ="簿!e"&FIXED(50*($G$3-1)+13,0) -> 簿!e63 | M13: ="簿!f"&FIXED(50*($G$3-1)+13,0) -> 簿!f63 | N13: ="簿!g"&FIXED(50*($G$3-1)+13,0) -> 簿!g63 | O13: ="簿!h"&FIXED(50*($G$3-1)+13,0) -> 簿!h63 | P13: ="簿!i"&FIXED(50*($G$3-1)+13,0) -> 簿!i63
A14: 3.25 | B14: 諸謝金（対象外） | C14: 事務局スタッフ謝礼（3月分） | D14: 40 | E14: 0 | F14: 3000 | G14: 18157 | J14: ="簿!B"&FIXED(50*($G$3-1)+14,0) -> 簿!B64 | K14: ="簿!d"&FIXED(50*($G$3-1)+14,0) -> 簿!d64 | L14: ="簿!e"&FIXED(50*($G$3-1)+14,0) -> 簿!e64 | M14: ="簿!f"&FIXED(50*($G$3-1)+14,0) -> 簿!f64 | N14: ="簿!g"&FIXED(50*($G$3-1)+14,0) -> 簿!g64 | O14: ="簿!h"&FIXED(50*($G$3-1)+14,0) -> 簿!h64 | P14: ="簿!i"&FIXED(50*($G$3-1)+14,0) -> 簿!i64
A15: 3.25 | B15: 諸謝金（対象外） | C15: 事務局スタッフ謝礼（3月分）所得税納付 | D15: 40 | E15: 0 | F15: 341 | G15: 17816 | J15: ="簿!B"&FIXED(50*($G$3-1)+15,0) -> 簿!B65 | K15: ="簿!d"&FIXED(50*($G$3-1)+15,0) -> 簿!d65 | L15: ="簿!e"&FIXED(50*($G$3-1)+15,0) -> 簿!e65 | M15: ="簿!f"&FIXED(50*($G$3-1)+15,0) -> 簿!f65 | N15: ="簿!g"&FIXED(50*($G$3-1)+15,0) -> 簿!g65 | O15: ="簿!h"&FIXED(50*($G$3-1)+15,0) -> 簿!h65 | P15: ="簿!i"&FIXED(50*($G$3-1)+15,0) -> 簿!i65
A16: 3.25 | B16: 諸謝金（対象外） | C16: 見守りボランティア謝礼（3月分） | D16: 41 | E16: 0 | F16: 16000 | G16: 1816 | J16: ="簿!B"&FIXED(50*($G$3-1)+16,0) -> 簿!B66 | K16: ="簿!d"&FIXED(50*($G$3-1)+16,0) -> 簿!d66 | L16: ="簿!e"&FIXED(50*($G$3-1)+16,0) -> 簿!e66 | M16: ="簿!f"&FIXED(50*($G$3-1)+16,0) -> 簿!f66 | N16: ="簿!g"&FIXED(50*($G$3-1)+16,0) -> 簿!g66 | O16: ="簿!h"&FIXED(50*($G$3-1)+16,0) -> 簿!h66 | P16: ="簿!i"&FIXED(50*($G$3-1)+16,0) -> 簿!i66
A17: 3.25 | B17: 諸謝金（対象外） | C17: 見守りボランティア謝礼（3月分）所得税納付 | D17: 41 | E17: 0 | F17: 1816 | G17: 0 | J17: ="簿!B"&FIXED(50*($G$3-1)+17,0) -> 簿!B67 | K17: ="簿!d"&FIXED(50*($G$3-1)+17,0) -> 簿!d67 | L17: ="簿!e"&FIXED(50*($G$3-1)+17,0) -> 簿!e67 | M17: ="簿!f"&FIXED(50*($G$3-1)+17,0) -> 簿!f67 | N17: ="簿!g"&FIXED(50*($G$3-1)+17,0) -> 簿!g67 | O17: ="簿!h"&FIXED(50*($G$3-1)+17,0) -> 簿!h67 | P17: ="簿!i"&FIXED(50*($G$3-1)+17,0) -> 簿!i67
A18: 0 | C18: 0 | D18: 0 | E18: 0 | F18: 0 | J18: ="簿!B"&FIXED(50*($G$3-1)+18,0) -> 簿!B68 | K18: ="簿!d"&FIXED(50*($G$3-1)+18,0) -> 簿!d68 | L18: ="簿!e"&FIXED(50*($G$3-1)+18,0) -> 簿!e68 | M18: ="簿!f"&FIXED(50*($G$3-1)+18,0) -> 簿!f68 | N18: ="簿!g"&FIXED(50*($G$3-1)+18,0) -> 簿!g68 | O18: ="簿!h"&FIXED(50*($G$3-1)+18,0) -> 簿!h68 | P18: ="簿!i"&FIXED(50*($G$3-1)+18,0) -> 簿!i68
A19: 0 | C19: 0 | D19: 0 | E19: 0 | F19: 0 | J19: ="簿!B"&FIXED(50*($G$3-1)+19,0) -> 簿!B69 | K19: ="簿!d"&FIXED(50*($G$3-1)+19,0) -> 簿!d69 | L19: ="簿!e"&FIXED(50*($G$3-1)+19,0) -> 簿!e69 | M19: ="簿!f"&FIXED(50*($G$3-1)+19,0) -> 簿!f69 | N19: ="簿!g"&FIXED(50*($G$3-1)+19,0) -> 簿!g69 | O19: ="簿!h"&FIXED(50*($G$3-1)+19,0) -> 簿!h69 | P19: ="簿!i"&FIXED(50*($G$3-1)+19,0) -> 簿!i69
A20: 0 | C20: 0 | D20: 0 | E20: 0 | F20: 0 | J20: ="簿!B"&FIXED(50*($G$3-1)+20,0) -> 簿!B70 | K20: ="簿!d"&FIXED(50*($G$3-1)+20,0) -> 簿!d70 | L20: ="簿!e"&FIXED(50*($G$3-1)+20,0) -> 簿!e70 | M20: ="簿!f"&FIXED(50*($G$3-1)+20,0) -> 簿!f70 | N20: ="簿!g"&FIXED(50*($G$3-1)+20,0) -> 簿!g70 | O20: ="簿!h"&FIXED(50*($G$3-1)+20,0) -> 簿!h70 | P20: ="簿!i"&FIXED(50*($G$3-1)+20,0) -> 簿!i70
A21: 0 | C21: 0 | D21: 0 | E21: 0 | F21: 0 | J21: ="簿!B"&FIXED(50*($G$3-1)+21,0) -> 簿!B71 | K21: ="簿!d"&FIXED(50*($G$3-1)+21,0) -> 簿!d71 | L21: ="簿!e"&FIXED(50*($G$3-1)+21,0) -> 簿!e71 | M21: ="簿!f"&FIXED(50*($G$3-1)+21,0) -> 簿!f71 | N21: ="簿!g"&FIXED(50*($G$3-1)+21,0) -> 簿!g71 | O21: ="簿!h"&FIXED(50*($G$3-1)+21,0) -> 簿!h71 | P21: ="簿!i"&FIXED(50*($G$3-1)+21,0) -> 簿!i71
A22: 0 | C22: 0 | D22: 0 | E22: 0 | F22: 0 | J22: ="簿!B"&FIXED(50*($G$3-1)+22,0) -> 簿!B72 | K22: ="簿!d"&FIXED(50*($G$3-1)+22,0) -> 簿!d72 | L22: ="簿!e"&FIXED(50*($G$3-1)+22,0) -> 簿!e72 | M22: ="簿!f"&FIXED(50*($G$3-1)+22,0) -> 簿!f72 | N22: ="簿!g"&FIXED(50*($G$3-1)+22,0) -> 簿!g72 | O22: ="簿!h"&FIXED(50*($G$3-1)+22,0) -> 簿!h72 | P22: ="簿!i"&FIXED(50*($G$3-1)+22,0) -> 簿!i72
A23: 0 | C23: 0 | D23: 0 | E23: 0 | F23: 0 | J23: ="簿!B"&FIXED(50*($G$3-1)+23,0) -> 簿!B73 | K23: ="簿!d"&FIXED(50*($G$3-1)+23,0) -> 簿!d73 | L23: ="簿!e"&FIXED(50*($G$3-1)+23,0) -> 簿!e73 | M23: ="簿!f"&FIXED(50*($G$3-1)+23,0) -> 簿!f73 | N23: ="簿!g"&FIXED(50*($G$3-1)+23,0) -> 簿!g73 | O23: ="簿!h"&FIXED(50*($G$3-1)+23,0) -> 簿!h73 | P23: ="簿!i"&FIXED(50*($G$3-1)+23,0) -> 簿!i73
A24: 0 | C24: 0 | D24: 0 | E24: 0 | F24: 0 | J24: ="簿!B"&FIXED(50*($G$3-1)+24,0) -> 簿!B74 | K24: ="簿!d"&FIXED(50*($G$3-1)+24,0) -> 簿!d74 | L24: ="簿!e"&FIXED(50*($G$3-1)+24,0) -> 簿!e74 | M24: ="簿!f"&FIXED(50*($G$3-1)+24,0) -> 簿!f74 | N24: ="簿!g"&FIXED(50*($G$3-1)+24,0) -> 簿!g74 | O24: ="簿!h"&FIXED(50*($G$3-1)+24,0) -> 簿!h74 | P24: ="簿!i"&FIXED(50*($G$3-1)+24,0) -> 簿!i74
A25: 0 | C25: 0 | D25: 0 | E25: 0 | F25: 0 | J25: ="簿!B"&FIXED(50*($G$3-1)+25,0) -> 簿!B75 | K25: ="簿!d"&FIXED(50*($G$3-1)+25,0) -> 簿!d75 | L25: ="簿!e"&FIXED(50*($G$3-1)+25,0) -> 簿!e75 | M25: ="簿!f"&FIXED(50*($G$3-1)+25,0) -> 簿!f75 | N25: ="簿!g"&FIXED(50*($G$3-1)+25,0) -> 簿!g75 | O25: ="簿!h"&FIXED(50*($G$3-1)+25,0) -> 簿!h75 | P25: ="簿!i"&FIXED(50*($G$3-1)+25,0) -> 簿!i75
A26: 0 | C26: 0 | D26: 0 | E26: 0 | F26: 0 | J26: ="簿!B"&FIXED(50*($G$3-1)+26,0) -> 簿!B76 | K26: ="簿!d"&FIXED(50*($G$3-1)+26,0) -> 簿!d76 | L26: ="簿!e"&FIXED(50*($G$3-1)+26,0) -> 簿!e76 | M26: ="簿!f"&FIXED(50*($G$3-1)+26,0) -> 簿!f76 | N26: ="簿!g"&FIXED(50*($G$3-1)+26,0) -> 簿!g76 | O26: ="簿!h"&FIXED(50*($G$3-1)+26,0) -> 簿!h76 | P26: ="簿!i"&FIXED(50*($G$3-1)+26,0) -> 簿!i76
A27: 0 | C27: 0 | D27: 0 | E27: 0 | F27: 0 | J27: ="簿!B"&FIXED(50*($G$3-1)+27,0) -> 簿!B77 | K27: ="簿!d"&FIXED(50*($G$3-1)+27,0) -> 簿!d77 | L27: ="簿!e"&FIXED(50*($G$3-1)+27,0) -> 簿!e77 | M27: ="簿!f"&FIXED(50*($G$3-1)+27,0) -> 簿!f77 | N27: ="簿!g"&FIXED(50*($G$3-1)+27,0) -> 簿!g77 | O27: ="簿!h"&FIXED(50*($G$3-1)+27,0) -> 簿!h77 | P27: ="簿!i"&FIXED(50*($G$3-1)+27,0) -> 簿!i77
A28: 0 | C28: 0 | D28: 0 | E28: 0 | F28: 0 | J28: ="簿!B"&FIXED(50*($G$3-1)+28,0) -> 簿!B78 | K28: ="簿!d"&FIXED(50*($G$3-1)+28,0) -> 簿!d78 | L28: ="簿!e"&FIXED(50*($G$3-1)+28,0) -> 簿!e78 | M28: ="簿!f"&FIXED(50*($G$3-1)+28,0) -> 簿!f78 | N28: ="簿!g"&FIXED(50*($G$3-1)+28,0) -> 簿!g78 | O28: ="簿!h"&FIXED(50*($G$3-1)+28,0) -> 簿!h78 | P28: ="簿!i"&FIXED(50*($G$3-1)+28,0) -> 簿!i78
A29: 0 | C29: 0 | D29: 0 | E29: 0 | F29: 0 | J29: ="簿!B"&FIXED(50*($G$3-1)+29,0) -> 簿!B79 | K29: ="簿!d"&FIXED(50*($G$3-1)+29,0) -> 簿!d79 | L29: ="簿!e"&FIXED(50*($G$3-1)+29,0) -> 簿!e79 | M29: ="簿!f"&FIXED(50*($G$3-1)+29,0) -> 簿!f79 | N29: ="簿!g"&FIXED(50*($G$3-1)+29,0) -> 簿!g79 | O29: ="簿!h"&FIXED(50*($G$3-1)+29,0) -> 簿!h79 | P29: ="簿!i"&FIXED(50*($G$3-1)+29,0) -> 簿!i79
A30: 0 | C30: 0 | D30: 0 | E30: 0 | F30: 0 | J30: ="簿!B"&FIXED(50*($G$3-1)+30,0) -> 簿!B80 | K30: ="簿!d"&FIXED(50*($G$3-1)+30,0) -> 簿!d80 | L30: ="簿!e"&FIXED(50*($G$3-1)+30,0) -> 簿!e80 | M30: ="簿!f"&FIXED(50*($G$3-1)+30,0) -> 簿!f80 | N30: ="簿!g"&FIXED(50*($G$3-1)+30,0) -> 簿!g80 | O30: ="簿!h"&FIXED(50*($G$3-1)+30,0) -> 簿!h80 | P30: ="簿!i"&FIXED(50*($G$3-1)+30,0) -> 簿!i80
A31: 0 | C31: 0 | D31: 0 | E31: 0 | F31: 0 | J31: ="簿!B"&FIXED(50*($G$3-1)+31,0) -> 簿!B81 | K31: ="簿!d"&FIXED(50*($G$3-1)+31,0) -> 簿!d81 | L31: ="簿!e"&FIXED(50*($G$3-1)+31,0) -> 簿!e81 | M31: ="簿!f"&FIXED(50*($G$3-1)+31,0) -> 簿!f81 | N31: ="簿!g"&FIXED(50*($G$3-1)+31,0) -> 簿!g81 | O31: ="簿!h"&FIXED(50*($G$3-1)+31,0) -> 簿!h81 | P31: ="簿!i"&FIXED(50*($G$3-1)+31,0) -> 簿!i81
A32: 0 | C32: 0 | D32: 0 | E32: 0 | F32: 0 | J32: ="簿!B"&FIXED(50*($G$3-1)+32,0) -> 簿!B82 | K32: ="簿!d"&FIXED(50*($G$3-1)+32,0) -> 簿!d82 | L32: ="簿!e"&FIXED(50*($G$3-1)+32,0) -> 簿!e82 | M32: ="簿!f"&FIXED(50*($G$3-1)+32,0) -> 簿!f82 | N32: ="簿!g"&FIXED(50*($G$3-1)+32,0) -> 簿!g82 | O32: ="簿!h"&FIXED(50*($G$3-1)+32,0) -> 簿!h82 | P32: ="簿!i"&FIXED(50*($G$3-1)+32,0) -> 簿!i82
A33: 0 | C33: 0 | D33: 0 | E33: 0 | F33: 0 | J33: ="簿!B"&FIXED(50*($G$3-1)+33,0) -> 簿!B83 | K33: ="簿!d"&FIXED(50*($G$3-1)+33,0) -> 簿!d83 | L33: ="簿!e"&FIXED(50*($G$3-1)+33,0) -> 簿!e83 | M33: ="簿!f"&FIXED(50*($G$3-1)+33,0) -> 簿!f83 | N33: ="簿!g"&FIXED(50*($G$3-1)+33,0) -> 簿!g83 | O33: ="簿!h"&FIXED(50*($G$3-1)+33,0) -> 簿!h83 | P33: ="簿!i"&FIXED(50*($G$3-1)+33,0) -> 簿!i83
A34: 0 | C34: 0 | D34: 0 | E34: 0 | F34: 0 | J34: ="簿!B"&FIXED(50*($G$3-1)+34,0) -> 簿!B84 | K34: ="簿!d"&FIXED(50*($G$3-1)+34,0) -> 簿!d84 | L34: ="簿!e"&FIXED(50*($G$3-1)+34,0) -> 簿!e84 | M34: ="簿!f"&FIXED(50*($G$3-1)+34,0) -> 簿!f84 | N34: ="簿!g"&FIXED(50*($G$3-1)+34,0) -> 簿!g84 | O34: ="簿!h"&FIXED(50*($G$3-1)+34,0) -> 簿!h84 | P34: ="簿!i"&FIXED(50*($G$3-1)+34,0) -> 簿!i84
A35: 0 | C35: 0 | D35: 0 | E35: 0 | F35: 0 | J35: ="簿!B"&FIXED(50*($G$3-1)+35,0) -> 簿!B85 | K35: ="簿!d"&FIXED(50*($G$3-1)+35,0) -> 簿!d85 | L35: ="簿!e"&FIXED(50*($G$3-1)+35,0) -> 簿!e85 | M35: ="簿!f"&FIXED(50*($G$3-1)+35,0) -> 簿!f85 | N35: ="簿!g"&FIXED(50*($G$3-1)+35,0) -> 簿!g85 | O35: ="簿!h"&FIXED(50*($G$3-1)+35,0) -> 簿!h85 | P35: ="簿!i"&FIXED(50*($G$3-1)+35,0) -> 簿!i85
A36: 0 | C36: 0 | D36: 0 | E36: 0 | F36: 0 | J36: ="簿!B"&FIXED(50*($G$3-1)+36,0) -> 簿!B86 | K36: ="簿!d"&FIXED(50*($G$3-1)+36,0) -> 簿!d86 | L36: ="簿!e"&FIXED(50*($G$3-1)+36,0) -> 簿!e86 | M36: ="簿!f"&FIXED(50*($G$3-1)+36,0) -> 簿!f86 | N36: ="簿!g"&FIXED(50*($G$3-1)+36,0) -> 簿!g86 | O36: ="簿!h"&FIXED(50*($G$3-1)+36,0) -> 簿!h86 | P36: ="簿!i"&FIXED(50*($G$3-1)+36,0) -> 簿!i86
A37: 0 | C37: 0 | D37: 0 | E37: 0 | F37: 0 | J37: ="簿!B"&FIXED(50*($G$3-1)+37,0) -> 簿!B87 | K37: ="簿!d"&FIXED(50*($G$3-1)+37,0) -> 簿!d87 | L37: ="簿!e"&FIXED(50*($G$3-1)+37,0) -> 簿!e87 | M37: ="簿!f"&FIXED(50*($G$3-1)+37,0) -> 簿!f87 | N37: ="簿!g"&FIXED(50*($G$3-1)+37,0) -> 簿!g87 | O37: ="簿!h"&FIXED(50*($G$3-1)+37,0) -> 簿!h87 | P37: ="簿!i"&FIXED(50*($G$3-1)+37,0) -> 簿!i87
A38: 0 | C38: 0 | D38: 0 | E38: 0 | F38: 0 | J38: ="簿!B"&FIXED(50*($G$3-1)+38,0) -> 簿!B88 | K38: ="簿!d"&FIXED(50*($G$3-1)+38,0) -> 簿!d88 | L38: ="簿!e"&FIXED(50*($G$3-1)+38,0) -> 簿!e88 | M38: ="簿!f"&FIXED(50*($G$3-1)+38,0) -> 簿!f88 | N38: ="簿!g"&FIXED(50*($G$3-1)+38,0) -> 簿!g88 | O38: ="簿!h"&FIXED(50*($G$3-1)+38,0) -> 簿!h88 | P38: ="簿!i"&FIXED(50*($G$3-1)+38,0) -> 簿!i88
A39: 0 | C39: 0 | D39: 0 | E39: 0 | F39: 0 | J39: ="簿!B"&FIXED(50*($G$3-1)+39,0) -> 簿!B89 | K39: ="簿!d"&FIXED(50*($G$3-1)+39,0) -> 簿!d89 | L39: ="簿!e"&FIXED(50*($G$3-1)+39,0) -> 簿!e89 | M39: ="簿!f"&FIXED(50*($G$3-1)+39,0) -> 簿!f89 | N39: ="簿!g"&FIXED(50*($G$3-1)+39,0) -> 簿!g89 | O39: ="簿!h"&FIXED(50*($G$3-1)+39,0) -> 簿!h89 | P39: ="簿!i"&FIXED(50*($G$3-1)+39,0) -> 簿!i89
A40: 0 | C40: 0 | D40: 0 | E40: 0 | F40: 0 | J40: ="簿!B"&FIXED(50*($G$3-1)+40,0) -> 簿!B90 | K40: ="簿!d"&FIXED(50*($G$3-1)+40,0) -> 簿!d90 | L40: ="簿!e"&FIXED(50*($G$3-1)+40,0) -> 簿!e90 | M40: ="簿!f"&FIXED(50*($G$3-1)+40,0) -> 簿!f90 | N40: ="簿!g"&FIXED(50*($G$3-1)+40,0) -> 簿!g90 | O40: ="簿!h"&FIXED(50*($G$3-1)+40,0) -> 簿!h90 | P40: ="簿!i"&FIXED(50*($G$3-1)+40,0) -> 簿!i90
A41: 0 | C41: 0 | D41: 0 | E41: 0 | F41: 0 | J41: ="簿!B"&FIXED(50*($G$3-1)+41,0) -> 簿!B91 | K41: ="簿!d"&FIXED(50*($G$3-1)+41,0) -> 簿!d91 | L41: ="簿!e"&FIXED(50*($G$3-1)+41,0) -> 簿!e91 | M41: ="簿!f"&FIXED(50*($G$3-1)+41,0) -> 簿!f91 | N41: ="簿!g"&FIXED(50*($G$3-1)+41,0) -> 簿!g91 | O41: ="簿!h"&FIXED(50*($G$3-1)+41,0) -> 簿!h91 | P41: ="簿!i"&FIXED(50*($G$3-1)+41,0) -> 簿!i91
A42: 0 | C42: 0 | D42: 0 | E42: 0 | F42: 0 | J42: ="簿!B"&FIXED(50*($G$3-1)+42,0) -> 簿!B92 | K42: ="簿!d"&FIXED(50*($G$3-1)+42,0) -> 簿!d92 | L42: ="簿!e"&FIXED(50*($G$3-1)+42,0) -> 簿!e92 | M42: ="簿!f"&FIXED(50*($G$3-1)+42,0) -> 簿!f92 | N42: ="簿!g"&FIXED(50*($G$3-1)+42,0) -> 簿!g92 | O42: ="簿!h"&FIXED(50*($G$3-1)+42,0) -> 簿!h92 | P42: ="簿!i"&FIXED(50*($G$3-1)+42,0) -> 簿!i92
A43: 0 | C43: 0 | D43: 0 | E43: 0 | F43: 0 | J43: ="簿!B"&FIXED(50*($G$3-1)+43,0) -> 簿!B93 | K43: ="簿!d"&FIXED(50*($G$3-1)+43,0) -> 簿!d93 | L43: ="簿!e"&FIXED(50*($G$3-1)+43,0) -> 簿!e93 | M43: ="簿!f"&FIXED(50*($G$3-1)+43,0) -> 簿!f93 | N43: ="簿!g"&FIXED(50*($G$3-1)+43,0) -> 簿!g93 | O43: ="簿!h"&FIXED(50*($G$3-1)+43,0) -> 簿!h93 | P43: ="簿!i"&FIXED(50*($G$3-1)+43,0) -> 簿!i93
A44: 0 | C44: 0 | D44: 0 | E44: 0 | F44: 0 | J44: ="簿!B"&FIXED(50*($G$3-1)+44,0) -> 簿!B94 | K44: ="簿!d"&FIXED(50*($G$3-1)+44,0) -> 簿!d94 | L44: ="簿!e"&FIXED(50*($G$3-1)+44,0) -> 簿!e94 | M44: ="簿!f"&FIXED(50*($G$3-1)+44,0) -> 簿!f94 | N44: ="簿!g"&FIXED(50*($G$3-1)+44,0) -> 簿!g94 | O44: ="簿!h"&FIXED(50*($G$3-1)+44,0) -> 簿!h94 | P44: ="簿!i"&FIXED(50*($G$3-1)+44,0) -> 簿!i94
A45: 0 | C45: 0 | D45: 0 | E45: 0 | F45: 0 | J45: ="簿!B"&FIXED(50*($G$3-1)+45,0) -> 簿!B95 | K45: ="簿!d"&FIXED(50*($G$3-1)+45,0) -> 簿!d95 | L45: ="簿!e"&FIXED(50*($G$3-1)+45,0) -> 簿!e95 | M45: ="簿!f"&FIXED(50*($G$3-1)+45,0) -> 簿!f95 | N45: ="簿!g"&FIXED(50*($G$3-1)+45,0) -> 簿!g95 | O45: ="簿!h"&FIXED(50*($G$3-1)+45,0) -> 簿!h95 | P45: ="簿!i"&FIXED(50*($G$3-1)+45,0) -> 簿!i95
A46: 0 | C46: 0 | D46: 0 | E46: 0 | F46: 0 | J46: ="簿!B"&FIXED(50*($G$3-1)+46,0) -> 簿!B96 | K46: ="簿!d"&FIXED(50*($G$3-1)+46,0) -> 簿!d96 | L46: ="簿!e"&FIXED(50*($G$3-1)+46,0) -> 簿!e96 | M46: ="簿!f"&FIXED(50*($G$3-1)+46,0) -> 簿!f96 | N46: ="簿!g"&FIXED(50*($G$3-1)+46,0) -> 簿!g96 | O46: ="簿!h"&FIXED(50*($G$3-1)+46,0) -> 簿!h96 | P46: ="簿!i"&FIXED(50*($G$3-1)+46,0) -> 簿!i96
A47: 0 | C47: 0 | D47: 0 | E47: 0 | F47: 0 | J47: ="簿!B"&FIXED(50*($G$3-1)+47,0) -> 簿!B97 | K47: ="簿!d"&FIXED(50*($G$3-1)+47,0) -> 簿!d97 | L47: ="簿!e"&FIXED(50*($G$3-1)+47,0) -> 簿!e97 | M47: ="簿!f"&FIXED(50*($G$3-1)+47,0) -> 簿!f97 | N47: ="簿!g"&FIXED(50*($G$3-1)+47,0) -> 簿!g97 | O47: ="簿!h"&FIXED(50*($G$3-1)+47,0) -> 簿!h97 | P47: ="簿!i"&FIXED(50*($G$3-1)+47,0) -> 簿!i97
A48: 0 | C48: 0 | D48: 0 | E48: 0 | F48: 0 | J48: ="簿!B"&FIXED(50*($G$3-1)+48,0) -> 簿!B98 | K48: ="簿!d"&FIXED(50*($G$3-1)+48,0) -> 簿!d98 | L48: ="簿!e"&FIXED(50*($G$3-1)+48,0) -> 簿!e98 | M48: ="簿!f"&FIXED(50*($G$3-1)+48,0) -> 簿!f98 | N48: ="簿!g"&FIXED(50*($G$3-1)+48,0) -> 簿!g98 | O48: ="簿!h"&FIXED(50*($G$3-1)+48,0) -> 簿!h98 | P48: ="簿!i"&FIXED(50*($G$3-1)+48,0) -> 簿!i98
A49: 0 | C49: 0 | D49: 0 | E49: 0 | F49: 0 | J49: ="簿!B"&FIXED(50*($G$3-1)+49,0) -> 簿!B99 | K49: ="簿!d"&FIXED(50*($G$3-1)+49,0) -> 簿!d99 | L49: ="簿!e"&FIXED(50*($G$3-1)+49,0) -> 簿!e99 | M49: ="簿!f"&FIXED(50*($G$3-1)+49,0) -> 簿!f99 | N49: ="簿!g"&FIXED(50*($G$3-1)+49,0) -> 簿!g99 | O49: ="簿!h"&FIXED(50*($G$3-1)+49,0) -> 簿!h99 | P49: ="簿!i"&FIXED(50*($G$3-1)+49,0) -> 簿!i99
A50: 0 | C50: 0 | D50: 0 | E50: 0 | F50: 0 | J50: ="簿!B"&FIXED(50*($G$3-1)+50,0) -> 簿!B100 | K50: ="簿!d"&FIXED(50*($G$3-1)+50,0) -> 簿!d100 | L50: ="簿!e"&FIXED(50*($G$3-1)+50,0) -> 簿!e100 | M50: ="簿!f"&FIXED(50*($G$3-1)+50,0) -> 簿!f100 | N50: ="簿!g"&FIXED(50*($G$3-1)+50,0) -> 簿!g100 | O50: ="簿!h"&FIXED(50*($G$3-1)+50,0) -> 簿!h100 | P50: ="簿!i"&FIXED(50*($G$3-1)+50,0) -> 簿!i100
A51: 0 | C51: 0 | D51: 0 | E51: 0 | F51: 0 | J51: ="簿!B"&FIXED(50*($G$3-1)+51,0) -> 簿!B101 | K51: ="簿!d"&FIXED(50*($G$3-1)+51,0) -> 簿!d101 | L51: ="簿!e"&FIXED(50*($G$3-1)+51,0) -> 簿!e101 | M51: ="簿!f"&FIXED(50*($G$3-1)+51,0) -> 簿!f101 | N51: ="簿!g"&FIXED(50*($G$3-1)+51,0) -> 簿!g101 | O51: ="簿!h"&FIXED(50*($G$3-1)+51,0) -> 簿!h101 | P51: ="簿!i"&FIXED(50*($G$3-1)+51,0) -> 簿!i101
A52: 0 | C52: 0 | D52: 0 | E52: 0 | F52: 0 | J52: ="簿!B"&FIXED(50*($G$3-1)+52,0) -> 簿!B102 | K52: ="簿!d"&FIXED(50*($G$3-1)+52,0) -> 簿!d102 | L52: ="簿!e"&FIXED(50*($G$3-1)+52,0) -> 簿!e102 | M52: ="簿!f"&FIXED(50*($G$3-1)+52,0) -> 簿!f102 | N52: ="簿!g"&FIXED(50*($G$3-1)+52,0) -> 簿!g102 | O52: ="簿!h"&FIXED(50*($G$3-1)+52,0) -> 簿!h102 | P52: ="簿!i"&FIXED(50*($G$3-1)+52,0) -> 簿!i102
A53: 0 | C53: 0 | D53: 0 | E53: 0 | F53: 0 | J53: ="簿!B"&FIXED(50*($G$3-1)+53,0) -> 簿!B103 | K53: ="簿!d"&FIXED(50*($G$3-1)+53,0) -> 簿!d103 | L53: ="簿!e"&FIXED(50*($G$3-1)+53,0) -> 簿!e103 | M53: ="簿!f"&FIXED(50*($G$3-1)+53,0) -> 簿!f103 | N53: ="簿!g"&FIXED(50*($G$3-1)+53,0) -> 簿!g103 | O53: ="簿!h"&FIXED(50*($G$3-1)+53,0) -> 簿!h103 | P53: ="簿!i"&FIXED(50*($G$3-1)+53,0) -> 簿!i103
A54: 0 | C54: 0 | D54: 0 | E54: 0 | F54: 0 | J54: ="簿!B"&FIXED(50*($G$3-1)+54,0) -> 簿!B104 | K54: ="簿!d"&FIXED(50*($G$3-1)+54,0) -> 簿!d104 | L54: ="簿!e"&FIXED(50*($G$3-1)+54,0) -> 簿!e104 | M54: ="簿!f"&FIXED(50*($G$3-1)+54,0) -> 簿!f104 | N54: ="簿!g"&FIXED(50*($G$3-1)+54,0) -> 簿!g104 | O54: ="簿!h"&FIXED(50*($G$3-1)+54,0) -> 簿!h104 | P54: ="簿!i"&FIXED(50*($G$3-1)+54,0) -> 簿!i104
A55: 0 | C55: 0 | D55: 0 | E55: 0 | F55: 0 | J55: ="簿!B"&FIXED(50*($G$3-1)+55,0) -> 簿!B105 | K55: ="簿!d"&FIXED(50*($G$3-1)+55,0) -> 簿!d105 | L55: ="簿!e"&FIXED(50*($G$3-1)+55,0) -> 簿!e105 | M55: ="簿!f"&FIXED(50*($G$3-1)+55,0) -> 簿!f105 | N55: ="簿!g"&FIXED(50*($G$3-1)+55,0) -> 簿!g105 | O55: ="簿!h"&FIXED(50*($G$3-1)+55,0) -> 簿!h105 | P55: ="簿!i"&FIXED(50*($G$3-1)+55,0) -> 簿!i105
A56: =IF(L5=1,"","小 計") -> 小 計 | E56: =IF(L5=1,"",SUM(E6:E55)) -> 60000 | F56: =IF(L5=1,"",SUM(F6:F55)) -> 194967
A57: =IF(G3=L5,"合 計","") -> 合 計 | E57: =IF(G3=L5,簿!G1006,"") -> 677600 | F57: =IF(G3=L5,簿!H1006,"") -> 677600 | G57: =IF(G3=L5,E57-F57,"") -> 0

Sheet 項目
A1: 1 | B1: 番の項目を | C1: ※コードを入力したら、どちらかのボタンをクリック
A2: ↑ コードを入力 | C2: ※印刷はいきなり始まるので慌てんように！
A3: =VLOOKUP(簿!M4,予算!$B$7:$C$66,2) -> その他の経費（対象外）
G4: 1
A5: 月 日 | B5: 摘 要 | D5: 予 算 額 | E5: 収入金額 | F5: 支出金額 | G5: =IF(簿!M4>9,"差引残額","収入未済額") -> 差引残額
B6: 予算額 | D6: =VLOOKUP(簿!M4,予算!$B$7:$D$66,3) -> 0 | G6: =D6 -> 0
A7: =IF(簿!M6="","",簿!M6) ->  | B7: =IF(簿!N6="","",簿!N6) ->  | C7: =IF(簿!O6="","",簿!O6) ->  | E7: =IF(簿!P6="",0,簿!P6) -> 0 | F7: =IF(簿!Q6="",0,簿!Q6) -> 0 | G7: =IF(A7="","",G6-E7-F7) -> 
A8: =IF(簿!M7="","",簿!M7) ->  | B8: =IF(簿!N7="","",簿!N7) ->  | C8: =IF(簿!O7="","",簿!O7) ->  | E8: =IF(簿!P7="",0,簿!P7) -> 0 | F8: =IF(簿!Q7="",0,簿!Q7) -> 0 | G8: =IF(A8="","",G7-E8-F8) -> 
A9: =IF(簿!M8="","",簿!M8) ->  | B9: =IF(簿!N8="","",簿!N8) ->  | C9: =IF(簿!O8="","",簿!O8) ->  | E9: =IF(簿!P8="",0,簿!P8) -> 0 | F9: =IF(簿!Q8="",0,簿!Q8) -> 0
A10: =IF(簿!M9="","",簿!M9) ->  | B10: =IF(簿!N9="","",簿!N9) ->  | C10: =IF(簿!O9="","",簿!O9) ->  | E10: =IF(簿!P9="",0,簿!P9) -> 0 | F10: =IF(簿!Q9="",0,簿!Q9) -> 0
A11: =IF(簿!M10="","",簿!M10) ->  | B11: =IF(簿!N10="","",簿!N10) ->  | C11: =IF(簿!O10="","",簿!O10) ->  | E11: =IF(簿!P10="",0,簿!P10) -> 0 | F11: =IF(簿!Q10="",0,簿!Q10) -> 0
A12: =IF(簿!M11="","",簿!M11) ->  | B12: =IF(簿!N11="","",簿!N11) ->  | C12: =IF(簿!O11="","",簿!O11) ->  | E12: =IF(簿!P11="",0,簿!P11) -> 0 | F12: =IF(簿!Q11="",0,簿!Q11) -> 0
A13: =IF(簿!M12="","",簿!M12) ->  | B13: =IF(簿!N12="","",簿!N12) ->  | C13: =IF(簿!O12="","",簿!O12) ->  | E13: =IF(簿!P12="",0,簿!P12) -> 0 | F13: =IF(簿!Q12="",0,簿!Q12) -> 0
A14: =IF(簿!M13="","",簿!M13) ->  | B14: =IF(簿!N13="","",簿!N13) ->  | C14: =IF(簿!O13="","",簿!O13) ->  | E14: =IF(簿!P13="",0,簿!P13) -> 0 | F14: =IF(簿!Q13="",0,簿!Q13) -> 0
A15: =IF(簿!M14="","",簿!M14) ->  | B15: =IF(簿!N14="","",簿!N14) ->  | C15: =IF(簿!O14="","",簿!O14) ->  | E15: =IF(簿!P14="",0,簿!P14) -> 0 | F15: =IF(簿!Q14="",0,簿!Q14) -> 0
A16: =IF(簿!M15="","",簿!M15) ->  | B16: =IF(簿!N15="","",簿!N15) ->  | C16: =IF(簿!O15="","",簿!O15) ->  | E16: =IF(簿!P15="",0,簿!P15) -> 0 | F16: =IF(簿!Q15="",0,簿!Q15) -> 0 | G16: =IF(A16="","",G15-E16-F16) -> 
A17: =IF(簿!M16="","",簿!M16) ->  | B17: =IF(簿!N16="","",簿!N16) ->  | C17: =IF(簿!O16="","",簿!O16) ->  | E17: =IF(簿!P16="",0,簿!P16) -> 0 | F17: =IF(簿!Q16="",0,簿!Q16) -> 0
A18: =IF(簿!M17="","",簿!M17) ->  | B18: =IF(簿!N17="","",簿!N17) ->  | C18: =IF(簿!O17="","",簿!O17) ->  | E18: =IF(簿!P17="",0,簿!P17) -> 0 | F18: =IF(簿!Q17="",0,簿!Q17) -> 0
A19: =IF(簿!M18="","",簿!M18) ->  | B19: =IF(簿!N18="","",簿!N18) ->  | C19: =IF(簿!O18="","",簿!O18) ->  | E19: =IF(簿!P18="",0,簿!P18) -> 0 | F19: =IF(簿!Q18="",0,簿!Q18) -> 0
A20: =IF(簿!M19="","",簿!M19) ->  | B20: =IF(簿!N19="","",簿!N19) ->  | C20: =IF(簿!O19="","",簿!O19) ->  | E20: =IF(簿!P19="",0,簿!P19) -> 0 | F20: =IF(簿!Q19="",0,簿!Q19) -> 0
A21: =IF(簿!M20="","",簿!M20) ->  | B21: =IF(簿!N20="","",簿!N20) ->  | C21: =IF(簿!O20="","",簿!O20) ->  | E21: =IF(簿!P20="",0,簿!P20) -> 0 | F21: =IF(簿!Q20="",0,簿!Q20) -> 0
A22: =IF(簿!M21="","",簿!M21) ->  | B22: =IF(簿!N21="","",簿!N21) ->  | C22: =IF(簿!O21="","",簿!O21) ->  | E22: =IF(簿!P21="",0,簿!P21) -> 0 | F22: =IF(簿!Q21="",0,簿!Q21) -> 0
A23: =IF(簿!M22="","",簿!M22) ->  | B23: =IF(簿!N22="","",簿!N22) ->  | C23: =IF(簿!O22="","",簿!O22) ->  | E23: =IF(簿!P22="",0,簿!P22) -> 0 | F23: =IF(簿!Q22="",0,簿!Q22) -> 0
A24: =IF(簿!M23="","",簿!M23) ->  | B24: =IF(簿!N23="","",簿!N23) ->  | C24: =IF(簿!O23="","",簿!O23) ->  | E24: =IF(簿!P23="",0,簿!P23) -> 0 | F24: =IF(簿!Q23="",0,簿!Q23) -> 0
A25: =IF(簿!M24="","",簿!M24) ->  | B25: =IF(簿!N24="","",簿!N24) ->  | C25: =IF(簿!O24="","",簿!O24) ->  | E25: =IF(簿!P24="",0,簿!P24) -> 0 | F25: =IF(簿!Q24="",0,簿!Q24) -> 0
A26: =IF(簿!M25="","",簿!M25) ->  | B26: =IF(簿!N25="","",簿!N25) ->  | C26: =IF(簿!O25="","",簿!O25) ->  | E26: =IF(簿!P25="",0,簿!P25) -> 0 | F26: =IF(簿!Q25="",0,簿!Q25) -> 0
A27: =IF(簿!M26="","",簿!M26) ->  | B27: =IF(簿!N26="","",簿!N26) ->  | C27: =IF(簿!O26="","",簿!O26) ->  | E27: =IF(簿!P26="",0,簿!P26) -> 0 | F27: =IF(簿!Q26="",0,簿!Q26) -> 0
A28: =IF(簿!M27="","",簿!M27) ->  | B28: =IF(簿!N27="","",簿!N27) ->  | C28: =IF(簿!O27="","",簿!O27) ->  | E28: =IF(簿!P27="",0,簿!P27) -> 0 | F28: =IF(簿!Q27="",0,簿!Q27) -> 0
A29: =IF(簿!M28="","",簿!M28) ->  | B29: =IF(簿!N28="","",簿!N28) ->  | C29: =IF(簿!O28="","",簿!O28) ->  | E29: =IF(簿!P28="",0,簿!P28) -> 0 | F29: =IF(簿!Q28="",0,簿!Q28) -> 0
A30: =IF(簿!M29="","",簿!M29) ->  | B30: =IF(簿!N29="","",簿!N29) ->  | C30: =IF(簿!O29="","",簿!O29) ->  | E30: =IF(簿!P29="",0,簿!P29) -> 0 | F30: =IF(簿!Q29="",0,簿!Q29) -> 0
A31: =IF(簿!M30="","",簿!M30) ->  | B31: =IF(簿!N30="","",簿!N30) ->  | C31: =IF(簿!O30="","",簿!O30) ->  | E31: =IF(簿!P30="",0,簿!P30) -> 0 | F31: =IF(簿!Q30="",0,簿!Q30) -> 0
A32: =IF(簿!M31="","",簿!M31) ->  | B32: =IF(簿!N31="","",簿!N31) ->  | C32: =IF(簿!O31="","",簿!O31) ->  | E32: =IF(簿!P31="",0,簿!P31) -> 0 | F32: =IF(簿!Q31="",0,簿!Q31) -> 0
A33: =IF(簿!M32="","",簿!M32) ->  | B33: =IF(簿!N32="","",簿!N32) ->  | C33: =IF(簿!O32="","",簿!O32) ->  | E33: =IF(簿!P32="",0,簿!P32) -> 0 | F33: =IF(簿!Q32="",0,簿!Q32) -> 0
A34: =IF(簿!M33="","",簿!M33) ->  | B34: =IF(簿!N33="","",簿!N33) ->  | C34: =IF(簿!O33="","",簿!O33) ->  | E34: =IF(簿!P33="",0,簿!P33) -> 0 | F34: =IF(簿!Q33="",0,簿!Q33) -> 0
A35: =IF(簿!M34="","",簿!M34) ->  | B35: =IF(簿!N34="","",簿!N34) ->  | C35: =IF(簿!O34="","",簿!O34) ->  | E35: =IF(簿!P34="",0,簿!P34) -> 0 | F35: =IF(簿!Q34="",0,簿!Q34) -> 0
A36: =IF(簿!M35="","",簿!M35) ->  | B36: =IF(簿!N35="","",簿!N35) ->  | C36: =IF(簿!O35="","",簿!O35) ->  | E36: =IF(簿!P35="",0,簿!P35) -> 0 | F36: =IF(簿!Q35="",0,簿!Q35) -> 0
A37: =IF(簿!M36="","",簿!M36) ->  | B37: =IF(簿!N36="","",簿!N36) ->  | C37: =IF(簿!O36="","",簿!O36) ->  | E37: =IF(簿!P36="",0,簿!P36) -> 0 | F37: =IF(簿!Q36="",0,簿!Q36) -> 0
A38: =IF(簿!M37="","",簿!M37) ->  | B38: =IF(簿!N37="","",簿!N37) ->  | C38: =IF(簿!O37="","",簿!O37) ->  | E38: =IF(簿!P37="",0,簿!P37) -> 0 | F38: =IF(簿!Q37="",0,簿!Q37) -> 0
A39: =IF(簿!M38="","",簿!M38) ->  | B39: =IF(簿!N38="","",簿!N38) ->  | C39: =IF(簿!O38="","",簿!O38) ->  | E39: =IF(簿!P38="",0,簿!P38) -> 0 | F39: =IF(簿!Q38="",0,簿!Q38) -> 0
A40: =IF(簿!M39="","",簿!M39) ->  | B40: =IF(簿!N39="","",簿!N39) ->  | C40: =IF(簿!O39="","",簿!O39) ->  | E40: =IF(簿!P39="",0,簿!P39) -> 0 | F40: =IF(簿!Q39="",0,簿!Q39) -> 0
A41: =IF(簿!M40="","",簿!M40) ->  | B41: =IF(簿!N40="","",簿!N40) ->  | C41: =IF(簿!O40="","",簿!O40) ->  | E41: =IF(簿!P40="",0,簿!P40) -> 0 | F41: =IF(簿!Q40="",0,簿!Q40) -> 0
A42: =IF(簿!M41="","",簿!M41) ->  | B42: =IF(簿!N41="","",簿!N41) ->  | C42: =IF(簿!O41="","",簿!O41) ->  | E42: =IF(簿!P41="",0,簿!P41) -> 0 | F42: =IF(簿!Q41="",0,簿!Q41) -> 0
A43: =IF(簿!M42="","",簿!M42) ->  | B43: =IF(簿!N42="","",簿!N42) ->  | C43: =IF(簿!O42="","",簿!O42) ->  | E43: =IF(簿!P42="",0,簿!P42) -> 0 | F43: =IF(簿!Q42="",0,簿!Q42) -> 0
A44: =IF(簿!M43="","",簿!M43) ->  | B44: =IF(簿!N43="","",簿!N43) ->  | C44: =IF(簿!O43="","",簿!O43) ->  | E44: =IF(簿!P43="",0,簿!P43) -> 0 | F44: =IF(簿!Q43="",0,簿!Q43) -> 0
A45: =IF(簿!M44="","",簿!M44) ->  | B45: =IF(簿!N44="","",簿!N44) ->  | C45: =IF(簿!O44="","",簿!O44) ->  | E45: =IF(簿!P44="",0,簿!P44) -> 0 | F45: =IF(簿!Q44="",0,簿!Q44) -> 0
A46: =IF(簿!M45="","",簿!M45) ->  | B46: =IF(簿!N45="","",簿!N45) ->  | C46: =IF(簿!O45="","",簿!O45) ->  | E46: =IF(簿!P45="",0,簿!P45) -> 0 | F46: =IF(簿!Q45="",0,簿!Q45) -> 0
A47: =IF(簿!M46="","",簿!M46) ->  | B47: =IF(簿!N46="","",簿!N46) ->  | C47: =IF(簿!O46="","",簿!O46) ->  | E47: =IF(簿!P46="",0,簿!P46) -> 0 | F47: =IF(簿!Q46="",0,簿!Q46) -> 0
A48: =IF(簿!M47="","",簿!M47) ->  | B48: =IF(簿!N47="","",簿!N47) ->  | C48: =IF(簿!O47="","",簿!O47) ->  | E48: =IF(簿!P47="",0,簿!P47) -> 0 | F48: =IF(簿!Q47="",0,簿!Q47) -> 0
A49: =IF(簿!M48="","",簿!M48) ->  | B49: =IF(簿!N48="","",簿!N48) ->  | C49: =IF(簿!O48="","",簿!O48) ->  | E49: =IF(簿!P48="",0,簿!P48) -> 0 | F49: =IF(簿!Q48="",0,簿!Q48) -> 0
A50: =IF(簿!M49="","",簿!M49) ->  | B50: =IF(簿!N49="","",簿!N49) ->  | C50: =IF(簿!O49="","",簿!O49) ->  | E50: =IF(簿!P49="",0,簿!P49) -> 0 | F50: =IF(簿!Q49="",0,簿!Q49) -> 0
A51: =IF(簿!M50="","",簿!M50) ->  | B51: =IF(簿!N50="","",簿!N50) ->  | C51: =IF(簿!O50="","",簿!O50) ->  | E51: =IF(簿!P50="",0,簿!P50) -> 0 | F51: =IF(簿!Q50="",0,簿!Q50) -> 0
A52: =IF(簿!M51="","",簿!M51) ->  | B52: =IF(簿!N51="","",簿!N51) ->  | C52: =IF(簿!O51="","",簿!O51) ->  | E52: =IF(簿!P51="",0,簿!P51) -> 0 | F52: =IF(簿!Q51="",0,簿!Q51) -> 0
A53: =IF(簿!M52="","",簿!M52) ->  | B53: =IF(簿!N52="","",簿!N52) ->  | C53: =IF(簿!O52="","",簿!O52) ->  | E53: =IF(簿!P52="",0,簿!P52) -> 0 | F53: =IF(簿!Q52="",0,簿!Q52) -> 0
A54: =IF(簿!M53="","",簿!M53) ->  | B54: =IF(簿!N53="","",簿!N53) ->  | C54: =IF(簿!O53="","",簿!O53) ->  | E54: =IF(簿!P53="",0,簿!P53) -> 0 | F54: =IF(簿!Q53="",0,簿!Q53) -> 0
A55: =IF(簿!M54="","",簿!M54) ->  | B55: =IF(簿!N54="","",簿!N54) ->  | C55: =IF(簿!O54="","",簿!O54) ->  | E55: =IF(簿!P54="",0,簿!P54) -> 0 | F55: =IF(簿!Q54="",0,簿!Q54) -> 0
A56: =IF(簿!M205<50,"","小 計") ->  | D56: =IF(簿!M205<50,0,D6) -> 0 | E56: =IF(簿!M205<50,0,SUM(E7:E55)) -> 0 | F56: =IF(簿!M205<50,0,SUM(F7:F55)) -> 0
A57: =IF(簿!M205<50,"合 計","") -> 合 計 | D57: =IF(簿!M205<50,D6,0) -> 0 | E57: =IF(簿!M205<50,SUM(E7:E55),0) -> 0 | F57: =IF(簿!M205<50,SUM(F7:F55),0) -> 0 | G57: =IF(簿!M205<50,D57-E57-F57,"") -> 0
A58: =A3 -> その他の経費（対象外）
G59: 2
A60: 月 日 | B60: 摘 要 | D60: 予 算 額 | E60: 収入金額 | F60: 支出金額 | G60: =IF(簿!M4>9,"差引残額","収入未済額") -> 差引残額
A61: =IF(簿!M55="","",簿!M55) ->  | B61: =IF(簿!N55="","",簿!N55) ->  | C61: =IF(簿!O55="","",簿!O55) ->  | E61: =IF(簿!P55="",0,簿!P55) -> 0 | F61: =IF(簿!Q55="",0,簿!Q55) -> 0 | G61: =IF(A61="","",G55-E61-F61) -> 
A62: =IF(簿!M56="","",簿!M56) ->  | B62: =IF(簿!N56="","",簿!N56) ->  | C62: =IF(簿!O56="","",簿!O56) ->  | E62: =IF(簿!P56="",0,簿!P56) -> 0 | F62: =IF(簿!Q56="",0,簿!Q56) -> 0 | G62: =IF(A62="","",G61-E62-F62) -> 
A63: =IF(簿!M57="","",簿!M57) ->  | B63: =IF(簿!N57="","",簿!N57) ->  | C63: =IF(簿!O57="","",簿!O57) ->  | E63: =IF(簿!P57="",0,簿!P57) -> 0 | F63: =IF(簿!Q57="",0,簿!Q57) -> 0 | G63: =IF(A63="","",G62-E63-F63) -> 
A64: =IF(簿!M58="","",簿!M58) ->  | B64: =IF(簿!N58="","",簿!N58) ->  | C64: =IF(簿!O58="","",簿!O58) ->  | E64: =IF(簿!P58="",0,簿!P58) -> 0 | F64: =IF(簿!Q58="",0,簿!Q58) -> 0
A65: =IF(簿!M59="","",簿!M59) ->  | B65: =IF(簿!N59="","",簿!N59) ->  | C65: =IF(簿!O59="","",簿!O59) ->  | E65: =IF(簿!P59="",0,簿!P59) -> 0 | F65: =IF(簿!Q59="",0,簿!Q59) -> 0
A66: =IF(簿!M60="","",簿!M60) ->  | B66: =IF(簿!N60="","",簿!N60) ->  | C66: =IF(簿!O60="","",簿!O60) ->  | E66: =IF(簿!P60="",0,簿!P60) -> 0 | F66: =IF(簿!Q60="",0,簿!Q60) -> 0
A67: =IF(簿!M61="","",簿!M61) ->  | B67: =IF(簿!N61="","",簿!N61) ->  | C67: =IF(簿!O61="","",簿!O61) ->  | E67: =IF(簿!P61="",0,簿!P61) -> 0 | F67: =IF(簿!Q61="",0,簿!Q61) -> 0
A68: =IF(簿!M62="","",簿!M62) ->  | B68: =IF(簿!N62="","",簿!N62) ->  | C68: =IF(簿!O62="","",簿!O62) ->  | E68: =IF(簿!P62="",0,簿!P62) -> 0 | F68: =IF(簿!Q62="",0,簿!Q62) -> 0
A69: =IF(簿!M63="","",簿!M63) ->  | B69: =IF(簿!N63="","",簿!N63) ->  | C69: =IF(簿!O63="","",簿!O63) ->  | E69: =IF(簿!P63="",0,簿!P63) -> 0 | F69: =IF(簿!Q63="",0,簿!Q63) -> 0
A70: =IF(簿!M64="","",簿!M64) ->  | B70: =IF(簿!N64="","",簿!N64) ->  | C70: =IF(簿!O64="","",簿!O64) ->  | E70: =IF(簿!P64="",0,簿!P64) -> 0 | F70: =IF(簿!Q64="",0,簿!Q64) -> 0
A71: =IF(簿!M65="","",簿!M65) ->  | B71: =IF(簿!N65="","",簿!N65) ->  | C71: =IF(簿!O65="","",簿!O65) ->  | E71: =IF(簿!P65="",0,簿!P65) -> 0 | F71: =IF(簿!Q65="",0,簿!Q65) -> 0
A72: =IF(簿!M66="","",簿!M66) ->  | B72: =IF(簿!N66="","",簿!N66) ->  | C72: =IF(簿!O66="","",簿!O66) ->  | E72: =IF(簿!P66="",0,簿!P66) -> 0 | F72: =IF(簿!Q66="",0,簿!Q66) -> 0
A73: =IF(簿!M67="","",簿!M67) ->  | B73: =IF(簿!N67="","",簿!N67) ->  | C73: =IF(簿!O67="","",簿!O67) ->  | E73: =IF(簿!P67="",0,簿!P67) -> 0 | F73: =IF(簿!Q67="",0,簿!Q67) -> 0
A74: =IF(簿!M68="","",簿!M68) ->  | B74: =IF(簿!N68="","",簿!N68) ->  | C74: =IF(簿!O68="","",簿!O68) ->  | E74: =IF(簿!P68="",0,簿!P68) -> 0 | F74: =IF(簿!Q68="",0,簿!Q68) -> 0
A75: =IF(簿!M69="","",簿!M69) ->  | B75: =IF(簿!N69="","",簿!N69) ->  | C75: =IF(簿!O69="","",簿!O69) ->  | E75: =IF(簿!P69="",0,簿!P69) -> 0 | F75: =IF(簿!Q69="",0,簿!Q69) -> 0
A76: =IF(簿!M70="","",簿!M70) ->  | B76: =IF(簿!N70="","",簿!N70) ->  | C76: =IF(簿!O70="","",簿!O70) ->  | E76: =IF(簿!P70="",0,簿!P70) -> 0 | F76: =IF(簿!Q70="",0,簿!Q70) -> 0
A77: =IF(簿!M71="","",簿!M71) ->  | B77: =IF(簿!N71="","",簿!N71) ->  | C77: =IF(簿!O71="","",簿!O71) ->  | E77: =IF(簿!P71="",0,簿!P71) -> 0 | F77: =IF(簿!Q71="",0,簿!Q71) -> 0
A78: =IF(簿!M72="","",簿!M72) ->  | B78: =IF(簿!N72="","",簿!N72) ->  | C78: =IF(簿!O72="","",簿!O72) ->  | E78: =IF(簿!P72="",0,簿!P72) -> 0 | F78: =IF(簿!Q72="",0,簿!Q72) -> 0
A79: =IF(簿!M73="","",簿!M73) ->  | B79: =IF(簿!N73="","",簿!N73) ->  | C79: =IF(簿!O73="","",簿!O73) ->  | E79: =IF(簿!P73="",0,簿!P73) -> 0 | F79: =IF(簿!Q73="",0,簿!Q73) -> 0
A80: =IF(簿!M74="","",簿!M74) ->  | B80: =IF(簿!N74="","",簿!N74) ->  | C80: =IF(簿!O74="","",簿!O74) ->  | E80: =IF(簿!P74="",0,簿!P74) -> 0 | F80: =IF(簿!Q74="",0,簿!Q74) -> 0
A81: =IF(簿!M75="","",簿!M75) ->  | B81: =IF(簿!N75="","",簿!N75) ->  | C81: =IF(簿!O75="","",簿!O75) ->  | E81: =IF(簿!P75="",0,簿!P75) -> 0 | F81: =IF(簿!Q75="",0,簿!Q75) -> 0
A82: =IF(簿!M76="","",簿!M76) ->  | B82: =IF(簿!N76="","",簿!N76) ->  | C82: =IF(簿!O76="","",簿!O76) ->  | E82: =IF(簿!P76="",0,簿!P76) -> 0 | F82: =IF(簿!Q76="",0,簿!Q76) -> 0
A83: =IF(簿!M77="","",簿!M77) ->  | B83: =IF(簿!N77="","",簿!N77) ->  | C83: =IF(簿!O77="","",簿!O77) ->  | E83: =IF(簿!P77="",0,簿!P77) -> 0 | F83: =IF(簿!Q77="",0,簿!Q77) -> 0
A84: =IF(簿!M78="","",簿!M78) ->  | B84: =IF(簿!N78="","",簿!N78) ->  | C84: =IF(簿!O78="","",簿!O78) ->  | E84: =IF(簿!P78="",0,簿!P78) -> 0 | F84: =IF(簿!Q78="",0,簿!Q78) -> 0
A85: =IF(簿!M79="","",簿!M79) ->  | B85: =IF(簿!N79="","",簿!N79) ->  | C85: =IF(簿!O79="","",簿!O79) ->  | E85: =IF(簿!P79="",0,簿!P79) -> 0 | F85: =IF(簿!Q79="",0,簿!Q79) -> 0
A86: =IF(簿!M80="","",簿!M80) ->  | B86: =IF(簿!N80="","",簿!N80) ->  | C86: =IF(簿!O80="","",簿!O80) ->  | E86: =IF(簿!P80="",0,簿!P80) -> 0 | F86: =IF(簿!Q80="",0,簿!Q80) -> 0
A87: =IF(簿!M81="","",簿!M81) ->  | B87: =IF(簿!N81="","",簿!N81) ->  | C87: =IF(簿!O81="","",簿!O81) ->  | E87: =IF(簿!P81="",0,簿!P81) -> 0 | F87: =IF(簿!Q81="",0,簿!Q81) -> 0
A88: =IF(簿!M82="","",簿!M82) ->  | B88: =IF(簿!N82="","",簿!N82) ->  | C88: =IF(簿!O82="","",簿!O82) ->  | E88: =IF(簿!P82="",0,簿!P82) -> 0 | F88: =IF(簿!Q82="",0,簿!Q82) -> 0
A89: =IF(簿!M83="","",簿!M83) ->  | B89: =IF(簿!N83="","",簿!N83) ->  | C89: =IF(簿!O83="","",簿!O83) ->  | E89: =IF(簿!P83="",0,簿!P83) -> 0 | F89: =IF(簿!Q83="",0,簿!Q83) -> 0
A90: =IF(簿!M84="","",簿!M84) ->  | B90: =IF(簿!N84="","",簿!N84) ->  | C90: =IF(簿!O84="","",簿!O84) ->  | E90: =IF(簿!P84="",0,簿!P84) -> 0 | F90: =IF(簿!Q84="",0,簿!Q84) -> 0
A91: =IF(簿!M85="","",簿!M85) ->  | B91: =IF(簿!N85="","",簿!N85) ->  | C91: =IF(簿!O85="","",簿!O85) ->  | E91: =IF(簿!P85="",0,簿!P85) -> 0 | F91: =IF(簿!Q85="",0,簿!Q85) -> 0
A92: =IF(簿!M86="","",簿!M86) ->  | B92: =IF(簿!N86="","",簿!N86) ->  | C92: =IF(簿!O86="","",簿!O86) ->  | E92: =IF(簿!P86="",0,簿!P86) -> 0 | F92: =IF(簿!Q86="",0,簿!Q86) -> 0
A93: =IF(簿!M87="","",簿!M87) ->  | B93: =IF(簿!N87="","",簿!N87) ->  | C93: =IF(簿!O87="","",簿!O87) ->  | E93: =IF(簿!P87="",0,簿!P87) -> 0 | F93: =IF(簿!Q87="",0,簿!Q87) -> 0
A94: =IF(簿!M88="","",簿!M88) ->  | B94: =IF(簿!N88="","",簿!N88) ->  | C94: =IF(簿!O88="","",簿!O88) ->  | E94: =IF(簿!P88="",0,簿!P88) -> 0 | F94: =IF(簿!Q88="",0,簿!Q88) -> 0
A95: =IF(簿!M89="","",簿!M89) ->  | B95: =IF(簿!N89="","",簿!N89) ->  | C95: =IF(簿!O89="","",簿!O89) ->  | E95: =IF(簿!P89="",0,簿!P89) -> 0 | F95: =IF(簿!Q89="",0,簿!Q89) -> 0
A96: =IF(簿!M90="","",簿!M90) ->  | B96: =IF(簿!N90="","",簿!N90) ->  | C96: =IF(簿!O90="","",簿!O90) ->  | E96: =IF(簿!P90="",0,簿!P90) -> 0 | F96: =IF(簿!Q90="",0,簿!Q90) -> 0
A97: =IF(簿!M91="","",簿!M91) ->  | B97: =IF(簿!N91="","",簿!N91) ->  | C97: =IF(簿!O91="","",簿!O91) ->  | E97: =IF(簿!P91="",0,簿!P91) -> 0 | F97: =IF(簿!Q91="",0,簿!Q91) -> 0
A98: =IF(簿!M92="","",簿!M92) ->  | B98: =IF(簿!N92="","",簿!N92) ->  | C98: =IF(簿!O92="","",簿!O92) ->  | E98: =IF(簿!P92="",0,簿!P92) -> 0 | F98: =IF(簿!Q92="",0,簿!Q92) -> 0
A99: =IF(簿!M93="","",簿!M93) ->  | B99: =IF(簿!N93="","",簿!N93) ->  | C99: =IF(簿!O93="","",簿!O93) ->  | E99: =IF(簿!P93="",0,簿!P93) -> 0 | F99: =IF(簿!Q93="",0,簿!Q93) -> 0
A100: =IF(簿!M94="","",簿!M94) ->  | B100: =IF(簿!N94="","",簿!N94) ->  | C100: =IF(簿!O94="","",簿!O94) ->  | E100: =IF(簿!P94="",0,簿!P94) -> 0 | F100: =IF(簿!Q94="",0,簿!Q94) -> 0
A101: =IF(簿!M95="","",簿!M95) ->  | B101: =IF(簿!N95="","",簿!N95) ->  | C101: =IF(簿!O95="","",簿!O95) ->  | E101: =IF(簿!P95="",0,簿!P95) -> 0 | F101: =IF(簿!Q95="",0,簿!Q95) -> 0
A102: =IF(簿!M96="","",簿!M96) ->  | B102: =IF(簿!N96="","",簿!N96) ->  | C102: =IF(簿!O96="","",簿!O96) ->  | E102: =IF(簿!P96="",0,簿!P96) -> 0 | F102: =IF(簿!Q96="",0,簿!Q96) -> 0
A103: =IF(簿!M97="","",簿!M97) ->  | B103: =IF(簿!N97="","",簿!N97) ->  | C103: =IF(簿!O97="","",簿!O97) ->  | E103: =IF(簿!P97="",0,簿!P97) -> 0 | F103: =IF(簿!Q97="",0,簿!Q97) -> 0
A104: =IF(簿!M98="","",簿!M98) ->  | B104: =IF(簿!N98="","",簿!N98) ->  | C104: =IF(簿!O98="","",簿!O98) ->  | E104: =IF(簿!P98="",0,簿!P98) -> 0 | F104: =IF(簿!Q98="",0,簿!Q98) -> 0
A105: =IF(簿!M99="","",簿!M99) ->  | B105: =IF(簿!N99="","",簿!N99) ->  | C105: =IF(簿!O99="","",簿!O99) ->  | E105: =IF(簿!P99="",0,簿!P99) -> 0 | F105: =IF(簿!Q99="",0,簿!Q99) -> 0
A106: =IF(簿!M100="","",簿!M100) ->  | B106: =IF(簿!N100="","",簿!N100) ->  | C106: =IF(簿!O100="","",簿!O100) ->  | E106: =IF(簿!P100="",0,簿!P100) -> 0 | F106: =IF(簿!Q100="",0,簿!Q100) -> 0
A107: =IF(簿!M101="","",簿!M101) ->  | B107: =IF(簿!N101="","",簿!N101) ->  | C107: =IF(簿!O101="","",簿!O101) ->  | E107: =IF(簿!P101="",0,簿!P101) -> 0 | F107: =IF(簿!Q101="",0,簿!Q101) -> 0
A108: =IF(簿!M102="","",簿!M102) ->  | B108: =IF(簿!N102="","",簿!N102) ->  | C108: =IF(簿!O102="","",簿!O102) ->  | E108: =IF(簿!P102="",0,簿!P102) -> 0 | F108: =IF(簿!Q102="",0,簿!Q102) -> 0
A109: =IF(簿!M103="","",簿!M103) ->  | B109: =IF(簿!N103="","",簿!N103) ->  | C109: =IF(簿!O103="","",簿!O103) ->  | E109: =IF(簿!P103="",0,簿!P103) -> 0 | F109: =IF(簿!Q103="",0,簿!Q103) -> 0
A110: =IF(簿!M104="","",簿!M104) ->  | B110: =IF(簿!N104="","",簿!N104) ->  | C110: =IF(簿!O104="","",簿!O104) ->  | E110: =IF(簿!P104="",0,簿!P104) -> 0 | F110: =IF(簿!Q104="",0,簿!Q104) -> 0
A111: 小 計 | E111: =SUM(E61:E110) -> 0 | F111: =SUM(F61:F110) -> 0
A112: =IF(簿!M205<100,"合 計","") -> 合 計 | D112: =IF(簿!M205<100,D6,0) -> 0 | E112: =IF(簿!M205<100,E56+E111,0) -> 0 | F112: =IF(簿!M205<100,F56+F111,0) -> 0 | G112: =D112-E112-F112 -> 0
A113: =A3 -> その他の経費（対象外）
G114: 3
A115: 月 日 | B115: 摘 要 | D115: 予 算 額 | E115: 収入金額 | F115: 支出金額 | G115: =IF(簿!M4>9,"差引残額","収入未済額") -> 差引残額
A116: =IF(簿!M105="","",簿!M105) ->  | B116: =IF(簿!N105="","",簿!N105) ->  | C116: =IF(簿!O105="","",簿!O105) ->  | E116: =IF(簿!P105="",0,簿!P105) -> 0 | F116: =IF(簿!Q105="",0,簿!Q105) -> 0 | G116: =IF(A116="","",G110-E116-F116) -> 
A117: =IF(簿!M106="","",簿!M106) ->  | B117: =IF(簿!N106="","",簿!N106) ->  | C117: =IF(簿!O106="","",簿!O106) ->  | E117: =IF(簿!P106="",0,簿!P106) -> 0 | F117: =IF(簿!Q106="",0,簿!Q106) -> 0 | G117: =IF(A117="","",G116-E117-F117) -> 
A118: =IF(簿!M107="","",簿!M107) ->  | B118: =IF(簿!N107="","",簿!N107) ->  | C118: =IF(簿!O107="","",簿!O107) ->  | E118: =IF(簿!P107="",0,簿!P107) -> 0 | F118: =IF(簿!Q107="",0,簿!Q107) -> 0 | G118: =IF(A118="","",G117-E118-F118) -> 
A119: =IF(簿!M108="","",簿!M108) ->  | B119: =IF(簿!N108="","",簿!N108) ->  | C119: =IF(簿!O108="","",簿!O108) ->  | E119: =IF(簿!P108="",0,簿!P108) -> 0 | F119: =IF(簿!Q108="",0,簿!Q108) -> 0
A120: =IF(簿!M109="","",簿!M109) ->  | B120: =IF(簿!N109="","",簿!N109) ->  | C120: =IF(簿!O109="","",簿!O109) ->  | E120: =IF(簿!P109="",0,簿!P109) -> 0 | F120: =IF(簿!Q109="",0,簿!Q109) -> 0
A121: =IF(簿!M110="","",簿!M110) ->  | B121: =IF(簿!N110="","",簿!N110) ->  | C121: =IF(簿!O110="","",簿!O110) ->  | E121: =IF(簿!P110="",0,簿!P110) -> 0 | F121: =IF(簿!Q110="",0,簿!Q110) -> 0
A122: =IF(簿!M111="","",簿!M111) ->  | B122: =IF(簿!N111="","",簿!N111) ->  | C122: =IF(簿!O111="","",簿!O111) ->  | E122: =IF(簿!P111="",0,簿!P111) -> 0 | F122: =IF(簿!Q111="",0,簿!Q111) -> 0
A123: =IF(簿!M112="","",簿!M112) ->  | B123: =IF(簿!N112="","",簿!N112) ->  | C123: =IF(簿!O112="","",簿!O112) ->  | E123: =IF(簿!P112="",0,簿!P112) -> 0 | F123: =IF(簿!Q112="",0,簿!Q112) -> 0
A124: =IF(簿!M113="","",簿!M113) ->  | B124: =IF(簿!N113="","",簿!N113) ->  | C124: =IF(簿!O113="","",簿!O113) ->  | E124: =IF(簿!P113="",0,簿!P113) -> 0 | F124: =IF(簿!Q113="",0,簿!Q113) -> 0
A125: =IF(簿!M114="","",簿!M114) ->  | B125: =IF(簿!N114="","",簿!N114) ->  | C125: =IF(簿!O114="","",簿!O114) ->  | E125: =IF(簿!P114="",0,簿!P114) -> 0 | F125: =IF(簿!Q114="",0,簿!Q114) -> 0
A126: =IF(簿!M115="","",簿!M115) ->  | B126: =IF(簿!N115="","",簿!N115) ->  | C126: =IF(簿!O115="","",簿!O115) ->  | E126: =IF(簿!P115="",0,簿!P115) -> 0 | F126: =IF(簿!Q115="",0,簿!Q115) -> 0
A127: =IF(簿!M116="","",簿!M116) ->  | B127: =IF(簿!N116="","",簿!N116) ->  | C127: =IF(簿!O116="","",簿!O116) ->  | E127: =IF(簿!P116="",0,簿!P116) -> 0 | F127: =IF(簿!Q116="",0,簿!Q116) -> 0
A128: =IF(簿!M117="","",簿!M117) ->  | B128: =IF(簿!N117="","",簿!N117) ->  | C128: =IF(簿!O117="","",簿!O117) ->  | E128: =IF(簿!P117="",0,簿!P117) -> 0 | F128: =IF(簿!Q117="",0,簿!Q117) -> 0
A129: =IF(簿!M118="","",簿!M118) ->  | B129: =IF(簿!N118="","",簿!N118) ->  | C129: =IF(簿!O118="","",簿!O118) ->  | E129: =IF(簿!P118="",0,簿!P118) -> 0 | F129: =IF(簿!Q118="",0,簿!Q118) -> 0
A130: =IF(簿!M119="","",簿!M119) ->  | B130: =IF(簿!N119="","",簿!N119) ->  | C130: =IF(簿!O119="","",簿!O119) ->  | E130: =IF(簿!P119="",0,簿!P119) -> 0 | F130: =IF(簿!Q119="",0,簿!Q119) -> 0
A131: =IF(簿!M120="","",簿!M120) ->  | B131: =IF(簿!N120="","",簿!N120) ->  | C131: =IF(簿!O120="","",簿!O120) ->  | E131: =IF(簿!P120="",0,簿!P120) -> 0 | F131: =IF(簿!Q120="",0,簿!Q120) -> 0
A132: =IF(簿!M121="","",簿!M121) ->  | B132: =IF(簿!N121="","",簿!N121) ->  | C132: =IF(簿!O121="","",簿!O121) ->  | E132: =IF(簿!P121="",0,簿!P121) -> 0 | F132: =IF(簿!Q121="",0,簿!Q121) -> 0
A133: =IF(簿!M122="","",簿!M122) ->  | B133: =IF(簿!N122="","",簿!N122) ->  | C133: =IF(簿!O122="","",簿!O122) ->  | E133: =IF(簿!P122="",0,簿!P122) -> 0 | F133: =IF(簿!Q122="",0,簿!Q122) -> 0
A134: =IF(簿!M123="","",簿!M123) ->  | B134: =IF(簿!N123="","",簿!N123) ->  | C134: =IF(簿!O123="","",簿!O123) ->  | E134: =IF(簿!P123="",0,簿!P123) -> 0 | F134: =IF(簿!Q123="",0,簿!Q123) -> 0
A135: =IF(簿!M124="","",簿!M124) ->  | B135: =IF(簿!N124="","",簿!N124) ->  | C135: =IF(簿!O124="","",簿!O124) ->  | E135: =IF(簿!P124="",0,簿!P124) -> 0 | F135: =IF(簿!Q124="",0,簿!Q124) -> 0
A136: =IF(簿!M125="","",簿!M125) ->  | B136: =IF(簿!N125="","",簿!N125) ->  | C136: =IF(簿!O125="","",簿!O125) ->  | E136: =IF(簿!P125="",0,簿!P125) -> 0 | F136: =IF(簿!Q125="",0,簿!Q125) -> 0
A137: =IF(簿!M126="","",簿!M126) ->  | B137: =IF(簿!N126="","",簿!N126) ->  | C137: =IF(簿!O126="","",簿!O126) ->  | E137: =IF(簿!P126="",0,簿!P126) -> 0 | F137: =IF(簿!Q126="",0,簿!Q126) -> 0
A138: =IF(簿!M127="","",簿!M127) ->  | B138: =IF(簿!N127="","",簿!N127) ->  | C138: =IF(簿!O127="","",簿!O127) ->  | E138: =IF(簿!P127="",0,簿!P127) -> 0 | F138: =IF(簿!Q127="",0,簿!Q127) -> 0
A139: =IF(簿!M128="","",簿!M128) ->  | B139: =IF(簿!N128="","",簿!N128) ->  | C139: =IF(簿!O128="","",簿!O128) ->  | E139: =IF(簿!P128="",0,簿!P128) -> 0 | F139: =IF(簿!Q128="",0,簿!Q128) -> 0
A140: =IF(簿!M129="","",簿!M129) ->  | B140: =IF(簿!N129="","",簿!N129) ->  | C140: =IF(簿!O129="","",簿!O129) ->  | E140: =IF(簿!P129="",0,簿!P129) -> 0 | F140: =IF(簿!Q129="",0,簿!Q129) -> 0
A141: =IF(簿!M130="","",簿!M130) ->  | B141: =IF(簿!N130="","",簿!N130) ->  | C141: =IF(簿!O130="","",簿!O130) ->  | E141: =IF(簿!P130="",0,簿!P130) -> 0 | F141: =IF(簿!Q130="",0,簿!Q130) -> 0
A142: =IF(簿!M131="","",簿!M131) ->  | B142: =IF(簿!N131="","",簿!N131) ->  | C142: =IF(簿!O131="","",簿!O131) ->  | E142: =IF(簿!P131="",0,簿!P131) -> 0 | F142: =IF(簿!Q131="",0,簿!Q131) -> 0
A143: =IF(簿!M132="","",簿!M132) ->  | B143: =IF(簿!N132="","",簿!N132) ->  | C143: =IF(簿!O132="","",簿!O132) ->  | E143: =IF(簿!P132="",0,簿!P132) -> 0 | F143: =IF(簿!Q132="",0,簿!Q132) -> 0
A144: =IF(簿!M133="","",簿!M133) ->  | B144: =IF(簿!N133="","",簿!N133) ->  | C144: =IF(簿!O133="","",簿!O133) ->  | E144: =IF(簿!P133="",0,簿!P133) -> 0 | F144: =IF(簿!Q133="",0,簿!Q133) -> 0
A145: =IF(簿!M134="","",簿!M134) ->  | B145: =IF(簿!N134="","",簿!N134) ->  | C145: =IF(簿!O134="","",簿!O134) ->  | E145: =IF(簿!P134="",0,簿!P134) -> 0 | F145: =IF(簿!Q134="",0,簿!Q134) -> 0
A146: =IF(簿!M135="","",簿!M135) ->  | B146: =IF(簿!N135="","",簿!N135) ->  | C146: =IF(簿!O135="","",簿!O135) ->  | E146: =IF(簿!P135="",0,簿!P135) -> 0 | F146: =IF(簿!Q135="",0,簿!Q135) -> 0
A147: =IF(簿!M136="","",簿!M136) ->  | B147: =IF(簿!N136="","",簿!N136) ->  | C147: =IF(簿!O136="","",簿!O136) ->  | E147: =IF(簿!P136="",0,簿!P136) -> 0 | F147: =IF(簿!Q136="",0,簿!Q136) -> 0
A148: =IF(簿!M137="","",簿!M137) ->  | B148: =IF(簿!N137="","",簿!N137) ->  | C148: =IF(簿!O137="","",簿!O137) ->  | E148: =IF(簿!P137="",0,簿!P137) -> 0 | F148: =IF(簿!Q137="",0,簿!Q137) -> 0
A149: =IF(簿!M138="","",簿!M138) ->  | B149: =IF(簿!N138="","",簿!N138) ->  | C149: =IF(簿!O138="","",簿!O138) ->  | E149: =IF(簿!P138="",0,簿!P138) -> 0 | F149: =IF(簿!Q138="",0,簿!Q138) -> 0
A150: =IF(簿!M139="","",簿!M139) ->  | B150: =IF(簿!N139="","",簿!N139) ->  | C150: =IF(簿!O139="","",簿!O139) ->  | E150: =IF(簿!P139="",0,簿!P139) -> 0 | F150: =IF(簿!Q139="",0,簿!Q139) -> 0
A151: =IF(簿!M140="","",簿!M140) ->  | B151: =IF(簿!N140="","",簿!N140) ->  | C151: =IF(簿!O140="","",簿!O140) ->  | E151: =IF(簿!P140="",0,簿!P140) -> 0 | F151: =IF(簿!Q140="",0,簿!Q140) -> 0
A152: =IF(簿!M141="","",簿!M141) ->  | B152: =IF(簿!N141="","",簿!N141) ->  | C152: =IF(簿!O141="","",簿!O141) ->  | E152: =IF(簿!P141="",0,簿!P141) -> 0 | F152: =IF(簿!Q141="",0,簿!Q141) -> 0
A153: =IF(簿!M142="","",簿!M142) ->  | B153: =IF(簿!N142="","",簿!N142) ->  | C153: =IF(簿!O142="","",簿!O142) ->  | E153: =IF(簿!P142="",0,簿!P142) -> 0 | F153: =IF(簿!Q142="",0,簿!Q142) -> 0
A154: =IF(簿!M143="","",簿!M143) ->  | B154: =IF(簿!N143="","",簿!N143) ->  | C154: =IF(簿!O143="","",簿!O143) ->  | E154: =IF(簿!P143="",0,簿!P143) -> 0 | F154: =IF(簿!Q143="",0,簿!Q143) -> 0
A155: =IF(簿!M144="","",簿!M144) ->  | B155: =IF(簿!N144="","",簿!N144) ->  | C155: =IF(簿!O144="","",簿!O144) ->  | E155: =IF(簿!P144="",0,簿!P144) -> 0 | F155: =IF(簿!Q144="",0,簿!Q144) -> 0
A156: =IF(簿!M145="","",簿!M145) ->  | B156: =IF(簿!N145="","",簿!N145) ->  | C156: =IF(簿!O145="","",簿!O145) ->  | E156: =IF(簿!P145="",0,簿!P145) -> 0 | F156: =IF(簿!Q145="",0,簿!Q145) -> 0
A157: =IF(簿!M146="","",簿!M146) ->  | B157: =IF(簿!N146="","",簿!N146) ->  | C157: =IF(簿!O146="","",簿!O146) ->  | E157: =IF(簿!P146="",0,簿!P146) -> 0 | F157: =IF(簿!Q146="",0,簿!Q146) -> 0
A158: =IF(簿!M147="","",簿!M147) ->  | B158: =IF(簿!N147="","",簿!N147) ->  | C158: =IF(簿!O147="","",簿!O147) ->  | E158: =IF(簿!P147="",0,簿!P147) -> 0 | F158: =IF(簿!Q147="",0,簿!Q147) -> 0
A159: =IF(簿!M148="","",簿!M148) ->  | B159: =IF(簿!N148="","",簿!N148) ->  | C159: =IF(簿!O148="","",簿!O148) ->  | E159: =IF(簿!P148="",0,簿!P148) -> 0 | F159: =IF(簿!Q148="",0,簿!Q148) -> 0
A160: =IF(簿!M149="","",簿!M149) ->  | B160: =IF(簿!N149="","",簿!N149) ->  | C160: =IF(簿!O149="","",簿!O149) ->  | E160: =IF(簿!P149="",0,簿!P149) -> 0 | F160: =IF(簿!Q149="",0,簿!Q149) -> 0
A161: =IF(簿!M150="","",簿!M150) ->  | B161: =IF(簿!N150="","",簿!N150) ->  | C161: =IF(簿!O150="","",簿!O150) ->  | E161: =IF(簿!P150="",0,簿!P150) -> 0 | F161: =IF(簿!Q150="",0,簿!Q150) -> 0
A162: =IF(簿!M151="","",簿!M151) ->  | B162: =IF(簿!N151="","",簿!N151) ->  | C162: =IF(簿!O151="","",簿!O151) ->  | E162: =IF(簿!P151="",0,簿!P151) -> 0 | F162: =IF(簿!Q151="",0,簿!Q151) -> 0
A163: =IF(簿!M152="","",簿!M152) ->  | B163: =IF(簿!N152="","",簿!N152) ->  | C163: =IF(簿!O152="","",簿!O152) ->  | E163: =IF(簿!P152="",0,簿!P152) -> 0 | F163: =IF(簿!Q152="",0,簿!Q152) -> 0
A164: =IF(簿!M153="","",簿!M153) ->  | B164: =IF(簿!N153="","",簿!N153) ->  | C164: =IF(簿!O153="","",簿!O153) ->  | E164: =IF(簿!P153="",0,簿!P153) -> 0 | F164: =IF(簿!Q153="",0,簿!Q153) -> 0
A165: =IF(簿!M154="","",簿!M154) ->  | B165: =IF(簿!N154="","",簿!N154) ->  | C165: =IF(簿!O154="","",簿!O154) ->  | E165: =IF(簿!P154="",0,簿!P154) -> 0 | F165: =IF(簿!Q154="",0,簿!Q154) -> 0
A166: 小 計 | E166: =SUM(E116:E165) -> 0 | F166: =SUM(F116:F165) -> 0
A167: =IF(簿!M205<150,"合 計","") -> 合 計 | D167: =IF(簿!M205<150,D6,0) -> 0 | E167: =IF(簿!M205<150,E56+E111+E166,0) -> 0 | F167: =IF(簿!M205<150,F56+F111+F166,0) -> 0 | G167: =IF(簿!M205<150,D167-E167-F167,0) -> 0
A168: =A3 -> その他の経費（対象外）
G169: 4
A170: 月 日 | B170: 摘 要 | D170: 予 算 額 | E170: 収入金額 | F170: 支出金額 | G170: =IF(簿!M4>9,"差引残額","収入未済額") -> 差引残額
A171: =IF(簿!M155="","",簿!M155) ->  | B171: =IF(簿!N155="","",簿!N155) ->  | C171: =IF(簿!O155="","",簿!O155) ->  | E171: =IF(簿!P155="",0,簿!P155) -> 0 | F171: =IF(簿!Q155="",0,簿!Q155) -> 0 | G171: =IF(A171="","",G165-E171-F171) -> 
A172: =IF(簿!M156="","",簿!M156) ->  | B172: =IF(簿!N156="","",簿!N156) ->  | C172: =IF(簿!O156="","",簿!O156) ->  | E172: =IF(簿!P156="",0,簿!P156) -> 0 | F172: =IF(簿!Q156="",0,簿!Q156) -> 0 | G172: =IF(A172="","",G171-E172-F172) -> 
A173: =IF(簿!M157="","",簿!M157) ->  | B173: =IF(簿!N157="","",簿!N157) ->  | C173: =IF(簿!O157="","",簿!O157) ->  | E173: =IF(簿!P157="",0,簿!P157) -> 0 | F173: =IF(簿!Q157="",0,簿!Q157) -> 0 | G173: =IF(A173="","",G172-E173-F173) -> 
A174: =IF(簿!M158="","",簿!M158) ->  | B174: =IF(簿!N158="","",簿!N158) ->  | C174: =IF(簿!O158="","",簿!O158) ->  | E174: =IF(簿!P158="",0,簿!P158) -> 0 | F174: =IF(簿!Q158="",0,簿!Q158) -> 0
A175: =IF(簿!M159="","",簿!M159) ->  | B175: =IF(簿!N159="","",簿!N159) ->  | C175: =IF(簿!O159="","",簿!O159) ->  | E175: =IF(簿!P159="",0,簿!P159) -> 0 | F175: =IF(簿!Q159="",0,簿!Q159) -> 0
A176: =IF(簿!M160="","",簿!M160) ->  | B176: =IF(簿!N160="","",簿!N160) ->  | C176: =IF(簿!O160="","",簿!O160) ->  | E176: =IF(簿!P160="",0,簿!P160) -> 0 | F176: =IF(簿!Q160="",0,簿!Q160) -> 0
A177: =IF(簿!M161="","",簿!M161) ->  | B177: =IF(簿!N161="","",簿!N161) ->  | C177: =IF(簿!O161="","",簿!O161) ->  | E177: =IF(簿!P161="",0,簿!P161) -> 0 | F177: =IF(簿!Q161="",0,簿!Q161) -> 0
A178: =IF(簿!M162="","",簿!M162) ->  | B178: =IF(簿!N162="","",簿!N162) ->  | C178: =IF(簿!O162="","",簿!O162) ->  | E178: =IF(簿!P162="",0,簿!P162) -> 0 | F178: =IF(簿!Q162="",0,簿!Q162) -> 0
A179: =IF(簿!M163="","",簿!M163) ->  | B179: =IF(簿!N163="","",簿!N163) ->  | C179: =IF(簿!O163="","",簿!O163) ->  | E179: =IF(簿!P163="",0,簿!P163) -> 0 | F179: =IF(簿!Q163="",0,簿!Q163) -> 0
A180: =IF(簿!M164="","",簿!M164) ->  | B180: =IF(簿!N164="","",簿!N164) ->  | C180: =IF(簿!O164="","",簿!O164) ->  | E180: =IF(簿!P164="",0,簿!P164) -> 0 | F180: =IF(簿!Q164="",0,簿!Q164) -> 0
A181: =IF(簿!M165="","",簿!M165) ->  | B181: =IF(簿!N165="","",簿!N165) ->  | C181: =IF(簿!O165="","",簿!O165) ->  | E181: =IF(簿!P165="",0,簿!P165) -> 0 | F181: =IF(簿!Q165="",0,簿!Q165) -> 0
A182: =IF(簿!M166="","",簿!M166) ->  | B182: =IF(簿!N166="","",簿!N166) ->  | C182: =IF(簿!O166="","",簿!O166) ->  | E182: =IF(簿!P166="",0,簿!P166) -> 0 | F182: =IF(簿!Q166="",0,簿!Q166) -> 0
A183: =IF(簿!M167="","",簿!M167) ->  | B183: =IF(簿!N167="","",簿!N167) ->  | C183: =IF(簿!O167="","",簿!O167) ->  | E183: =IF(簿!P167="",0,簿!P167) -> 0 | F183: =IF(簿!Q167="",0,簿!Q167) -> 0
A184: =IF(簿!M168="","",簿!M168) ->  | B184: =IF(簿!N168="","",簿!N168) ->  | C184: =IF(簿!O168="","",簿!O168) ->  | E184: =IF(簿!P168="",0,簿!P168) -> 0 | F184: =IF(簿!Q168="",0,簿!Q168) -> 0
A185: =IF(簿!M169="","",簿!M169) ->  | B185: =IF(簿!N169="","",簿!N169) ->  | C185: =IF(簿!O169="","",簿!O169) ->  | E185: =IF(簿!P169="",0,簿!P169) -> 0 | F185: =IF(簿!Q169="",0,簿!Q169) -> 0
A186: =IF(簿!M170="","",簿!M170) ->  | B186: =IF(簿!N170="","",簿!N170) ->  | C186: =IF(簿!O170="","",簿!O170) ->  | E186: =IF(簿!P170="",0,簿!P170) -> 0 | F186: =IF(簿!Q170="",0,簿!Q170) -> 0
A187: =IF(簿!M171="","",簿!M171) ->  | B187: =IF(簿!N171="","",簿!N171) ->  | C187: =IF(簿!O171="","",簿!O171) ->  | E187: =IF(簿!P171="",0,簿!P171) -> 0 | F187: =IF(簿!Q171="",0,簿!Q171) -> 0
A188: =IF(簿!M172="","",簿!M172) ->  | B188: =IF(簿!N172="","",簿!N172) ->  | C188: =IF(簿!O172="","",簿!O172) ->  | E188: =IF(簿!P172="",0,簿!P172) -> 0 | F188: =IF(簿!Q172="",0,簿!Q172) -> 0
A189: =IF(簿!M173="","",簿!M173) ->  | B189: =IF(簿!N173="","",簿!N173) ->  | C189: =IF(簿!O173="","",簿!O173) ->  | E189: =IF(簿!P173="",0,簿!P173) -> 0 | F189: =IF(簿!Q173="",0,簿!Q173) -> 0
A190: =IF(簿!M174="","",簿!M174) ->  | B190: =IF(簿!N174="","",簿!N174) ->  | C190: =IF(簿!O174="","",簿!O174) ->  | E190: =IF(簿!P174="",0,簿!P174) -> 0 | F190: =IF(簿!Q174="",0,簿!Q174) -> 0
A191: =IF(簿!M175="","",簿!M175) ->  | B191: =IF(簿!N175="","",簿!N175) ->  | C191: =IF(簿!O175="","",簿!O175) ->  | E191: =IF(簿!P175="",0,簿!P175) -> 0 | F191: =IF(簿!Q175="",0,簿!Q175) -> 0
A192: =IF(簿!M176="","",簿!M176) ->  | B192: =IF(簿!N176="","",簿!N176) ->  | C192: =IF(簿!O176="","",簿!O176) ->  | E192: =IF(簿!P176="",0,簿!P176) -> 0 | F192: =IF(簿!Q176="",0,簿!Q176) -> 0
A193: =IF(簿!M177="","",簿!M177) ->  | B193: =IF(簿!N177="","",簿!N177) ->  | C193: =IF(簿!O177="","",簿!O177) ->  | E193: =IF(簿!P177="",0,簿!P177) -> 0 | F193: =IF(簿!Q177="",0,簿!Q177) -> 0
A194: =IF(簿!M178="","",簿!M178) ->  | B194: =IF(簿!N178="","",簿!N178) ->  | C194: =IF(簿!O178="","",簿!O178) ->  | E194: =IF(簿!P178="",0,簿!P178) -> 0 | F194: =IF(簿!Q178="",0,簿!Q178) -> 0
A195: =IF(簿!M179="","",簿!M179) ->  | B195: =IF(簿!N179="","",簿!N179) ->  | C195: =IF(簿!O179="","",簿!O179) ->  | E195: =IF(簿!P179="",0,簿!P179) -> 0 | F195: =IF(簿!Q179="",0,簿!Q179) -> 0
A196: =IF(簿!M180="","",簿!M180) ->  | B196: =IF(簿!N180="","",簿!N180) ->  | C196: =IF(簿!O180="","",簿!O180) ->  | E196: =IF(簿!P180="",0,簿!P180) -> 0 | F196: =IF(簿!Q180="",0,簿!Q180) -> 0
A197: =IF(簿!M181="","",簿!M181) ->  | B197: =IF(簿!N181="","",簿!N181) ->  | C197: =IF(簿!O181="","",簿!O181) ->  | E197: =IF(簿!P181="",0,簿!P181) -> 0 | F197: =IF(簿!Q181="",0,簿!Q181) -> 0
A198: =IF(簿!M182="","",簿!M182) ->  | B198: =IF(簿!N182="","",簿!N182) ->  | C198: =IF(簿!O182="","",簿!O182) ->  | E198: =IF(簿!P182="",0,簿!P182) -> 0 | F198: =IF(簿!Q182="",0,簿!Q182) -> 0
A199: =IF(簿!M183="","",簿!M183) ->  | B199: =IF(簿!N183="","",簿!N183) ->  | C199: =IF(簿!O183="","",簿!O183) ->  | E199: =IF(簿!P183="",0,簿!P183) -> 0 | F199: =IF(簿!Q183="",0,簿!Q183) -> 0
A200: =IF(簿!M184="","",簿!M184) ->  | B200: =IF(簿!N184="","",簿!N184) ->  | C200: =IF(簿!O184="","",簿!O184) ->  | E200: =IF(簿!P184="",0,簿!P184) -> 0 | F200: =IF(簿!Q184="",0,簿!Q184) -> 0
... 24 more rows

Sheet 報告
B1: 中間・決算報告書作成
B3: 中間報告月日 | C3: 10.01 | D3: 小数の形で
B4: 決算報告月日 | C4: 3.26 | D4: 〃 | H4: 作成する報告書を選択→ | M4: 決算
B5: 代表者 | C5: 〇〇 〇〇
B6: 監査委員１ | C6: △△ △△
B7: 監査委員２ | C7: ◇◇ ◇◇
G9: ="令和"&FIXED(予算!E4,0)&"年度 "&予算!C2&"会計"&M4&"報告書" -> 令和8年度 〇〇中はまクル認定クラブ会計決算報告書
B11: 作成手順 | K11: 収 入 額 | L11: =L26 -> 677600 | N11: 円
B12: ①上の枠に必要事項を入力する。 | K12: 支 出 額 | L12: =L54 -> 677600 | N12: 円
B13: ②「中間」「決算」のいずれか | K13: 差引残額 | L13: =L11-L12 -> 0 | N13: =IF(M4="中間","円",IF(L13=0,"円","円（次年度へ繰越）")) -> 円
B14: を選択する。 | G14: 収入の部
B15: ③報告書の備考欄を入力する。 | G15: 項 目 | K15: 予 算 額 | L15: =IF(M4="中間","収入済額","決 算 額") -> 決 算 額 | M15: =IF(M4="中間","収入未済額","増 減") -> 増 減 | N15: 備 考
B16: ④下の「印刷」をクリックする。 | G16: 1 | H16: =予算!C7 -> 会費 | K16: =予算!D7 -> 360000 | L16: =予算!E7 -> 360000 | M16: =IF($M$4="中間",K16-L16,L16-K16) -> 0
G17: 2 | H17: =予算!C8 -> 保険料 | K17: =予算!D8 -> 0 | L17: =予算!E8 -> 0 | M17: =IF($M$4="中間",K17-L17,L17-K17) -> 0
G18: 3 | H18: =予算!C9 -> 雑収入 | K18: =予算!D9 -> 1000 | L18: =予算!E9 -> 1000 | M18: =IF($M$4="中間",K18-L18,L18-K18) -> 0
H19: 対象計 | K19: =SUM(K16:K18) -> 361000 | L19: =SUM(L16:L18) -> 361000 | M19: =IF($M$4="中間",K19-L19,L19-K19) -> 0
G20: 4 | H20: =予算!C10 -> 会費（対象外） | K20: =予算!D10 -> 60000 | L20: =予算!E10 -> 60000 | M20: 0
G21: 5 | H21: =予算!C11 -> 繰越金（対象外） | K21: =予算!D11 -> 0 | L21: =予算!E11 -> 0 | M21: =IF($M$4="中間",K21-L21,L21-K21) -> 0
G22: 6 | H22: =予算!C12 -> 保険料（対象外） | K22: =予算!D12 -> 17600 | L22: =予算!E12 -> 17600
G23: 7 | H23: =予算!C13 -> 雑収入（対象外） | K23: =予算!D13 -> 0 | L23: =予算!E13 -> 0 | M23: =IF($M$4="中間",K23-L23,L23-K23) -> 0
G24: 対象外計 | K24: =SUM(K20:K23) -> 77600 | L24: =SUM(L20:L23) -> 77600 | M24: 0
G25: 8 | H25: =予算!C14 -> 補助金 | K25: =予算!D14 -> 239000 | L25: =予算!E14 -> 239000 | M25: =IF($M$4="中間",K25-L25,L25-K25) -> 0
G26: 合 計 | K26: =K19+K24+K25 -> 677600 | L26: =L19+L24+L25 -> 677600 | M26: =IF($M$4="中間",K26-L26,L26-K26) -> 0
G28: 支出の部
G29: 項 目 | K29: 予 算 額 | L29: =IF(M4="中間","支出済額","決 算 額") -> 決 算 額 | M29: =IF(M4="中間","残 額","増 減") -> 増 減 | N29: 備 考
G30: 対象経費 | K30: =SUM(K31:K41) -> 600000 | L30: =SUM(L31:L41) -> 600000 | M30: =IF($M$4="中間",K30-L30,L30-K30) -> 0
H31: 諸謝金 | K31: =予算!D17 -> 287310 | L31: =予算!E17 -> 287310 | M31: 0
H32: 旅費 | K32: =予算!D18 -> 42000 | L32: =予算!E18 -> 42000 | M32: 0
H33: 通信運搬費 | K33: =予算!D19 -> 13000 | L33: =予算!E19 -> 13000 | M33: 0
H34: 印刷製本費 | K34: =予算!D20 -> 30000 | L34: =予算!E20 -> 30000 | M34: 0
H35: 備品費 | K35: =予算!D21 -> 0 | L35: =予算!E21 -> 0 | M35: 0
H36: 消耗品費 | K36: =予算!D22 -> 83600 | L36: =予算!E22 -> 83600 | M36: =IF($M$4="中間",K36-L36,L36-K36) -> 0
H37: 借料及び損料 | K37: =予算!D23 -> 116810 | L37: =予算!E23 -> 116810 | M37: 0
H38: 保険料 | K38: =予算!D24 -> 0 | L38: =予算!E24 -> 0 | M38: 0
H39: 雑務経費 | K39: =予算!D25 -> 27280 | L39: =予算!E25 -> 27280 | M39: 0
K40: =予算!D27 -> 0 | L40: =予算!E27 -> 0 | M40: 0
H41: その他の経費 | K41: =予算!D28 -> 0 | L41: =予算!E28 -> 0 | M41: 0
G42: 対象外経費 | K42: =SUM(K43:K53) -> 77600 | L42: =SUM(L43:L53) -> 77600 | M42: =IF($M$4="中間",K42-L42,L42-K42) -> 0
H43: 諸謝金 | K43: =予算!D26 -> 47885 | L43: =予算!E26 -> 47885 | M43: =IF($M$4="中間",K43-L43,L43-K43) -> 0
H44: 旅費 | K44: =予算!D27 -> 0 | L44: =予算!E27 -> 0 | M44: 0
H45: 通信運搬費 | K45: =予算!D28 -> 0 | L45: =予算!E28 -> 0 | M45: 0
H46: 印刷製本費 | K46: =予算!D29 -> 0 | L46: =予算!E29 -> 0 | M46: 0
H47: 備品費 | K47: =予算!D30 -> 0 | L47: =予算!E30 -> 0 | M47: 0
H48: 消耗品費 | K48: =予算!D31 -> 12115 | L48: =予算!E31 -> 12115 | M48: =IF($M$4="中間",K48-L48,L48-K48) -> 0
H49: 借料及び損料 | K49: =予算!D32 -> 0 | L49: =予算!E32 -> 0 | M49: =IF($M$4="中間",K49-L49,L49-K49) -> 0
H50: 保険料 | K50: =予算!D33 -> 17600 | L50: =予算!E33 -> 17600 | M50: =IF($M$4="中間",K50-L50,L50-K50) -> 0
H51: 雑務経費 | K51: =予算!D34 -> 0 | L51: =予算!E34 -> 0 | M51: 0
H52: その他の経費 | K52: =予算!D38 -> 0 | L52: =予算!E38 -> 0 | M52: 0
H53: =予算!C39 -> 0 | K53: =予算!D39 -> 0 | L53: =予算!E39 -> 0 | M53: 0
G54: 合 計 | K54: =K30+K42 -> 677600 | L54: =L30+L42 -> 677600 | M54: 0
G56: =IF(M4="決算"," 上記のとおり報告いたします","") -> 上記のとおり報告いたします | N56: =IF(M4="中間","令和"&FIXED(T63,0)&"年"&FIXED(U63,0)&"月"&FIXED(V63,0)&"日 現在 ","") -> 
H57: =IF(M4="決算","令和"&FIXED(T63,0)&"年"&FIXED(U63,0)&"月"&FIXED(V63,0)&"日","") -> 令和9年3月26日 | M57: =IF(M4="決算",予算!C4&"代表者 ","") -> 代表者 | O57: =IF(M4="決算",C5,"") -> 〇〇 〇〇
G59: =IF(M4="決算"," 監査の結果、正確であることを認めます","") -> 監査の結果、正確であることを認めます
H60: =IF(M4="決算","令和"&FIXED(T63,0)&"年"&FIXED(U63,0)&"月"&FIXED(V63,0)&"日","") -> 令和9年3月26日 | N60: =IF(M4="決算","監査委員 ","") -> 監査委員 | O60: =IF(C6="","",IF(M4="決算",C6,"")) -> △△ △△
O61: =IF(C7="","",IF(M4="決算",C7,"")) -> ◇◇ ◇◇
T63: =IF(U63<4,予算!E4+1,予算!E4) -> 9 | U63: =IF(M4="中間",INT(C3),INT(C4)) -> 3 | V63: =IF(M4="中間",C3,C4)*100-U63*100 -> 26
G79: ="令和"&FIXED(予算!E4+1,0)&"年度 "&予算!C4&""&予算!C2&"会計"&"予算書(案)" -> 令和9年度 〇〇中はまクル認定クラブ会計予算書(案)
K81: 収 入 額 | L81: =K96 -> 677600 | N81: 円
K82: 支 出 額 | L82: =K121 -> 677600 | N82: 円
K83: 差引残額 | L83: =L81-L82 -> 0 | N83: 円
B84: 予算書(案)作成 | G84: 収入の部
G85: 項 目 | K85: 本年度予算額 | L85: 前年度予算額 | M85: =IF(M74="中間","収入未済額","増 減") -> 増 減 | N85: 備 考
G86: 1 | H86: =予算!C7 -> 会費 | K86: 360000 | L86: =予算!E7 -> 360000 | M86: =IF($M$4="中間",K86-L86,L86-K86) -> 0
G87: 2 | H87: =予算!C8 -> 保険料 | K87: 0 | L87: =予算!E8 -> 0 | M87: =IF($M$4="中間",K87-L87,L87-K87) -> 0
G88: 3 | H88: =予算!C9 -> 雑収入 | K88: 1000 | L88: =予算!E9 -> 1000 | M88: =IF($M$4="中間",K88-L88,L88-K88) -> 0 | N88: 貯金利息
H89: 対象計 | K89: =SUM(K86:K88) -> 361000 | L89: =SUM(L86:L88) -> 361000 | M89: =IF($M$4="中間",K89-L89,L89-K89) -> 0
G90: 4 | H90: =予算!C10 -> 会費（対象外） | K90: 60000 | L90: =予算!E10 -> 60000 | M90: 0
G91: 5 | H91: =予算!C11 -> 繰越金（対象外） | K91: 0 | L91: =予算!E11 -> 0 | M91: 0 | N91: 前年度より
G92: 6 | H92: =予算!C12 -> 保険料（対象外） | K92: 17600 | L92: =予算!E12 -> 17600
G93: 7 | H93: =予算!C13 -> 雑収入（対象外） | K93: 0 | L93: =予算!E13 -> 0 | M93: =IF($M$4="中間",K93-L93,L93-K93) -> 0
G94: 対象外計 | K94: 77600 | L94: =SUM(L90:L93) -> 77600 | M94: 0
B95: 作成手順 | G95: 8 | H95: =予算!C14 -> 補助金 | K95: 239000 | L95: =予算!E14 -> 239000 | M95: 0
B96: ①本年度予算額を入力する。 | G96: 合 計 | K96: =K89+K94+K95 -> 677600 | L96: =L89+L94+L95 -> 677600 | M96: 0
B98: ②備考欄を入力する。 | G98: 支出の部
G99: 項 目 | K99: 本年度予算額 | L99: 前年度予算額 | M99: =IF(M74="中間","残 額","増 減") -> 増 減 | N99: 備 考
B100: ③下の「印刷」をクリックする。 | G100: 対象経費 | K100: =SUM(K101:K109) -> 600000 | L100: =SUM(L101:L109) -> 600000 | M100: =K100-L100 -> 0
H101: 諸謝金 | K101: 287310 | L101: =予算!D17 -> 287310 | M101: 0
H102: 旅費 | K102: 42000 | L102: =予算!D18 -> 42000 | M102: 0
H103: 通信運搬費 | K103: 13000 | L103: =予算!D19 -> 13000 | M103: 0
H104: 印刷製本費 | K104: 30000 | L104: =予算!D20 -> 30000 | M104: 0
H105: 備品費 | K105: 0 | L105: =予算!D21 -> 0 | M105: 0
H106: 消耗品費 | K106: 83600 | L106: =予算!D22 -> 83600 | M106: 0
H107: 借料及び損料 | K107: 116810 | L107: =予算!D23 -> 116810 | M107: 0
H108: 保険料 | K108: 0 | L108: =予算!D24 -> 0 | M108: 0
H109: 雑務経費 | K109: 27280 | L109: =予算!D25 -> 27280 | M109: 0
G110: 対象外経費 | K110: =SUM(K111:K120) -> 77600 | L110: =SUM(L111:L120) -> 77600
H111: 諸謝金 | K111: 47885 | L111: =予算!D26 -> 47885 | M111: 0
H112: 旅費 | K112: 0 | L112: =予算!D27 -> 0 | M112: 0
H113: 通信運搬費 | K113: 0 | L113: =予算!D28 -> 0 | M113: 0
H114: 印刷製本費 | K114: 0 | L114: =予算!D29 -> 0 | M114: 0
H115: 備品費 | K115: 0 | L115: =予算!D30 -> 0 | M115: =K115-L115 -> 0
H116: 消耗品費 | K116: 12115 | L116: =予算!D31 -> 12115 | M116: 0
H117: 借料及び損料 | K117: 0 | L117: =予算!D32 -> 0 | M117: 0
H118: 保険料 | K118: 17600 | L118: =予算!D33 -> 17600 | M118: 0
H119: 雑務経費 | K119: 0 | L119: =予算!D34 -> 0 | M119: 0
H120: その他の経費 | K120: 0 | L120: =予算!D35 -> 0 | M120: 0
G121: 合 計 | K121: =K100+K110 -> 677600 | L121: =L100+L110 -> 677600 | M121: 0
G123: 各項目間の流用を認める

Sheet 第１１号様式
B2: 第１１号様式（第１２条関係）
B4: 収支決算書
B6: 【支出】 | J6: (単位：円）
B7: 区分(勘定科目) | C7: 決算額 | E7: 積算根拠・内訳
B8: 謝金 | C8: =報告!L31 -> 287310 | E8: 指導者等報酬 | G8: 円 | R8: =IF(J8="",F8*H8*I8,F8*H8*I8*J8) -> 0
R9: =IF(J9="",F9*H9*I9,F9*H9*I9*J9) -> 0
R10: =F10*H10*I10*J10 -> 0
R11: =F11*H11*I11 -> 0
B12: 旅費 | C12: =報告!L32 -> 42000 | E12: 指導者大会交通費
B13: 通信運搬費 | C13: =報告!L33 -> 13000 | E13: 切手代等
B14: 印刷製本費 | C14: =報告!L34 -> 30000 | E14: チラシ印刷代
B15: 会議費
B16: 備品費 | C16: =報告!L35 -> 0
B17: 消耗品費 | C17: =報告!L36 -> 83600 | E17: クラブ用具、事務用品
B18: 借料及び損料 | C18: =報告!L37 -> 116810 | E18: 会場使用料、貸切バス代
B19: 保険料 | C19: =報告!L38 -> 0 | E19: スポーツ安全保険800円/年×22人
B20: 雑役務費 | C20: =報告!L39 -> 27280 | E20: アプリ使用料、手数料等
B21: 謝金 | C21: =報告!L43 -> 47885 | E21: 指導者等報酬 | G21: 円 | R21: =IF(J21="",F21*H21*I21,F21*H21*I21*J21) -> 0
R22: =IF(J22="",F22*H22*I22,F22*H22*I22*J22) -> 0
R23: =F23*H23*I23*J23 -> 0
R24: =F24*H24*I24 -> 0
B25: 旅費（対象外経費） | C25: =報告!L44 -> 0
B26: 通信運搬費（対象外経費） | C26: =報告!L45 -> 0
B27: 印刷製本費（対象外経費） | C27: =報告!L46 -> 0
B28: 会議費（対象外経費）
B29: 備品費（対象外経費） | C29: =報告!L47 -> 0
B30: 消耗品費（対象外経費） | C30: =報告!L48 -> 12115 | E30: ３月購入消耗品
B31: 借料及び損料（対象外経費） | C31: =報告!L49 -> 0
B32: 保険料（対象外経費） | C32: =報告!L50 -> 17600 | E32: スポーツ安全保険800円/年×22人
B33: 雑役務費（対象外経費） | C33: =報告!L51 -> 0
B34: その他の経費（対象外経費） | C34: =報告!L52 -> 0
B35: 計 | C35: =SUM(C7:D34) -> 677600
B36: （うち補助対象経費） | C36: =SUM(C8:D20) -> 600000
B38: 【収入】 | J38: (単位：円）
B39: 区分(勘定科目) | C39: 決算額 | E39: 積算根拠・内訳
B40: 生徒参加費（算定対象） | C40: =報告!L16 -> 360000 | E40: 3000 | F40: 円/月× | G40: 6 | H40: 月× | I40: 20 | J40: 人
B41: 保険料（算定対象） | C41: =報告!L17 -> 0 | F41: 円/年× | H41: 人（生徒＋指導者）
B42: 雑収入（算定対象） | C42: =報告!L18 -> 1000 | E42: 利息等
B43: 生徒参加費（算定対象外） | C43: =報告!L20 -> 60000 | E43: 3000 | F43: 円/月× | G43: 1 | H43: 月× | I43: 20 | J43: 人
B44: 保険料（算定対象） | C44: =報告!L22 -> 17600 | E44: 800 | F44: 円/年× | G44: 22 | H44: 人（生徒＋指導者） | N44: 会費等収入計 | P44: =D55 -> 361000 | Q44: 円
B45: 前年度繰越（算定対象外） | C45: =報告!L21 -> 0 | N45: 補助対象経費計 | P45: =B55 -> 600000 | Q45: 円
B46: 雑収入（算定対象外） | C46: =報告!L23 -> 0 | E46: 寄付金等 | N46: ②支出ー①収入＝ | P46: =P45-P44 -> 239000 | Q46: 円
B47: 計 | C47: =SUM(C40:D46) -> 438600 | N47: 補助金単価 | P47: =予算!O14 -> 288000 | Q47: 円
B48: （うち補助対象経費） | C48: =C40+C41+C42 -> 361000 | N48: 補助経費上限（１/２） | P48: =ROUNDDOWN(P45/2,0) -> 300000 | Q48: 円
B49: ※【支出】は補助対象経費とそれ以外を区分けして記載し、補助対象外経費の区分及び金額は | N49: 補助金額 | P49: =ROUNDDOWN(IF(P47="対象外",0,IF(P47<P46,P47,IF(P48>P46,P46,P48))),-3) -> 239000 | Q49: 円
B50: で囲むこと | N50: 収入 | P50: =C47 -> 438600 | Q50: 円
B51: ※支出の区分は、別表１の区分から記入すること | N51: 補助金 | P51: =P49 -> 239000 | Q51: 円
N52: 総収入 | P52: =P50+P51 -> 677600 | Q52: 円
B54: 補助対象経費 参加費等収入 補助金算定額 | N54: 総支出 | P54: =C35 -> 677600 | Q54: 円
B55: =C36 -> 600000 | C55: － | D55: =C48 -> 361000 | F55: ＝ | G55: =B55-D55 -> 239000 | N55: 差引額 | P55: =C47+P49-C35-C45-C46 -> 0 | Q55: 円
N56: ↑ ここが「0」以外の場合、収支が合っていないため、「0」となるように計画を見直してください。

Sheet 単価データ (hidden)
C1: =予算!M4 -> 6
B3: 1111 | C3: =ROUNDDOWN((D3/12*$C$1),-3) -> 336000 | D3: 673000
B4: 1112 | C4: =ROUNDDOWN((D4/12*$C$1),-3) -> 275000 | D4: 550000
B5: 1113 | C5: 213000 | D5: 427000
B6: 1114 | C6: 152000 | D6: 305000
B7: 1121 | C7: 345000 | D7: 691000
B8: 1122 | C8: 284000 | D8: 569000
B9: 1123 | C9: 223000 | D9: 446000
B10: 1124 | C10: 161000 | D10: 323000
B11: 2111 | C11: 288000 | D11: 576000
B12: 2112 | C12: 237000 | D12: 475000
B13: 2113 | C13: 186000 | D13: 373000
B14: 2114 | C14: 136000 | D14: 272000
B15: 2121 | C15: 298000 | D15: 596000
B16: 2122 | C16: 247000 | D16: 494000
B17: 2123 | C17: 196000 | D17: 393000
B18: 2124 | C18: 145000 | D18: 291000
B19: 3111 | C19: 211000 | D19: 423000
B20: 3112 | C20: 178000 | D20: 356000
B21: 3113 | C21: 145000 | D21: 290000
B22: 3114 | C22: 112000 | D22: 224000
B23: 3121 | C23: 221000 | D23: 443000
B24: 3122 | C24: 188000 | D24: 377000
B25: 3123 | C25: 155000 | D25: 311000
B26: 3124 | C26: 122000 | D26: 245000
B27: 4111 | C27: 対象外 | D27: 対象外
B28: 4112 | C28: 対象外 | D28: 対象外
B29: 4113 | C29: 対象外 | D29: 対象外
B30: 4114 | C30: 対象外 | D30: 対象外
B31: 4121 | C31: 対象外 | D31: 対象外
B32: 4122 | C32: 対象外 | D32: 対象外
B33: 4123 | C33: 対象外 | D33: 対象外
B34: 4124 | C34: 対象外 | D34: 対象外
B35: 1211 | C35: 288000 | D35: 576000
B36: 1212 | C36: 237000 | D36: 475000
B37: 1213 | C37: 186000 | D37: 373000
B38: 1214 | C38: 136000 | D38: 272000
B39: 1221 | C39: 298000 | D39: 596000
B40: 1222 | C40: 247000 | D40: 494000
B41: 1223 | C41: 196000 | D41: 393000
B42: 1224 | C42: 145000 | D42: 291000
B43: 2211 | C43: 288000 | D43: 576000
B44: 2212 | C44: 237000 | D44: 475000
B45: 2213 | C45: 186000 | D45: 373000
B46: 2214 | C46: 136000 | D46: 272000
B47: 2221 | C47: 298000 | D47: 596000
B48: 2222 | C48: 247000 | D48: 494000
B49: 2223 | C49: 196000 | D49: 393000
B50: 2224 | C50: 145000 | D50: 291000
B51: 3211 | C51: 211000 | D51: 423000
B52: 3212 | C52: 178000 | D52: 356000
B53: 3213 | C53: 145000 | D53: 290000
B54: 3214 | C54: 112000 | D54: 224000
B55: 3221 | C55: 221000 | D55: 443000
B56: 3222 | C56: 188000 | D56: 377000
B57: 3223 | C57: 155000 | D57: 311000
B58: 3224 | C58: 122000 | D58: 245000
B59: 4211 | C59: 対象外 | D59: 対象外
B60: 4212 | C60: 対象外 | D60: 対象外
B61: 4213 | C61: 対象外 | D61: 対象外
B62: 4214 | C62: 対象外 | D62: 対象外
B63: 4221 | C63: 対象外 | D63: 対象外
B64: 4222 | C64: 対象外 | D64: 対象外
B65: 4223 | C65: 対象外 | D65: 対象外
B66: 4224 | C66: 対象外 | D66: 対象外
B67: 1311 | C67: 211000 | D67: 423000
B68: 1312 | C68: =ROUNDDOWN((D68/12*$C$1),-3) -> 178000 | D68: 356000
B69: 1313 | C69: 145000 | D69: 290000
B70: 1314 | C70: 112000 | D70: 224000
B71: 1321 | C71: 221000 | D71: 443000
B72: 1322 | C72: 188000 | D72: 377000
B73: 1323 | C73: 155000 | D73: 311000
B74: 1324 | C74: 122000 | D74: 245000
B75: 2311 | C75: 211000 | D75: 423000
B76: 2312 | C76: 178000 | D76: 356000
B77: 2313 | C77: 145000 | D77: 290000
B78: 2314 | C78: 112000 | D78: 224000
B79: 2321 | C79: 221000 | D79: 443000
B80: 2322 | C80: 188000 | D80: 377000
B81: 2323 | C81: 155000 | D81: 311000
B82: 2324 | C82: 122000 | D82: 245000
B83: 3311 | C83: 211000 | D83: 423000
B84: 3312 | C84: 178000 | D84: 356000
B85: 3313 | C85: 145000 | D85: 290000
B86: 3314 | C86: 112000 | D86: 224000
B87: 3321 | C87: 221000 | D87: 443000
B88: 3322 | C88: 188000 | D88: 377000
B89: 3323 | C89: 155000 | D89: 311000
B90: 3324 | C90: 122000 | D90: 245000
B91: 4311 | C91: 対象外 | D91: 対象外
B92: 4312 | C92: 対象外 | D92: 対象外
B93: 4313 | C93: 対象外 | D93: 対象外
B94: 4314 | C94: 対象外 | D94: 対象外
B95: 4321 | C95: 対象外 | D95: 対象外
B96: 4322 | C96: 対象外 | D96: 対象外
B97: 4323 | C97: 対象外 | D97: 対象外
B98: 4324 | C98: 対象外 | D98: 対象外

Sheet 補助金単価
A1: 休日の地域クラブ活動の活動費等の支援（補助単価） | L1: 別 紙
A2: 【補助単価（1クラブ活動当たり年額）】
A3: ＜令和8年度＞※9月以降の6か月分とした補助単価
C4: ※参加生徒数は、各月の参加生徒数の年間平均で算出する（小数点以下は切り上げ）。 | L4: 単位：円
A5: No. | B5: 区分 | C5: 月4回程度活動 | E5: クラブ数 | F5: 月3回程度活動 | H5: 月2回程度活動 | J5: クラブ数 | K5: 月1回程度活動
A6: 1 | B6: 参加生徒数27人以上で 指導者を3人以上配置 | C6: スポーツ | D6: =単価データ!C3 -> 336000 | F6: スポーツ | G6: =単価データ!C4 -> 275000 | H6: スポーツ | I6: =単価データ!C5 -> 213000 | K6: スポーツ | L6: =単価データ!C6 -> 152000
C7: 文化 | D7: =単価データ!C7 -> 345000 | F7: 文化 | G7: =単価データ!C8 -> 284000 | H7: 文化 | I7: =単価データ!C9 -> 223000 | K7: 文化 | L7: =単価データ!C10 -> 161000
A8: 2 | B8: 参加生徒数13人～26人で 指導者を2人配置 | C8: スポーツ | D8: =単価データ!C11 -> 288000 | E8: 96 | F8: スポーツ | G8: =単価データ!C12 -> 237000 | H8: スポーツ | I8: =単価データ!C13 -> 186000 | J8: 32 | K8: スポーツ | L8: =単価データ!C14 -> 136000
C9: 文化 | D9: =単価データ!C15 -> 298000 | E9: 24 | F9: 文化 | G9: =単価データ!C16 -> 247000 | H9: 文化 | I9: =単価データ!C17 -> 196000 | J9: 8 | K9: 文化 | L9: =単価データ!C18 -> 145000
A10: 3 | B10: 参加生徒数5人～12人で 指導者を1人配置 | C10: スポーツ | D10: =単価データ!C19 -> 211000 | E10: 24 | F10: スポーツ | G10: =単価データ!C20 -> 178000 | H10: スポーツ | I10: =単価データ!C21 -> 145000 | J10: 8 | K10: スポーツ | L10: =単価データ!C22 -> 112000
C11: 文化 | D11: =単価データ!C23 -> 221000 | E11: 6 | F11: 文化 | G11: =単価データ!C24 -> 188000 | H11: 文化 | I11: =単価データ!C25 -> 155000 | J11: 2 | K11: 文化 | L11: =単価データ!C26 -> 122000
E12: =SUM(E8:E11) -> 150 | J12: =SUM(J8:J11) -> 50
A13: ＜令和9年度以降＞※12か月分
C14: ※参加生徒数は、各月の参加生徒数の年間平均で算出する（小数点以下は切り上げ）。 | L14: 単位：円
C15: 月4回程度活動 | E15: クラブ数 | F15: 月3回程度活動 | H15: 月2回程度活動 | J15: クラブ数 | K15: 月1回程度活動
A16: 1 | B16: 参加生徒数27人以上で 指導者を3人以上配置 | C16: スポーツ | D16: 673000 | F16: スポーツ | G16: 550000 | H16: スポーツ | I16: 427000 | K16: スポーツ | L16: 305000
C17: 文化 | D17: 691000 | F17: 文化 | G17: 569000 | H17: 文化 | I17: 446000 | K17: 文化 | L17: 323000
A18: 2 | B18: 参加生徒数13人～26人で 指導者を2人配置 | C18: スポーツ | D18: 576000 | F18: スポーツ | G18: 475000 | H18: スポーツ | I18: 373000 | K18: スポーツ | L18: 272000
C19: 文化 | D19: 596000 | F19: 文化 | G19: 494000 | H19: 文化 | I19: 393000 | K19: 文化 | L19: 291000
A20: 3 | B20: 参加生徒数5人～12人で 指導者を1人配置 | C20: スポーツ | D20: 423000 | F20: スポーツ | G20: 356000 | H20: スポーツ | I20: 290000 | K20: スポーツ | L20: 224000
C21: 文化 | D21: 443000 | F21: 文化 | G21: 377000 | H21: 文化 | I21: 311000 | K21: 文化 | L21: 245000
